Workbook

Sheet Main
B10: 2023-03-22
B12: Sheet No. | C12: Template Name | D12: Summary
B13: 1 | C13: Future Intra | D13: For Intraday trading in F&O segment
B14: 2 | C14: Cash Intra | D14: For Intraday trading in cash market segment
B15: 3 | C15: Mid-cap Intra | D15: For Intraday trading in Mid-cap stocks
B16: 4 | C16: Bulk Deals | D16: Reveals Bulk Deals carried on NSE & BSE
B17: 5 | C17: Call Tracker
K27: `

Sheet Future Intra
M5: Back to Main Page
A6: FOR INTRA DAY TRADING | L6: =Main!B10 -> 2023-03-22
A9: Sr.no | B9: Sector | C9: Scrip | D9: Expiry Date | E9: CLOSE RATE | F9: Pivot Point | G9: Supports | J9: Resistances
E10: Point | F10: Point | G10: S1 | H10: S2 | I10: S3 | J10: R1 | K10: R2 | L10: R3 | M10: HIGH | N10: LOW | O10: OI | P10: % Change in OI
A11: 1 | B11: Index | C11: NIFTY | D11: 2023-03-29 | E11: 17160.15 | F11: 17132.02 | G11: 17080.38 | H11: 17000.62 | I11: 16948.98 | J11: 17211.78 | K11: 17263.42 | L11: 17343.18 | M11: 17183.65 | N11: 17052.25 | O11: 16574200 | P11: 1.78%
A12: 2 | B12: Index | C12: BANKNIFTY | D12: 2023-03-29 | E12: 40046.85 | F12: 39888.77 | G12: 39648.08 | H12: 39249.32 | I12: 39008.63 | J12: 40287.53 | K12: 40528.22 | L12: 40926.98 | M12: 40129.45 | N12: 39490 | O12: 5761700 | P12: 1.23%
A13: 3 | B13: Index | C13: FINNIFTY | D13: 2023-03-28 | E13: 17845.20 | F13: 17782.67 | G13: 17695.53 | H13: 17545.87 | I13: 17458.73 | J13: 17932.33 | K13: 18019.47 | L13: 18169.13 | M13: 17869.8 | N13: 17633 | O13: 36840 | P13: 12.45%
A14: 4 | B14: Index | C14: MIDCPNIFTY | D14: 2023-03-28 | E14: 6992.10 | F14: 2330.70 | G14: 4661.40 | H14: 2330.70 | I14: 4661.40 | J14: 4661.40 | K14: 2330.70 | L14: 4661.40 | M14: 0 | N14: 0 | O14: 0
A15: 5 | B15: Chemical | C15: AARTIIND | D15: 2023-03-29 | E15: 524.10 | F15: 528.63 | G15: 518.17 | H15: 512.23 | I15: 501.77 | J15: 534.57 | K15: 545.03 | L15: 550.97 | M15: 539.1 | N15: 522.7 | O15: 4445500 | P15: 1.83%
A16: 6 | B16: Capital_Goods | C16: ABB | D16: 2023-03-29 | E16: 3401.35 | F16: 3371.77 | G16: 3329.58 | H16: 3257.82 | I16: 3215.63 | J16: 3443.53 | K16: 3485.72 | L16: 3557.48 | M16: 3413.95 | N16: 3300 | O16: 1616250 | P16: 3.77%
A17: 7 | B17: Pharma | C17: ABBOTINDIA | D17: 2023-03-29 | E17: 21323.40 | F17: 21282.52 | G17: 21192.53 | H17: 21061.67 | I17: 20971.68 | J17: 21413.38 | K17: 21503.37 | L17: 21634.23 | M17: 21372.5 | N17: 21151.65 | O17: 47400 | P17: 0.59%
A18: 8 | B18: Others | C18: ABCAPITAL | D18: 2023-03-29 | E18: 153.50 | F18: 152.58 | G18: 151.32 | H18: 149.13 | I18: 147.87 | J18: 154.77 | K18: 156.03 | L18: 158.22 | M18: 153.85 | N18: 150.4 | O18: 37308600 | P18: -0.12%
A19: 9 | B19: Textile | C19: ABFRL | D19: 2023-03-29 | E19: 218.80 | F19: 218.23 | G19: 215.62 | H19: 212.43 | I19: 209.82 | J19: 221.42 | K19: 224.03 | L19: 227.22 | M19: 220.85 | N19: 215.05 | O19: 24819600 | P19: 0.83%
A20: 10 | B20: Cement | C20: ACC | D20: 2023-03-29 | E20: 1733.00 | F20: 1727.75 | G20: 1707.75 | H20: 1682.50 | I20: 1662.50 | J20: 1753.00 | K20: 1773.00 | L20: 1798.25 | M20: 1747.75 | N20: 1702.5 | O20: 5005250 | P20: -1.11%
A21: 11 | B21: Others | C21: ADANIENT | D21: 2023-03-29 | E21: 1834.15 | F21: 1837.90 | G21: 1804.25 | H21: 1774.35 | I21: 1740.70 | J21: 1867.80 | K21: 1901.45 | L21: 1931.35 | M21: 1871.55 | N21: 1808 | O21: 16054000 | P21: -0.13%
A22: 12 | B22: Others | C22: ADANIPORTS | D22: 2023-03-29 | E22: 668.45 | F22: 669.47 | G22: 661.53 | H22: 654.62 | I22: 646.68 | J22: 676.38 | K22: 684.32 | L22: 691.23 | M22: 677.4 | N22: 662.55 | O22: 38270625 | P22: 0.30%
A23: 13 | B23: Pharma | C23: ALKEM | D23: 2023-03-29 | E23: 3129.85 | F23: 3131.77 | G23: 3106.93 | H23: 3084.02 | I23: 3059.18 | J23: 3154.68 | K23: 3179.52 | L23: 3202.43 | M23: 3156.6 | N23: 3108.85 | O23: 457600 | P23: -0.09%
A24: 14 | B24: Cement | C24: AMBUJACEM | D24: 2023-03-29 | E24: 372.90 | F24: 372.27 | G24: 368.13 | H24: 363.37 | I24: 359.23 | J24: 377.03 | K24: 381.17 | L24: 385.93 | M24: 376.4 | N24: 367.5 | O24: 64713600 | P24: 0.56%
A25: 15 | B25: Others | C25: APOLLOHOSP | D25: 2023-03-29 | E25: 4286.30 | F25: 4311.77 | G25: 4256.03 | H25: 4225.77 | I25: 4170.03 | J25: 4342.03 | K25: 4397.77 | L25: 4428.03 | M25: 4367.5 | N25: 4281.5 | O25: 1445750 | P25: 3.30%
A26: 16 | B26: Automobile | C26: APOLLOTYRE | D26: 2023-03-29 | E26: 318.20 | F26: 316.07 | G26: 313.13 | H26: 308.07 | I26: 305.13 | J26: 321.13 | K26: 324.07 | L26: 329.13 | M26: 319 | N26: 311 | O26: 14465500 | P26: -0.34%
A27: 17 | B27: Automobile | C27: ASHOKLEY | D27: 2023-03-29 | E27: 136.10 | F27: 136.45 | G27: 135.25 | H27: 134.40 | I27: 133.20 | J27: 137.30 | K27: 138.50 | L27: 139.35 | M27: 137.65 | N27: 135.6 | O27: 70530000 | P27: 0.03%
A28: 18 | B28: FMCG | C28: ASIANPAINT | D28: 2023-03-29 | E28: 2847.00 | F28: 2861.65 | G28: 2828.30 | H28: 2809.60 | I28: 2776.25 | J28: 2880.35 | K28: 2913.70 | L28: 2932.40 | M28: 2895 | N28: 2842.95 | O28: 6362600 | P28: -1.23%
A29: 19 | B29: Others | C29: ASTRAL | D29: 2023-03-29 | E29: 1338.15 | F29: 1333.87 | G29: 1322.93 | H29: 1307.72 | I29: 1296.78 | J29: 1349.08 | K29: 1360.02 | L29: 1375.23 | M29: 1344.8 | N29: 1318.65 | O29: 2222552 | P29: -1.62%
A30: 20 | B30: Others | C30: ATUL | D30: 2023-03-29 | E30: 7061.75 | F30: 7061.93 | G30: 6998.87 | H30: 6935.98 | I30: 6872.92 | J30: 7124.82 | K30: 7187.88 | L30: 7250.77 | M30: 7125 | N30: 6999.05 | O30: 154200 | P30: -2.84%
A31: 21 | B31: Banking | C31: AUBANK | D31: 2023-03-29 | E31: 579.90 | F31: 577.08 | G31: 571.92 | H31: 563.93 | I31: 558.77 | J31: 585.07 | K31: 590.23 | L31: 598.22 | M31: 582.25 | N31: 569.1 | O31: 15707000 | P31: -0.06%
A32: 22 | B32: Pharma | C32: AUROPHARMA | D32: 2023-03-29 | E32: 469.95 | F32: 472.98 | G32: 465.62 | H32: 461.28 | I32: 453.92 | J32: 477.32 | K32: 484.68 | L32: 489.02 | M32: 480.35 | N32: 468.65 | O32: 13997000 | P32: 0.46%
A33: 23 | B33: Banking | C33: AXISBANK | D33: 2023-03-29 | E33: 857.55 | F33: 852.63 | G33: 846.17 | H33: 834.78 | I33: 828.32 | J33: 864.02 | K33: 870.48 | L33: 881.87 | M33: 859.1 | N33: 841.25 | O33: 51814800 | P33: -2.72%
A34: 24 | B34: Automobile | C34: BAJAJ-AUTO | D34: 2023-03-29 | E34: 3896.25 | F34: 3857.72 | G34: 3806.38 | H34: 3716.52 | I34: 3665.18 | J34: 3947.58 | K34: 3998.92 | L34: 4088.78 | M34: 3909.05 | N34: 3767.85 | O34: 1749750 | P34: 22.79%
A35: 25 | B35: Finance | C35: BAJAJFINSV | D35: 2023-03-29 | E35: 1274.65 | F35: 1268.55 | G35: 1259.10 | H35: 1243.55 | I35: 1234.10 | J35: 1284.10 | K35: 1293.55 | L35: 1309.10 | M35: 1278 | N35: 1253 | O35: 10662000 | P35: 1.22%
A36: 26 | B36: Finance | C36: BAJFINANCE | D36: 2023-03-29 | E36: 5725.70 | F36: 5688.08 | G36: 5638.62 | H36: 5551.53 | I36: 5502.07 | J36: 5775.17 | K36: 5824.63 | L36: 5911.72 | M36: 5737.55 | N36: 5601 | O36: 5619125 | P36: -4.38%
A37: 27 | B37: Automobile | C37: BALKRISIND | D37: 2023-03-29 | E37: 1976.70 | F37: 1983.22 | G37: 1964.53 | H37: 1952.37 | I37: 1933.68 | J37: 1995.38 | K37: 2014.07 | L37: 2026.23 | M37: 2001.9 | N37: 1971.05 | O37: 1648500 | P37: -0.51%
A38: 28 | B38: Others | C38: BALRAMCHIN | D38: 2023-03-29 | E38: 366.15 | F38: 365.15 | G38: 362.25 | H38: 358.35 | I38: 355.45 | J38: 369.05 | K38: 371.95 | L38: 375.85 | M38: 368.05 | N38: 361.25 | O38: 6700800 | P38: -0.59%
A39: 29 | B39: Banking | C39: BANDHANBNK | D39: 2023-03-29 | E39: 203.90 | F39: 202.60 | G39: 200.05 | H39: 196.20 | I39: 193.65 | J39: 206.45 | K39: 209.00 | L39: 212.85 | M39: 205.15 | N39: 198.75 | O39: 45867600 | P39: 1.41%
A40: 30 | B40: Banking | C40: BANKBARODA | D40: 2023-03-29 | E40: 163.65 | F40: 162.45 | G40: 160.90 | H40: 158.15 | I40: 156.60 | J40: 165.20 | K40: 166.75 | L40: 169.50 | M40: 164 | N40: 159.7 | O40: 100111050 | P40: -4.93%
A41: 31 | B41: FMCG | C41: BATAINDIA | D41: 2023-03-29 | E41: 1412.00 | F41: 1410.25 | G41: 1405.15 | H41: 1398.30 | I41: 1393.20 | J41: 1417.10 | K41: 1422.20 | L41: 1429.05 | M41: 1415.35 | N41: 1403.4 | O41: 3089350 | P41: -0.03%
A42: 32 | B42: Capital_Goods | C42: BEL | D42: 2023-03-29 | E42: 92.90 | F42: 92.75 | G42: 92.30 | H42: 91.70 | I42: 91.25 | J42: 93.35 | K42: 93.80 | L42: 94.40 | M42: 93.2 | N42: 92.15 | O42: 112575000 | P42: 0.22%
A43: 33 | B43: FMCG | C43: BERGEPAINT | D43: 2023-03-29 | E43: 593.45 | F43: 594.83 | G43: 590.42 | H43: 587.38 | I43: 582.97 | J43: 597.87 | K43: 602.28 | L43: 605.32 | M43: 599.25 | N43: 591.8 | O43: 8272000 | P43: 2.63%
A44: 34 | B44: Automobile | C44: BHARATFORG | D44: 2023-03-29 | E44: 781.75 | F44: 781.87 | G44: 772.53 | H44: 763.32 | I44: 753.98 | J44: 791.08 | K44: 800.42 | L44: 809.63 | M44: 791.2 | N44: 772.65 | O44: 7912000 | P44: -1.03%
A45: 35 | B45: Telecom | C45: BHARTIARTL | D45: 2023-03-29 | E45: 759.70 | F45: 761.32 | G45: 755.28 | H45: 750.87 | I45: 744.83 | J45: 765.73 | K45: 771.77 | L45: 776.18 | M45: 767.35 | N45: 756.9 | O45: 40261000 | P45: 0.04%
A46: 36 | B46: Capital_Goods | C46: BHEL | D46: 2023-03-29 | E46: 76.20 | F46: 75.78 | G46: 75.22 | H46: 74.23 | I46: 73.67 | J46: 76.77 | K46: 77.33 | L46: 78.32 | M46: 76.35 | N46: 74.8 | O46: 72072000 | P46: -0.16%
A47: 37 | B47: Pharma | C47: BIOCON | D47: 2023-03-29 | E47: 201.55 | F47: 198.98 | G47: 194.42 | H47: 187.28 | I47: 182.72 | J47: 206.12 | K47: 210.68 | L47: 217.82 | M47: 203.55 | N47: 191.85 | O47: 45694100 | P47: -6.35%
A48: 38 | B48: Automobile | C48: BOSCHLTD | D48: 2023-03-29 | E48: 18363.65 | F48: 18325.50 | G48: 18203.60 | H48: 18043.55 | I48: 17921.65 | J48: 18485.55 | K48: 18607.45 | L48: 18767.50 | M48: 18447.4 | N48: 18165.45 | O48: 143400 | P48: -1.61%
A49: 39 | B49: Oil_Gas | C49: BPCL | D49: 2023-03-29 | E49: 359.50 | F49: 359.77 | G49: 356.83 | H49: 354.17 | I49: 351.23 | J49: 362.43 | K49: 365.37 | L49: 368.03 | M49: 362.7 | N49: 357.1 | O49: 15206400 | P49: -2.81%
A50: 40 | B50: FMCG | C50: BRITANNIA | D50: 2023-03-29 | E50: 4284.15 | F50: 4318.68 | G50: 4242.47 | H50: 4200.78 | I50: 4124.57 | J50: 4360.37 | K50: 4436.58 | L50: 4478.27 | M50: 4394.9 | N50: 4277 | O50: 1362800 | P50: 3.97%
A51: 41 | B51: Technology | C51: BSOFT | D51: 2023-03-29 | E51: 269.05 | F51: 270.65 | G51: 266.65 | H51: 264.25 | I51: 260.25 | J51: 273.05 | K51: 277.05 | L51: 279.45 | M51: 274.65 | N51: 268.25 | O51: 7612000 | P51: 2.64%
A52: 42 | B52: Banking | C52: CANBK | D52: 2023-03-29 | E52: 284.70 | F52: 282.85 | G52: 279.50 | H52: 274.30 | I52: 270.95 | J52: 288.05 | K52: 291.40 | L52: 296.60 | M52: 286.2 | N52: 277.65 | O52: 43175700 | P52: 2.36%
A53: 43 | B53: Finance | C53: CANFINHOME | D53: 2023-03-29 | E53: 534.20 | F53: 533.12 | G53: 527.33 | H53: 520.47 | I53: 514.68 | J53: 539.98 | K53: 545.77 | L53: 552.63 | M53: 538.9 | N53: 526.25 | O53: 3588000 | P53: -1.84%
A54: 44 | B54: Others | C54: CHAMBLFERT | D54: 2023-03-29 | E54: 271.15 | F54: 270.35 | G54: 268.80 | H54: 266.45 | I54: 264.90 | J54: 272.70 | K54: 274.25 | L54: 276.60 | M54: 271.9 | N54: 268 | O54: 5179500 | P54: 0.09%
A55: 45 | B55: Finance | C55: CHOLAFIN | D55: 2023-03-29 | E55: 758.10 | F55: 754.87 | G55: 749.23 | H55: 740.37 | I55: 734.73 | J55: 763.73 | K55: 769.37 | L55: 778.23 | M55: 760.5 | N55: 746 | O55: 9835000 | P55: 0.76%
A56: 46 | B56: Pharma | C56: CIPLA | D56: 2023-03-29 | E56: 864.80 | F56: 867.28 | G56: 861.02 | H56: 857.23 | I56: 850.97 | J56: 871.07 | K56: 877.33 | L56: 881.12 | M56: 873.55 | N56: 863.5 | O56: 16082950 | P56: 0.02%
A57: 47 | B57: Others | C57: COALINDIA | D57: 2023-03-29 | E57: 218.10 | F57: 218.00 | G57: 216.70 | H57: 215.30 | I57: 214.00 | J57: 219.40 | K57: 220.70 | L57: 222.10 | M57: 219.3 | N57: 216.6 | O57: 37728600 | P57: 1.95%
A58: 48 | B58: Technology | C58: COFORGE | D58: 2023-03-29 | E58: 3726.25 | F58: 3746.90 | G58: 3694.90 | H58: 3663.55 | I58: 3611.55 | J58: 3778.25 | K58: 3830.25 | L58: 3861.60 | M58: 3798.9 | N58: 3715.55 | O58: 820800 | P58: -1.48%
A59: 49 | B59: FMCG | C59: COLPAL | D59: 2023-03-29 | E59: 1499.65 | F59: 1500.82 | G59: 1493.83 | H59: 1488.02 | I59: 1481.03 | J59: 1506.63 | K59: 1513.62 | L59: 1519.43 | M59: 1507.8 | N59: 1495 | O59: 1816500 | P59: -1.76%
A60: 50 | B60: Others | C60: CONCOR | D60: 2023-03-29 | E60: 596.60 | F60: 595.45 | G60: 591.70 | H60: 586.80 | I60: 583.05 | J60: 600.35 | K60: 604.10 | L60: 609.00 | M60: 599.2 | N60: 590.55 | O60: 8818000 | P60: -1.79%
A61: 51 | B61: Others | C61: COROMANDEL | D61: 2023-03-29 | E61: 863.60 | F61: 857.63 | G61: 849.47 | H61: 835.33 | I61: 827.17 | J61: 871.77 | K61: 879.93 | L61: 894.07 | M61: 865.8 | N61: 843.5 | O61: 1712200 | P61: -2.36%
A62: 52 | B62: Capital_Goods | C62: CROMPTON | D62: 2023-03-29 | E62: 293.25 | F62: 289.93 | G62: 283.37 | H62: 273.48 | I62: 266.92 | J62: 299.82 | K62: 306.38 | L62: 316.27 | M62: 296.5 | N62: 280.05 | O62: 6522000 | P62: -4.17%
A63: 53 | B63: Banking | C63: CUB | D63: 2023-03-29 | E63: 129.10 | F63: 128.75 | G63: 127.75 | H63: 126.40 | I63: 125.40 | J63: 130.10 | K63: 131.10 | L63: 132.45 | M63: 129.75 | N63: 127.4 | O63: 16155000 | P63: 1.86%
A64: 54 | B64: Capital_Goods | C64: CUMMINSIND | D64: 2023-03-29 | E64: 1640.50 | F64: 1637.87 | G64: 1618.78 | H64: 1597.07 | I64: 1577.98 | J64: 1659.58 | K64: 1678.67 | L64: 1700.38 | M64: 1656.95 | N64: 1616.15 | O64: 3535200 | P64: -8.35%
A65: 55 | B65: FMCG | C65: DABUR | D65: 2023-03-29 | E65: 533.85 | F65: 535.90 | G65: 530.20 | H65: 526.55 | I65: 520.85 | J65: 539.55 | K65: 545.25 | L65: 548.90 | M65: 541.6 | N65: 532.25 | O65: 10821250 | P65: -2.15%
A66: 56 | B66: Cement | C66: DALBHARAT | D66: 2023-03-29 | E66: 1826.75 | F66: 1818.83 | G66: 1807.07 | H66: 1787.38 | I66: 1775.62 | J66: 1838.52 | K66: 1850.28 | L66: 1869.97 | M66: 1830.6 | N66: 1799.15 | O66: 1905500 | P66: -0.73%
A67: 57 | B67: Chemical | C67: DEEPAKNTR | D67: 2023-03-29 | E67: 1804.35 | F67: 1811.37 | G67: 1790.73 | H67: 1777.12 | I67: 1756.48 | J67: 1824.98 | K67: 1845.62 | L67: 1859.23 | M67: 1832 | N67: 1797.75 | O67: 1925750 | P67: 0.10%
A68: 58 | B68: Others | C68: DELTACORP | D68: 2023-03-29 | E68: 196.85 | F68: 195.67 | G68: 193.93 | H68: 191.02 | I68: 189.28 | J68: 198.58 | K68: 200.32 | L68: 203.23 | M68: 197.4 | N68: 192.75 | O68: 16707600 | P68: 0.57%
A69: 59 | B69: Pharma | C69: DIVISLAB | D69: 2023-03-29 | E69: 2781.95 | F69: 2790.80 | G69: 2746.05 | H69: 2710.15 | I69: 2665.40 | J69: 2826.70 | K69: 2871.45 | L69: 2907.35 | M69: 2835.55 | N69: 2754.9 | O69: 3140250 | P69: 0.73%
A70: 60 | B70: Others | C70: DIXON | D70: 2023-03-29 | E70: 2911.00 | F70: 2915.70 | G70: 2891.40 | H70: 2871.80 | I70: 2847.50 | J70: 2935.30 | K70: 2959.60 | L70: 2979.20 | M70: 2940 | N70: 2896.1 | O70: 690000 | P70: 0.04%
A71: 61 | B71: Realty | C71: DLF | D71: 2023-03-29 | E71: 368.50 | F71: 369.52 | G71: 365.83 | H71: 363.17 | I71: 359.48 | J71: 372.18 | K71: 375.87 | L71: 378.53 | M71: 373.2 | N71: 366.85 | O71: 44917950 | P71: 2.55%
A72: 62 | B72: Pharma | C72: DRREDDY | D72: 2023-03-29 | E72: 4440.20 | F72: 4454.62 | G72: 4418.58 | H72: 4396.97 | I72: 4360.93 | J72: 4476.23 | K72: 4512.27 | L72: 4533.88 | M72: 4490.65 | N72: 4433 | O72: 2429875 | P72: 1.30%
A73: 63 | B73: Automobile | C73: EICHERMOT | D73: 2023-03-29 | E73: 2948.90 | F73: 2960.17 | G73: 2930.98 | H73: 2913.07 | I73: 2883.88 | J73: 2978.08 | K73: 3007.27 | L73: 3025.18 | M73: 2989.35 | N73: 2942.25 | O73: 3239250 | P73: 2.23%
A74: 64 | B74: Automobile | C74: ESCORTS | D74: 2023-03-29 | E74: 1902.15 | F74: 1907.07 | G74: 1892.13 | H74: 1882.12 | I74: 1867.18 | J74: 1917.08 | K74: 1932.02 | L74: 1942.03 | M74: 1922 | N74: 1897.05 | O74: 1585925 | P74: 0.00%
A75: 65 | B75: Automobile | C75: EXIDEIND | D75: 2023-03-29 | E75: 178.60 | F75: 178.32 | G75: 177.68 | H75: 176.77 | I75: 176.13 | J75: 179.23 | K75: 179.87 | L75: 180.78 | M75: 178.95 | N75: 177.4 | O75: 17427600 | P75: -3.78%
A76: 66 | B76: Banking | C76: FEDERALBNK | D76: 2023-03-29 | E76: 129.35 | F76: 128.88 | G76: 127.92 | H76: 126.48 | I76: 125.52 | J76: 130.32 | K76: 131.28 | L76: 132.72 | M76: 129.85 | N76: 127.45 | O76: 63945000 | P76: -0.85%
A77: 67 | B77: Technology | C77: FSL | D77: 2023-03-29 | E77: 111.05 | F77: 110.88 | G77: 109.62 | H77: 108.18 | I77: 106.92 | J77: 112.32 | K77: 113.58 | L77: 115.02 | M77: 112.15 | N77: 109.45 | O77: 13561600 | P77: -1.81%
A78: 68 | B78: Oil_Gas | C78: GAIL | D78: 2023-03-29 | E78: 105.70 | F78: 106.17 | G78: 104.38 | H78: 103.07 | I78: 101.28 | J78: 107.48 | K78: 109.27 | L78: 110.58 | M78: 107.95 | N78: 104.85 | O78: 78625950 | P78: 0.03%
A79: 69 | B79: Pharma | C79: GLENMARK | D79: 2023-03-29 | E79: 438.85 | F79: 441.50 | G79: 435.10 | H79: 431.35 | I79: 424.95 | J79: 445.25 | K79: 451.65 | L79: 455.40 | M79: 447.9 | N79: 437.75 | O79: 5314250 | P79: 5.41%
A80: 70 | B80: Infrastructure | C80: GMRINFRA | D80: 2023-03-29 | E80: 39.95 | F80: 40.38 | G80: 39.47 | H80: 38.98 | I80: 38.07 | J80: 40.87 | K80: 41.78 | L80: 42.27 | M80: 41.3 | N80: 39.9 | O80: 134685000 | P80: -1.51%
A81: 71 | B81: Others | C81: GNFC | D81: 2023-03-29 | E81: 536.45 | F81: 534.32 | G81: 527.13 | H81: 517.82 | I81: 510.63 | J81: 543.63 | K81: 550.82 | L81: 560.13 | M81: 541.5 | N81: 525 | O81: 8208200 | P81: 0.35%
A82: 72 | B82: FMCG | C82: GODREJCP | D82: 2023-03-29 | E82: 945.65 | F82: 951.85 | G82: 937.30 | H82: 928.95 | I82: 914.40 | J82: 960.20 | K82: 974.75 | L82: 983.10 | M82: 966.4 | N82: 943.5 | O82: 5861000 | P82: -0.53%
A83: 73 | B83: Realty | C83: GODREJPROP | D83: 2023-03-29 | E83: 1101.80 | F83: 1103.93 | G83: 1091.72 | H83: 1081.63 | I83: 1069.42 | J83: 1114.02 | K83: 1126.23 | L83: 1136.32 | M83: 1116.15 | N83: 1093.85 | O83: 4430200 | P83: 0.38%
A84: 74 | B84: Pharma | C84: GRANULES | D84: 2023-03-29 | E84: 288.95 | F84: 288.38 | G84: 284.57 | H84: 280.18 | I84: 276.37 | J84: 292.77 | K84: 296.58 | L84: 300.97 | M84: 292.2 | N84: 284 | O84: 6250000 | P84: 0.32%
A85: 75 | B85: Cement | C85: GRASIM | D85: 2023-03-29 | E85: 1613.80 | F85: 1606.47 | G85: 1597.93 | H85: 1582.07 | I85: 1573.53 | J85: 1622.33 | K85: 1630.87 | L85: 1646.73 | M85: 1615 | N85: 1590.6 | O85: 11142075 | P85: 0.14%
A86: 76 | B86: Oil_Gas | C86: GUJGASLTD | D86: 2023-03-29 | E86: 503.40 | F86: 503.78 | G86: 496.37 | H86: 489.33 | I86: 481.92 | J86: 510.82 | K86: 518.23 | L86: 525.27 | M86: 511.2 | N86: 496.75 | O86: 4311250 | P86: 2.13%
A87: 77 | B87: Others | C87: HAL | D87: 2023-03-29 | E87: 2668.30 | F87: 2651.42 | G87: 2618.88 | H87: 2569.47 | I87: 2536.93 | J87: 2700.83 | K87: 2733.37 | L87: 2782.78 | M87: 2683.95 | N87: 2602 | O87: 3507900 | P87: -0.74%
A88: 78 | B88: Capital_Goods | C88: HAVELLS | D88: 2023-03-29 | E88: 1205.40 | F88: 1198.08 | G88: 1186.02 | H88: 1166.63 | I88: 1154.57 | J88: 1217.47 | K88: 1229.53 | L88: 1248.92 | M88: 1210.15 | N88: 1178.7 | O88: 4806500 | P88: -1.47%
A89: 79 | B89: Technology | C89: HCLTECH | D89: 2023-03-29 | E89: 1088.85 | F89: 1092.63 | G89: 1078.37 | H89: 1067.88 | I89: 1053.62 | J89: 1103.12 | K89: 1117.38 | L89: 1127.87 | M89: 1106.9 | N89: 1082.15 | O89: 11967200 | P89: 0.08%
A90: 80 | B90: Finance | C90: HDFC | D90: 2023-03-29 | E90: 2591.55 | F90: 2581.53 | G90: 2567.57 | H90: 2543.58 | I90: 2529.62 | J90: 2605.52 | K90: 2619.48 | L90: 2643.47 | M90: 2595.5 | N90: 2557.55 | O90: 23720100 | P90: 1.27%
A91: 81 | B91: Finance | C91: HDFCAMC | D91: 2023-03-29 | E91: 1767.80 | F91: 1744.95 | G91: 1717.85 | H91: 1667.90 | I91: 1640.80 | J91: 1794.90 | K91: 1822.00 | L91: 1871.95 | M91: 1772.05 | N91: 1695 | O91: 3580500 | P91: -5.35%
A92: 82 | B92: Banking | C92: HDFCBANK | D92: 2023-03-29 | E92: 1585.45 | F92: 1578.75 | G92: 1568.90 | H92: 1552.35 | I92: 1542.50 | J92: 1595.30 | K92: 1605.15 | L92: 1621.70 | M92: 1588.6 | N92: 1562.2 | O92: 74966100 | P92: 0.46%
A93: 83 | B93: Finance | C93: HDFCLIFE | D93: 2023-03-29 | E93: 485.10 | F93: 479.93 | G93: 473.47 | H93: 461.83 | I93: 455.37 | J93: 491.57 | K93: 498.03 | L93: 509.67 | M93: 486.4 | N93: 468.3 | O93: 23940400 | P93: -2.25%
A94: 84 | B94: Automobile | C94: HEROMOTOCO | D94: 2023-03-29 | E94: 2361.80 | F94: 2356.68 | G94: 2346.12 | H94: 2330.43 | I94: 2319.87 | J94: 2372.37 | K94: 2382.93 | L94: 2398.62 | M94: 2367.25 | N94: 2341 | O94: 3037500 | P94: -0.28%
A95: 85 | B95: Metals | C95: HINDALCO | D95: 2023-03-29 | E95: 390.50 | F95: 389.88 | G95: 387.27 | H95: 384.03 | I95: 381.42 | J95: 393.12 | K95: 395.73 | L95: 398.97 | M95: 392.5 | N95: 386.65 | O95: 28880600 | P95: 1.45%
A96: 86 | B96: Metals | C96: HINDCOPPER | D96: 2023-03-29 | E96: 98.70 | F96: 98.37 | G96: 97.53 | H96: 96.37 | I96: 95.53 | J96: 99.53 | K96: 100.37 | L96: 101.53 | M96: 99.2 | N96: 97.2 | O96: 19742400 | P96: -0.56%
A97: 87 | B97: Oil_Gas | C97: HINDPETRO | D97: 2023-03-29 | E97: 245.90 | F97: 245.72 | G97: 243.33 | H97: 240.77 | I97: 238.38 | J97: 248.28 | K97: 250.67 | L97: 253.23 | M97: 248.1 | N97: 243.15 | O97: 21070800 | P97: -0.94%
A98: 88 | B98: FMCG | C98: HINDUNILVR | D98: 2023-03-29 | E98: 2474.35 | F98: 2490.42 | G98: 2454.38 | H98: 2434.42 | I98: 2398.38 | J98: 2510.38 | K98: 2546.42 | L98: 2566.38 | M98: 2526.45 | N98: 2470.45 | O98: 9790200 | P98: 0.44%
A99: 89 | B99: Others | C99: HONAUT | D99: 2023-03-29 | E99: 35469.50 | F99: 35327.20 | G99: 35036.60 | H99: 34603.70 | I99: 34313.10 | J99: 35760.10 | K99: 36050.70 | L99: 36483.60 | M99: 35617.8 | N99: 34894.3 | O99: 23370 | P99: 3.73%
A100: 90 | B100: Finance | C100: IBULHSGFIN | D100: 2023-03-29 | E100: 101.15 | F100: 101.15 | G100: 100.50 | H100: 99.85 | I100: 99.20 | J100: 101.80 | K100: 102.45 | L100: 103.10 | M100: 101.8 | N100: 100.5 | O100: 51716000 | P100: -0.55%
A101: 91 | B101: Banking | C101: ICICIBANK | D101: 2023-03-29 | E101: 854.40 | F101: 850.32 | G101: 844.58 | H101: 834.77 | I101: 829.03 | J101: 860.13 | K101: 865.87 | L101: 875.68 | M101: 856.05 | N101: 840.5 | O101: 72839900 | P101: -0.64%
A102: 92 | B102: Finance | C102: ICICIGI | D102: 2023-03-29 | E102: 1087.15 | F102: 1084.83 | G102: 1072.67 | H102: 1058.18 | I102: 1046.02 | J102: 1099.32 | K102: 1111.48 | L102: 1125.97 | M102: 1097 | N102: 1070.35 | O102: 3880250 | P102: -0.29%
A103: 93 | B103: Finance | C103: ICICIPRULI | D103: 2023-03-29 | E103: 418.15 | F103: 415.95 | G103: 405.85 | H103: 393.55 | I103: 383.45 | J103: 428.25 | K103: 438.35 | L103: 450.65 | M103: 426.05 | N103: 403.65 | O103: 17895000 | P103: 4.47%
A104: 94 | B104: Telecom | C104: IDEA | D104: 2023-03-29 | E104: 6.40 | F104: 6.38 | G104: 6.32 | H104: 6.23 | I104: 6.17 | J104: 6.47 | K104: 6.53 | L104: 6.62 | M104: 6.45 | N104: 6.3 | O104: 537250000 | P104: 1.29%
A105: 95 | B105: Finance | C105: IDFC | D105: 2023-03-29 | E105: 79.40 | F105: 78.75 | G105: 78.00 | H105: 76.60 | I105: 75.85 | J105: 80.15 | K105: 80.90 | L105: 82.30 | M105: 79.5 | N105: 77.35 | O105: 166080000 | P105: 0.33%
A106: 96 | B106: Banking | C106: IDFCFIRSTB | D106: 2023-03-29 | E106: 55.75 | F106: 55.42 | G106: 54.98 | H106: 54.22 | I106: 53.78 | J106: 56.18 | K106: 56.62 | L106: 57.38 | M106: 55.85 | N106: 54.65 | O106: 190320000 | P106: -0.56%
A107: 97 | B107: Others | C107: IEX | D107: 2023-03-29 | E107: 150.95 | F107: 151.23 | G107: 149.77 | H107: 148.58 | I107: 147.12 | J107: 152.42 | K107: 153.88 | L107: 155.07 | M107: 152.7 | N107: 150.05 | O107: 39618750 | P107: 0.04%
A108: 98 | B108: Oil_Gas | C108: IGL | D108: 2023-03-29 | E108: 442.85 | F108: 441.20 | G108: 437.85 | H108: 432.85 | I108: 429.50 | J108: 446.20 | K108: 449.55 | L108: 454.55 | M108: 444.55 | N108: 436.2 | O108: 12640375 | P108: 7.75%
A109: 99 | B109: Infrastructure | C109: INDHOTEL | D109: 2023-03-29 | E109: 319.50 | F109: 319.03 | G109: 317.32 | H109: 315.13 | I109: 313.42 | J109: 321.22 | K109: 322.93 | L109: 325.12 | M109: 320.75 | N109: 316.85 | O109: 22430000 | P109: 0.38%
A110: 100 | B110: Cement | C110: INDIACEM | D110: 2023-03-29 | E110: 181.05 | F110: 180.55 | G110: 178.70 | H110: 176.35 | I110: 174.50 | J110: 182.90 | K110: 184.75 | L110: 187.10 | M110: 182.4 | N110: 178.2 | O110: 18536800 | P110: 3.78%
A111: 101 | B111: Others | C111: INDIAMART | D111: 2023-03-29 | E111: 5120.80 | F111: 5056.18 | G111: 4956.17 | H111: 4791.53 | I111: 4691.52 | J111: 5220.82 | K111: 5320.83 | L111: 5485.47 | M111: 5156.2 | N111: 4891.55 | O111: 424350 | P111: 18.12%
A112: 102 | B112: Others | C112: INDIGO | D112: 2023-03-29 | E112: 1883.25 | F112: 1892.92 | G112: 1862.48 | H112: 1841.72 | I112: 1811.28 | J112: 1913.68 | K112: 1944.12 | L112: 1964.88 | M112: 1923.35 | N112: 1872.15 | O112: 3531600 | P112: 0.51%
A113: 103 | B113: Banking | C113: INDUSINDBK | D113: 2023-03-29 | E113: 1026.65 | F113: 1020.38 | G113: 1006.37 | H113: 986.08 | I113: 972.07 | J113: 1040.67 | K113: 1054.68 | L113: 1074.97 | M113: 1034.4 | N113: 1000.1 | O113: 31230450 | P113: 1.24%
A114: 104 | B114: Telecom | C114: INDUSTOWER | D114: 2023-03-29 | E114: 152.65 | F114: 152.58 | G114: 151.12 | H114: 149.58 | I114: 148.12 | J114: 154.12 | K114: 155.58 | L114: 157.12 | M114: 154.05 | N114: 151.05 | O114: 30923200 | P114: -1.93%
A115: 105 | B115: Technology | C115: INFY | D115: 2023-03-29 | E115: 1397.60 | F115: 1401.65 | G115: 1392.30 | H115: 1387.00 | I115: 1377.65 | J115: 1406.95 | K115: 1416.30 | L115: 1421.60 | M115: 1411 | N115: 1396.35 | O115: 38497200 | P115: 2.59%
A116: 106 | B116: Technology | C116: INTELLECT | D116: 2023-03-29 | E116: 410.70 | F116: 410.92 | G116: 405.33 | H116: 399.97 | I116: 394.38 | J116: 416.28 | K116: 421.87 | L116: 427.23 | M116: 416.5 | N116: 405.55 | O116: 4246000 | P116: -2.57%
A117: 107 | B117: Oil_Gas | C117: IOC | D117: 2023-03-29 | E117: 79.95 | F117: 80.27 | G117: 79.23 | H117: 78.52 | I117: 77.48 | J117: 80.98 | K117: 82.02 | L117: 82.73 | M117: 81.3 | N117: 79.55 | O117: 79950000 | P117: 1.00%
A118: 108 | B118: Pharma | C118: IPCALAB | D118: 2023-03-29 | E118: 782.20 | F118: 783.40 | G118: 777.30 | H118: 772.40 | I118: 766.30 | J118: 788.30 | K118: 794.40 | L118: 799.30 | M118: 789.5 | N118: 778.5 | O118: 2352350 | P118: -0.22%
A119: 109 | B119: Others | C119: IRCTC | D119: 2023-03-29 | E119: 609.55 | F119: 608.92 | G119: 605.58 | H119: 601.62 | I119: 598.28 | J119: 612.88 | K119: 616.22 | L119: 620.18 | M119: 612.25 | N119: 604.95 | O119: 13581750 | P119: 1.11%
A120: 110 | B120: FMCG | C120: ITC | D120: 2023-03-29 | E120: 378.25 | F120: 378.13 | G120: 375.22 | H120: 372.18 | I120: 369.27 | J120: 381.17 | K120: 384.08 | L120: 387.12 | M120: 381.05 | N120: 375.1 | O120: 60734400 | P120: 1.37%
A121: 111 | B121: Metals | C121: JINDALSTEL | D121: 2023-03-29 | E121: 560.60 | F121: 559.53 | G121: 554.07 | H121: 547.53 | I121: 542.07 | J121: 566.07 | K121: 571.53 | L121: 578.07 | M121: 565 | N121: 553 | O121: 22072500 | P121: 2.34%
A122: 112 | B122: Cement | C122: JKCEMENT | D122: 2023-03-29 | E122: 2821.70 | F122: 2822.98 | G122: 2785.97 | H122: 2750.23 | I122: 2713.22 | J122: 2858.72 | K122: 2895.73 | L122: 2931.47 | M122: 2860 | N122: 2787.25 | O122: 408750 | P122: 2.57%
A123: 113 | B123: Metals | C123: JSWSTEEL | D123: 2023-03-29 | E123: 668.40 | F123: 668.20 | G123: 664.00 | H123: 659.60 | I123: 655.40 | J123: 672.60 | K123: 676.80 | L123: 681.20 | M123: 672.4 | N123: 663.8 | O123: 23954400 | P123: -0.25%
A124: 114 | B124: Others | C124: JUBLFOOD | D124: 2023-03-29 | E124: 446.95 | F124: 443.30 | G124: 438.20 | H124: 429.45 | I124: 424.35 | J124: 452.05 | K124: 457.15 | L124: 465.90 | M124: 448.4 | N124: 434.55 | O124: 16056250 | P124: 0.41%
A125: 115 | B125: Banking | C125: KOTAKBANK | D125: 2023-03-29 | E125: 1711.45 | F125: 1707.23 | G125: 1699.07 | H125: 1686.68 | I125: 1678.52 | J125: 1719.62 | K125: 1727.78 | L125: 1740.17 | M125: 1715.4 | N125: 1694.85 | O125: 43207200 | P125: -0.08%
A126: 116 | B126: Finance | C126: L&TFH | D126: 2023-03-29 | E126: 85.75 | F126: 85.43 | G126: 84.62 | H126: 83.48 | I126: 82.67 | J126: 86.57 | K126: 87.38 | L126: 88.52 | M126: 86.25 | N126: 84.3 | O126: 72989396 | P126: -0.67%
A127: 117 | B127: Others | C127: LALPATHLAB | D127: 2023-03-29 | E127: 1788.70 | F127: 1796.75 | G127: 1774.70 | H127: 1760.70 | I127: 1738.65 | J127: 1810.75 | K127: 1832.80 | L127: 1846.80 | M127: 1818.8 | N127: 1782.75 | O127: 964000 | P127: -0.36%
A128: 118 | B128: Pharma | C128: LAURUSLABS | D128: 2023-03-29 | E128: 306.05 | F128: 304.68 | G128: 301.92 | H128: 297.78 | I128: 295.02 | J128: 308.82 | K128: 311.58 | L128: 315.72 | M128: 307.45 | N128: 300.55 | O128: 10080400 | P128: 0.08%
A129: 119 | B129: Finance | C129: LICHSGFIN | D129: 2023-03-29 | E129: 345.35 | F129: 345.55 | G129: 342.25 | H129: 339.15 | I129: 335.85 | J129: 348.65 | K129: 351.95 | L129: 355.05 | M129: 348.85 | N129: 342.45 | O129: 13398000 | P129: 3.08%
A130: 120 | B130: Capital_Goods | C130: LT | D130: 2023-03-29 | E130: 2212.40 | F130: 2210.60 | G130: 2195.05 | H130: 2177.70 | I130: 2162.15 | J130: 2227.95 | K130: 2243.50 | L130: 2260.85 | M130: 2226.15 | N130: 2193.25 | O130: 8107500 | P130: 4.65%
A131: 121 | B131: Technology | C131: LTIM | D131: 2023-03-29 | E131: 4681.85 | F131: 4687.92 | G131: 4649.08 | H131: 4616.32 | I131: 4577.48 | J131: 4720.68 | K131: 4759.52 | L131: 4792.28 | M131: 4726.75 | N131: 4655.15 | O131: 1309950 | P131: 1.02%
A132: 122 | B132: Technology | C132: LTTS | D132: 2023-03-29 | E132: 3428.10 | F132: 3453.07 | G132: 3388.83 | H132: 3349.57 | I132: 3285.33 | J132: 3492.33 | K132: 3556.57 | L132: 3595.83 | M132: 3517.3 | N132: 3413.8 | O132: 1506400 | P132: 0.70%
A133: 123 | B133: Pharma | C133: LUPIN | D133: 2023-03-29 | E133: 651.40 | F133: 651.18 | G133: 647.72 | H133: 644.03 | I133: 640.57 | J133: 654.87 | K133: 658.33 | L133: 662.02 | M133: 654.65 | N133: 647.5 | O133: 7373750 | P133: -1.11%
A134: 124 | B134: Automobile | C134: M&M | D134: 2023-03-29 | E134: 1166.05 | F134: 1169.10 | G134: 1158.75 | H134: 1151.45 | I134: 1141.10 | J134: 1176.40 | K134: 1186.75 | L134: 1194.05 | M134: 1179.45 | N134: 1161.8 | O134: 14897400 | P134: 2.54%
A135: 125 | B135: Finance | C135: M&MFIN | D135: 2023-03-29 | E135: 230.40 | F135: 228.27 | G135: 225.13 | H135: 219.87 | I135: 216.73 | J135: 233.53 | K135: 236.67 | L135: 241.93 | M135: 231.4 | N135: 223 | O135: 24692000 | P135: 5.13%
A136: 126 | B136: Finance | C136: MANAPPURAM | D136: 2023-03-29 | E136: 117.20 | F136: 116.15 | G136: 114.50 | H136: 111.80 | I136: 110.15 | J136: 118.85 | K136: 120.50 | L136: 123.20 | M136: 117.8 | N136: 113.45 | O136: 38238000 | P136: 2.30%
A137: 127 | B137: FMCG | C137: MARICO | D137: 2023-03-29 | E137: 482.95 | F137: 484.05 | G137: 480.75 | H137: 478.55 | I137: 475.25 | J137: 486.25 | K137: 489.55 | L137: 491.75 | M137: 487.35 | N137: 481.85 | O137: 9082800 | P137: 0.49%
A138: 128 | B138: Automobile | C138: MARUTI | D138: 2023-03-29 | E138: 8251.40 | F138: 8264.65 | G138: 8231.30 | H138: 8211.20 | I138: 8177.85 | J138: 8284.75 | K138: 8318.10 | L138: 8338.20 | M138: 8298 | N138: 8244.55 | O138: 2219800 | P138: 0.87%
A139: 129 | B139: FMCG | C139: MCDOWELL-N | D139: 2023-03-29 | E139: 771.80 | F139: 770.40 | G139: 765.85 | H139: 759.90 | I139: 755.35 | J139: 776.35 | K139: 780.90 | L139: 786.85 | M139: 774.95 | N139: 764.45 | O139: 12503125 | P139: 0.06%
A140: 130 | B140: Others | C140: MCX | D140: 2023-03-29 | E140: 1509.35 | F140: 1506.13 | G140: 1500.02 | H140: 1490.68 | I140: 1484.57 | J140: 1515.47 | K140: 1521.58 | L140: 1530.92 | M140: 1512.25 | N140: 1496.8 | O140: 933600 | P140: 4.48%
A141: 131 | B141: Pharma | C141: METROPOLIS | D141: 2023-03-29 | E141: 1243.15 | F141: 1254.85 | G141: 1229.35 | H141: 1215.55 | I141: 1190.05 | J141: 1268.65 | K141: 1294.15 | L141: 1307.95 | M141: 1280.35 | N141: 1241.05 | O141: 850800 | P141: 1.97%
A142: 132 | B142: Finance | C142: MFSL | D142: 2023-03-29 | E142: 633.05 | F142: 631.78 | G142: 618.07 | H142: 603.08 | I142: 589.37 | J142: 646.77 | K142: 660.48 | L142: 675.47 | M142: 645.5 | N142: 616.8 | O142: 4571450 | P142: 0.30%
A143: 133 | B143: Oil_Gas | C143: MGL | D143: 2023-03-29 | E143: 990.90 | F143: 992.97 | G143: 983.03 | H143: 975.17 | I143: 965.23 | J143: 1000.83 | K143: 1010.77 | L143: 1018.63 | M143: 1002.9 | N143: 985.1 | O143: 2701600 | P143: 3.11%
A144: 134 | B144: Automobile | C144: MOTHERSON | D144: 2023-03-29 | E144: 65.90 | F144: 65.63 | G144: 64.92 | H144: 63.93 | I144: 63.22 | J144: 66.62 | K144: 67.33 | L144: 68.32 | M144: 66.35 | N144: 64.65 | O144: 73635750 | P144: 0.80%
A145: 135 | B145: Technology | C145: MPHASIS | D145: 2023-03-29 | E145: 1802.20 | F145: 1811.57 | G145: 1787.13 | H145: 1772.07 | I145: 1747.63 | J145: 1826.63 | K145: 1851.07 | L145: 1866.13 | M145: 1836 | N145: 1796.5 | O145: 3081375 | P145: 2.26%
A146: 136 | B146: Automobile | C146: MRF | D146: 2023-03-29 | E146: 83960.40 | F146: 84308.78 | G146: 82897.62 | H146: 81834.83 | I146: 80423.67 | J146: 85371.57 | K146: 86782.73 | L146: 87845.52 | M146: 85719.95 | N146: 83246 | O146: 56790 | P146: -0.09%
A147: 137 | B147: Finance | C147: MUTHOOTFIN | D147: 2023-03-29 | E147: 970.20 | F147: 961.87 | G147: 946.83 | H147: 923.47 | I147: 908.43 | J147: 985.23 | K147: 1000.27 | L147: 1023.63 | M147: 976.9 | N147: 938.5 | O147: 8738400 | P147: -0.31%
A148: 138 | B148: Metals | C148: NATIONALUM | D148: 2023-03-29 | E148: 79.20 | F148: 78.97 | G148: 78.08 | H148: 76.97 | I148: 76.08 | J148: 80.08 | K148: 80.97 | L148: 82.08 | M148: 79.85 | N148: 77.85 | O148: 52605000 | P148: -0.96%
A149: 139 | B149: Others | C149: NAUKRI | D149: 2023-03-29 | E149: 3478.15 | F149: 3462.22 | G149: 3428.33 | H149: 3378.52 | I149: 3344.63 | J149: 3512.03 | K149: 3545.92 | L149: 3595.73 | M149: 3496.1 | N149: 3412.4 | O149: 1641375 | P149: -1.34%
A150: 140 | B150: Chemical | C150: NAVINFLUOR | D150: 2023-03-29 | E150: 4216.60 | F150: 4266.00 | G150: 4157.60 | H150: 4098.60 | I150: 3990.20 | J150: 4325.00 | K150: 4433.40 | L150: 4492.40 | M150: 4374.4 | N150: 4207 | O150: 542250 | P150: 7.40%
A151: 141 | B151: FMCG | C151: NESTLEIND | D151: 2023-03-29 | E151: 18943.90 | F151: 19025.75 | G151: 18792.80 | H151: 18641.70 | I151: 18408.75 | J151: 19176.85 | K151: 19409.80 | L151: 19560.90 | M151: 19258.7 | N151: 18874.65 | O151: 216120 | P151: -9.48%
A152: 142 | B152: Metals | C152: NMDC | D152: 2023-03-29 | E152: 111.90 | F152: 112.32 | G152: 110.73 | H152: 109.57 | I152: 107.98 | J152: 113.48 | K152: 115.07 | L152: 116.23 | M152: 113.9 | N152: 111.15 | O152: 55665000 | P152: 0.92%
A153: 143 | B153: Power | C153: NTPC | D153: 2023-03-29 | E153: 177.35 | F153: 176.90 | G153: 176.05 | H153: 174.75 | I153: 173.90 | J153: 178.20 | K153: 179.05 | L153: 180.35 | M153: 177.75 | N153: 175.6 | O153: 70537500 | P153: -3.90%
A154: 144 | B154: Realty | C154: OBEROIRLTY | D154: 2023-03-29 | E154: 866.75 | F154: 863.72 | G154: 858.98 | H154: 851.22 | I154: 846.48 | J154: 871.48 | K154: 876.22 | L154: 883.98 | M154: 868.45 | N154: 855.95 | O154: 6068300 | P154: -0.76%
A155: 145 | B155: Technology | C155: OFSS | D155: 2023-03-29 | E155: 3181.15 | F155: 3193.22 | G155: 3161.28 | H155: 3141.42 | I155: 3109.48 | J155: 3213.08 | K155: 3245.02 | L155: 3264.88 | M155: 3225.15 | N155: 3173.35 | O155: 292600 | P155: -0.07%
A156: 146 | B156: Oil_Gas | C156: ONGC | D156: 2023-03-29 | E156: 152.35 | F156: 152.45 | G156: 151.25 | H156: 150.15 | I156: 148.95 | J156: 153.55 | K156: 154.75 | L156: 155.85 | M156: 153.65 | N156: 151.35 | O156: 32209100 | P156: 1.44%
A157: 147 | B157: Textile | C157: PAGEIND | D157: 2023-03-29 | E157: 38306.75 | F157: 38200.30 | G157: 37910.65 | H157: 37514.55 | I157: 37224.90 | J157: 38596.40 | K157: 38886.05 | L157: 39282.15 | M157: 38489.95 | N157: 37804.2 | O157: 132810 | P157: -2.48%
A158: 148 | B158: Pharma | C158: PEL | D158: 2023-03-29 | E158: 681.90 | F158: 674.65 | G158: 664.80 | H158: 647.70 | I158: 637.85 | J158: 691.75 | K158: 701.60 | L158: 718.70 | M158: 684.5 | N158: 657.55 | O158: 9973700 | P158: -2.46%
A159: 149 | B159: Technology | C159: PERSISTENT | D159: 2023-03-29 | E159: 4492.85 | F159: 4516.12 | G159: 4437.93 | H159: 4383.02 | I159: 4304.83 | J159: 4571.03 | K159: 4649.22 | L159: 4704.13 | M159: 4594.3 | N159: 4461.2 | O159: 1129275 | P159: -2.73%
A160: 150 | B160: Oil_Gas | C160: PETRONET | D160: 2023-03-29 | E160: 235.15 | F160: 233.88 | G160: 231.97 | H160: 228.78 | I160: 226.87 | J160: 237.07 | K160: 238.98 | L160: 242.17 | M160: 235.8 | N160: 230.7 | O160: 13386000 | P160: -1.48%
A161: 151 | B161: Finance | C161: PFC | D161: 2023-03-29 | E161: 154.80 | F161: 153.55 | G161: 151.75 | H161: 148.70 | I161: 146.90 | J161: 156.60 | K161: 158.40 | L161: 161.45 | M161: 155.35 | N161: 150.5 | O161: 67797000 | P161: 0.20%
A162: 152 | B162: FMCG | C162: PIDILITIND | D162: 2023-03-29 | E162: 2367.80 | F162: 2374.08 | G162: 2353.72 | H162: 2339.63 | I162: 2319.27 | J162: 2388.17 | K162: 2408.53 | L162: 2422.62 | M162: 2394.45 | N162: 2360 | O162: 2811000 | P162: -1.21%
A163: 153 | B163: Chemical | C163: PIIND | D163: 2023-03-29 | E163: 2957.65 | F163: 2940.60 | G163: 2912.35 | H163: 2867.05 | I163: 2838.80 | J163: 2985.90 | K163: 3014.15 | L163: 3059.45 | M163: 2968.85 | N163: 2895.3 | O163: 2169750 | P163: 1.59%
A164: 154 | B164: Banking | C164: PNB | D164: 2023-03-29 | E164: 48.00 | F164: 47.75 | G164: 47.25 | H164: 46.50 | I164: 46.00 | J164: 48.50 | K164: 49.00 | L164: 49.75 | M164: 48.25 | N164: 47 | O164: 226080000 | P164: 1.41%
A165: 155 | B165: Others | C165: POLYCAB | D165: 2023-03-29 | E165: 2870.95 | F165: 2880.15 | G165: 2856.50 | H165: 2842.05 | I165: 2818.40 | J165: 2894.60 | K165: 2918.25 | L165: 2932.70 | M165: 2903.8 | N165: 2865.7 | O165: 1297500 | P165: -2.55%
A166: 156 | B166: Power | C166: POWERGRID | D166: 2023-03-29 | E166: 224.30 | F166: 225.50 | G166: 222.30 | H166: 220.30 | I166: 217.10 | J166: 227.50 | K166: 230.70 | L166: 232.70 | M166: 228.7 | N166: 223.5 | O166: 30528900 | P166: -0.62%
A167: 157 | B167: Media | C167: PVR | D167: 2023-03-29 | E167: 1575.10 | F167: 1576.00 | G167: 1563.15 | H167: 1551.20 | I167: 1538.35 | J167: 1587.95 | K167: 1600.80 | L167: 1612.75 | M167: 1588.85 | N167: 1564.05 | O167: 2409033 | P167: 0.20%
A168: 158 | B168: Others | C168: RAIN | D168: 2023-03-29 | E168: 155.55 | F168: 155.30 | G168: 154.35 | H168: 153.15 | I168: 152.20 | J168: 156.50 | K168: 157.45 | L168: 158.65 | M168: 156.25 | N168: 154.1 | O168: 12194000 | P168: -0.37%
A169: 159 | B169: Cement | C169: RAMCOCEM | D169: 2023-03-29 | E169: 728.20 | F169: 724.52 | G169: 719.13 | H169: 710.07 | I169: 704.68 | J169: 733.58 | K169: 738.97 | L169: 748.03 | M169: 729.9 | N169: 715.45 | O169: 2778650 | P169: 0.40%
A170: 160 | B170: Banking | C170: RBLBANK | D170: 2023-03-29 | E170: 141.90 | F170: 140.50 | G170: 138.50 | H170: 135.10 | I170: 133.10 | J170: 143.90 | K170: 145.90 | L170: 149.30 | M170: 142.5 | N170: 137.1 | O170: 39175000 | P170: -4.38%
A171: 161 | B171: Power | C171: RECLTD | D171: 2023-03-29 | E171: 119.15 | F171: 118.33 | G171: 117.27 | H171: 115.38 | I171: 114.32 | J171: 120.22 | K171: 121.28 | L171: 123.17 | M171: 119.4 | N171: 116.45 | O171: 60592000 | P171: -0.51%
A172: 162 | B172: Oil_Gas | C172: RELIANCE | D172: 2023-03-29 | E172: 2275.35 | F172: 2259.77 | G172: 2240.83 | H172: 2206.32 | I172: 2187.38 | J172: 2294.28 | K172: 2313.22 | L172: 2347.73 | M172: 2278.7 | N172: 2225.25 | O172: 46107500 | P172: -4.24%
A173: 163 | B173: Metals | C173: SAIL | D173: 2023-03-29 | E173: 86.50 | F173: 86.32 | G173: 85.63 | H173: 84.77 | I173: 84.08 | J173: 87.18 | K173: 87.87 | L173: 88.73 | M173: 87 | N173: 85.45 | O173: 107768000 | P173: -1.33%
A174: 164 | B174: Banking | C174: SBICARD | D174: 2023-03-29 | E174: 716.85 | F174: 716.18 | G174: 709.37 | H174: 701.88 | I174: 695.07 | J174: 723.67 | K174: 730.48 | L174: 737.97 | M174: 723 | N174: 708.7 | O174: 9862400 | P174: 1.02%
A175: 165 | B175: Finance | C175: SBILIFE | D175: 2023-03-29 | E175: 1102.95 | F175: 1095.78 | G175: 1087.17 | H175: 1071.38 | I175: 1062.77 | J175: 1111.57 | K175: 1120.18 | L175: 1135.97 | M175: 1104.4 | N175: 1080 | O175: 6732750 | P175: 1.22%
A176: 166 | B176: Banking | C176: SBIN | D176: 2023-03-29 | E176: 524.70 | F176: 523.23 | G176: 520.27 | H176: 515.83 | I176: 512.87 | J176: 527.67 | K176: 530.63 | L176: 535.07 | M176: 526.2 | N176: 518.8 | O176: 86293500 | P176: 5.83%
A177: 167 | B177: Cement | C177: SHREECEM | D177: 2023-03-29 | E177: 25125.55 | F177: 25065.87 | G177: 24935.88 | H177: 24746.22 | I177: 24616.23 | J177: 25255.53 | K177: 25385.52 | L177: 25575.18 | M177: 25195.85 | N177: 24876.2 | O177: 367575 | P177: 0.85%
A178: 168 | B178: Capital_Goods | C178: SIEMENS | D178: 2023-03-29 | E178: 3324.45 | F178: 3317.37 | G178: 3298.13 | H178: 3271.82 | I178: 3252.58 | J178: 3343.68 | K178: 3362.92 | L178: 3389.23 | M178: 3336.6 | N178: 3291.05 | O178: 1867800 | P178: 0.35%
A179: 169 | B179: Textile | C179: SRF | D179: 2023-03-29 | E179: 2353.60 | F179: 2343.73 | G179: 2317.97 | H179: 2282.33 | I179: 2256.57 | J179: 2379.37 | K179: 2405.13 | L179: 2440.77 | M179: 2369.5 | N179: 2308.1 | O179: 3541125 | P179: 6.75%
A180: 170 | B180: Finance | C180: SHRIRAMFIN | D180: 2023-03-29 | E180: 1262.30 | F180: 1249.57 | G180: 1234.98 | H180: 1207.67 | I180: 1193.08 | J180: 1276.88 | K180: 1291.47 | L180: 1318.78 | M180: 1264.15 | N180: 1222.25 | O180: 3838800 | P180: -1.58%
A181: 171 | B181: Pharma | C181: SUNPHARMA | D181: 2023-03-29 | E181: 958.70 | F181: 960.63 | G181: 955.02 | H181: 951.33 | I181: 945.72 | J181: 964.32 | K181: 969.93 | L181: 973.62 | M181: 966.25 | N181: 956.95 | O181: 18799900 | P181: -0.48%
A182: 172 | B182: Media | C182: SUNTV | D182: 2023-03-29 | E182: 431.95 | F182: 432.60 | G182: 429.85 | H182: 427.75 | I182: 425.00 | J182: 434.70 | K182: 437.45 | L182: 439.55 | M182: 435.35 | N182: 430.5 | O182: 9016500 | P182: 0.25%
A183: 173 | B183: Pharma | C183: SYNGENE | D183: 2023-03-29 | E183: 579.45 | F183: 578.70 | G183: 575.40 | H183: 571.35 | I183: 568.05 | J183: 582.75 | K183: 586.05 | L183: 590.10 | M183: 582 | N183: 574.65 | O183: 2174000 | P183: -2.51%
A184: 174 | B184: Chemical | C184: TATACHEM | D184: 2023-03-29 | E184: 957.50 | F184: 955.47 | G184: 951.33 | H184: 945.17 | I184: 941.03 | J184: 961.63 | K184: 965.77 | L184: 971.93 | M184: 959.6 | N184: 949.3 | O184: 5692000 | P184: 0.48%
A185: 175 | B185: Telecom | C185: TATACOMM | D185: 2023-03-29 | E185: 1216.00 | F185: 1208.87 | G185: 1194.13 | H185: 1172.27 | I185: 1157.53 | J185: 1230.73 | K185: 1245.47 | L185: 1267.33 | M185: 1223.6 | N185: 1187 | O185: 2147500 | P185: -1.90%
A186: 176 | B186: FMCG | C186: TATACONSUM | D186: 2023-03-29 | E186: 702.55 | F186: 703.83 | G186: 700.37 | H186: 698.18 | I186: 694.72 | J186: 706.02 | K186: 709.48 | L186: 711.67 | M186: 707.3 | N186: 701.65 | O186: 10691100 | P186: -0.07%
A187: 177 | B187: Automobile | C187: TATAMOTORS | D187: 2023-03-29 | E187: 414.65 | F187: 413.32 | G187: 410.68 | H187: 406.72 | I187: 404.08 | J187: 417.28 | K187: 419.92 | L187: 423.88 | M187: 415.95 | N187: 409.35 | O187: 59267175 | P187: -0.30%
A188: 178 | B188: Power | C188: TATAPOWER | D188: 2023-03-29 | E188: 202.95 | F188: 202.93 | G188: 202.02 | H188: 201.08 | I188: 200.17 | J188: 203.87 | K188: 204.78 | L188: 205.72 | M188: 203.85 | N188: 202 | O188: 95272875 | P188: 0.30%
A189: 179 | B189: Metals | C189: TATASTEEL | D189: 2023-03-29 | E189: 105.20 | F189: 105.08 | G189: 104.57 | H189: 103.93 | I189: 103.42 | J189: 105.72 | K189: 106.23 | L189: 106.87 | M189: 105.6 | N189: 104.45 | O189: 212338500 | P189: 0.73%
A190: 180 | B190: Technology | C190: TCS | D190: 2023-03-29 | E190: 3120.65 | F190: 3133.62 | G190: 3099.53 | H190: 3078.42 | I190: 3044.33 | J190: 3154.73 | K190: 3188.82 | L190: 3209.93 | M190: 3167.7 | N190: 3112.5 | O190: 12368650 | P190: 1.96%
A191: 181 | B191: Technology | C191: TECHM | D191: 2023-03-29 | E191: 1096.60 | F191: 1100.78 | G191: 1083.77 | H191: 1070.93 | I191: 1053.92 | J191: 1113.62 | K191: 1130.63 | L191: 1143.47 | M191: 1117.8 | N191: 1087.95 | O191: 11436000 | P191: -1.25%
A192: 182 | B192: FMCG | C192: TITAN | D192: 2023-03-29 | E192: 2518.90 | F192: 2506.87 | G192: 2485.78 | H192: 2452.67 | I192: 2431.58 | J192: 2539.98 | K192: 2561.07 | L192: 2594.18 | M192: 2527.95 | N192: 2473.75 | O192: 6277500 | P192: -3.02%
A193: 183 | B193: Pharma | C193: TORNTPHARM | D193: 2023-03-29 | E193: 1522.40 | F193: 1525.15 | G193: 1508.15 | H193: 1493.90 | I193: 1476.90 | J193: 1539.40 | K193: 1556.40 | L193: 1570.65 | M193: 1542.15 | N193: 1510.9 | O193: 1730000 | P193: -0.12%
A194: 184 | B194: Power | C194: TORNTPOWER | D194: 2023-03-29 | E194: 521.25 | F194: 524.78 | G194: 516.12 | H194: 510.98 | I194: 502.32 | J194: 529.92 | K194: 538.58 | L194: 543.72 | M194: 533.45 | N194: 519.65 | O194: 2991000 | P194: -1.72%
A195: 185 | B195: Others | C195: TRENT | D195: 2023-03-29 | E195: 1328.45 | F195: 1337.23 | G195: 1314.27 | H195: 1300.08 | I195: 1277.12 | J195: 1351.42 | K195: 1374.38 | L195: 1388.57 | M195: 1360.2 | N195: 1323.05 | O195: 3353200 | P195: 0.43%
A196: 186 | B196: Automobile | C196: TVSMOTOR | D196: 2023-03-29 | E196: 1053.40 | F196: 1051.27 | G196: 1046.93 | H196: 1040.47 | I196: 1036.13 | J196: 1057.73 | K196: 1062.07 | L196: 1068.53 | M196: 1055.6 | N196: 1044.8 | O196: 6086500 | P196: 2.10%
A197: 187 | B197: FMCG | C197: UBL | D197: 2023-03-29 | E197: 1440.90 | F197: 1444.98 | G197: 1433.97 | H197: 1427.03 | I197: 1416.02 | J197: 1451.92 | K197: 1462.93 | L197: 1469.87 | M197: 1456 | N197: 1438.05 | O197: 1202000 | P197: -0.03%
A198: 188 | B198: Cement | C198: ULTRACEMCO | D198: 2023-03-29 | E198: 7367.70 | F198: 7331.23 | G198: 7286.82 | H198: 7205.93 | I198: 7161.52 | J198: 7412.12 | K198: 7456.53 | L198: 7537.42 | M198: 7375.65 | N198: 7250.35 | O198: 1849800 | P198: -1.59%
A199: 189 | B199: Chemical | C199: UPL | D199: 2023-03-29 | E199: 711.40 | F199: 711.93 | G199: 706.92 | H199: 702.43 | I199: 697.42 | J199: 716.42 | K199: 721.43 | L199: 725.92 | M199: 716.95 | N199: 707.45 | O199: 16142100 | P199: -0.54%
A200: 190 | B200: Metals | C200: VEDL | D200: 2023-03-29 | E200: 284.65 | F200: 283.88 | G200: 282.02 | H200: 279.38 | I200: 277.52 | J200: 286.52 | K200: 288.38 | L200: 291.02 | M200: 285.75 | N200: 281.25 | O200: 40782000 | P200: -1.74%
A201: 191 | B201: Capital_Goods | C201: VOLTAS | D201: 2023-03-29 | E201: 840.45 | F201: 845.82 | G201: 831.63 | H201: 822.82 | I201: 808.63 | J201: 854.63 | K201: 868.82 | L201: 877.63 | M201: 860 | N201: 837 | O201: 6024600 | P201: 10.52%
A202: 192 | B202: Capital_Goods | C202: WHIRLPOOL | D202: 2023-03-29 | E202: 1342.80 | F202: 1338.05 | G202: 1327.55 | H202: 1312.30 | I202: 1301.80 | J202: 1353.30 | K202: 1363.80 | L202: 1379.05 | M202: 1348.55 | N202: 1322.8 | O202: 974750 | P202: 0.98%
A203: 193 | B203: Technology | C203: WIPRO | D203: 2023-03-29 | E203: 367.95 | F203: 367.98 | G203: 365.97 | H203: 363.98 | I203: 361.97 | J203: 369.97 | K203: 371.98 | L203: 373.97 | M203: 370 | N203: 366 | O203: 39109500 | P203: 1.02%
A204: 194 | B204: Media | C204: ZEEL | D204: 2023-03-29 | E204: 214.20 | F204: 212.40 | G204: 209.00 | H204: 203.80 | I204: 200.40 | J204: 217.60 | K204: 221.00 | L204: 226.20 | M204: 215.8 | N204: 207.2 | O204: 76563000 | P204: -0.84%
A205: 195 | B205: Pharma | C205: ZYDUSLIFE | D205: 2023-03-29 | E205: 479.20 | F205: 478.20 | G205: 475.40 | H205: 471.60 | I205: 468.80 | J205: 482.00 | K205: 484.80 | L205: 488.60 | M205: 481 | N205: 474.4 | O205: 6737400 | P205: -1.63%
A222: Pivot Point: This is trigger point for intra day buy/sell based on the price range of the previous day
... 14 more rows

Sheet Cash Intra
M5: Back to Main Page
A6: FOR INTRA DAY TRADING | K6: =Main!B10 -> 2023-03-22
A8: Sr.no | C8: CLOSE RATE | D8: Pivot Point | E8: Supports | H8: Resistances
E9: S1 | F9: S2 | G9: S3 | H9: R1 | I9: R2 | J9: R3 | K9: HIGH | L9: LOW | M9: Total Trade Quanity in Lakhs
A10: 1 | B10: Nifty 50 | C10: 17107.50 | D10: 17083.73 | E10: 17039.77 | F10: 16972.03 | G10: 16928.07 | H10: 17151.47 | I10: 17195.43 | J10: 17263.17 | K10: 17127.70 | L10: 17016.00
A11: 2 | B11: Nifty Bank | C11: 39894.70 | D11: 39743.97 | E11: 39517.03 | F11: 39139.37 | G11: 38912.43 | H11: 40121.63 | I11: 40348.57 | J11: 40726.23 | K11: 39970.90 | L11: 39366.30
A12: 3 | B12: Nifty CPSE | C12: 2905.80 | D12: 2911.95 | E12: 2890.50 | F12: 2875.20 | G12: 2853.75 | H12: 2927.25 | I12: 2948.70 | J12: 2964.00 | K12: 2933.40 | L12: 2896.65
A13: 4 | B13: Nifty Infra | C13: 5099.95 | D13: 5095.88 | E13: 5083.27 | F13: 5066.58 | G13: 5053.97 | H13: 5112.57 | I13: 5125.18 | J13: 5141.87 | K13: 5108.50 | L13: 5079.20
A14: 5 | B14: Nifty IT | C14: 28164.85 | D14: 28280.37 | E14: 28008.73 | F14: 27852.62 | G14: 27580.98 | H14: 28436.48 | I14: 28708.12 | J14: 28864.23 | K14: 28552.00 | L14: 28124.25
A15: 6 | B15: Nifty PSE | C15: 4520.05 | D15: 4523.90 | E15: 4495.50 | F15: 4470.95 | G15: 4442.55 | H15: 4548.45 | I15: 4576.85 | J15: 4601.40 | K15: 4552.30 | L15: 4499.35
A16: 7 | B16: Nifty Midcap 50 | C16: 8433.60 | D16: 8421.27 | E16: 8394.98 | F16: 8356.37 | G16: 8330.08 | H16: 8459.88 | I16: 8486.17 | J16: 8524.78 | K16: 8447.55 | L16: 8382.65
A17: 8 | B17: ABB | C17: 3412.35 | D17: 3381.43 | E17: 3329.92 | F17: 3247.48 | G17: 3195.97 | H17: 3463.87 | I17: 3515.38 | J17: 3597.82 | K17: 3432.95 | L17: 3299 | M17: 2.7842
A18: 9 | B18: ACC | C18: 1724.6 | D18: 1720.90 | E18: 1701.95 | F18: 1679.30 | G18: 1660.35 | H18: 1743.55 | I18: 1762.50 | J18: 1785.15 | K18: 1739.85 | L18: 1698.25 | M18: 3.06383
A19: 10 | B19: AUBANK | C19: 579.6 | D19: 577.00 | E19: 571.40 | F19: 563.20 | G19: 557.60 | H19: 585.20 | I19: 590.80 | J19: 599.00 | K19: 582.6 | L19: 568.8 | M19: 11.13971
A20: 11 | B20: ABBOTINDIA | C20: 21287.85 | D20: 21275.98 | E20: 21131.97 | F20: 20976.08 | G20: 20832.07 | H20: 21431.87 | I20: 21575.88 | J20: 21731.77 | K20: 21420 | L20: 21120.1 | M20: 0.05813
A21: 12 | B21: ADANIENT | C21: 1824.25 | D21: 1830.07 | E21: 1799.13 | F21: 1774.02 | G21: 1743.08 | H21: 1855.18 | I21: 1886.12 | J21: 1911.23 | K21: 1861 | L21: 1804.95 | M21: 40.94018
A22: 13 | B22: ADANIGREEN | C22: 891.05 | D22: 882.58 | E22: 874.12 | F22: 857.18 | G22: 848.72 | H22: 899.52 | I22: 907.98 | J22: 924.92 | K22: 891.05 | L22: 865.65 | M22: 38.19655
A23: 14 | B23: ADANIPORTS | C23: 664.8 | D23: 666.80 | E23: 659.20 | F23: 653.60 | G23: 646.00 | H23: 672.40 | I23: 680.00 | J23: 685.60 | K23: 674.4 | L23: 661.2 | M23: 50.11027
A24: 15 | B24: ATGL | C24: 890.8 | D24: 867.68 | E24: 839.87 | F24: 788.93 | G24: 761.12 | H24: 918.62 | I24: 946.43 | J24: 997.37 | K24: 895.5 | L24: 816.75 | M24: 22.90508
A25: 16 | B25: ADANITRANS | C25: 1006.1 | D25: 1005.37 | E25: 973.03 | F25: 939.97 | G25: 907.63 | H25: 1038.43 | I25: 1070.77 | J25: 1103.83 | K25: 1037.7 | L25: 972.3 | M25: 22.65181
A26: 17 | B26: AWL | C26: 418.75 | D26: 418.27 | E26: 410.73 | F26: 402.72 | G26: 395.18 | H26: 426.28 | I26: 433.82 | J26: 441.83 | K26: 425.8 | L26: 410.25 | M26: 27.87019
A27: 18 | B27: ABCAPITAL | C27: 152.65 | D27: 151.93 | E27: 150.72 | F27: 148.78 | G27: 147.57 | H27: 153.87 | I27: 155.08 | J27: 157.02 | K27: 153.15 | L27: 150 | M27: 22.22698
A28: 19 | B28: ABFRL | C28: 217.65 | D28: 217.30 | E28: 214.90 | F28: 212.15 | G28: 209.75 | H28: 220.05 | I28: 222.45 | J28: 225.20 | K28: 219.7 | L28: 214.55 | M28: 18.1045
A29: 20 | B29: ALKEM | C29: 3116.6 | D29: 3124.27 | E29: 3091.48 | F29: 3066.37 | G29: 3033.58 | H29: 3149.38 | I29: 3182.17 | J29: 3207.28 | K29: 3157.05 | L29: 3099.15 | M29: 0.39169
A30: 21 | B30: AMBUJACEM | C30: 370.9 | D30: 370.60 | E30: 366.50 | F30: 362.10 | G30: 358.00 | H30: 375.00 | I30: 379.10 | J30: 383.50 | K30: 374.7 | L30: 366.2 | M30: 71.59231
A31: 22 | B31: APOLLOHOSP | C31: 4274 | D31: 4297.97 | E31: 4242.03 | F31: 4210.07 | G31: 4154.13 | H31: 4329.93 | I31: 4385.87 | J31: 4417.83 | K31: 4353.9 | L31: 4266 | M31: 2.39304
A32: 23 | B32: ASHOKLEY | C32: 135.4 | D32: 135.95 | E32: 134.60 | F32: 133.80 | G32: 132.45 | H32: 136.75 | I32: 138.10 | J32: 138.90 | K32: 137.3 | L32: 135.15 | M32: 69.47802
A33: 24 | B33: ASIANPAINT | C33: 2839.1 | D33: 2853.70 | E33: 2820.40 | F33: 2801.70 | G33: 2768.40 | H33: 2872.40 | I33: 2905.70 | J33: 2924.40 | K33: 2887 | L33: 2835 | M33: 6.91891
A34: 25 | B34: ASTRAL | C34: 1334.5 | D34: 1331.28 | E34: 1322.57 | F34: 1310.63 | G34: 1301.92 | H34: 1343.22 | I34: 1351.93 | J34: 1363.87 | K34: 1340 | L34: 1319.35 | M34: 1.85674
A35: 26 | B35: AUROPHARMA | C35: 467.95 | D35: 471.25 | E35: 462.90 | F35: 457.85 | G35: 449.50 | H35: 476.30 | I35: 484.65 | J35: 489.70 | K35: 479.6 | L35: 466.2 | M35: 10.5709
A36: 27 | B36: DMART | C36: 3357.6 | D36: 3352.60 | E36: 3331.15 | F36: 3304.70 | G36: 3283.25 | H36: 3379.05 | I36: 3400.50 | J36: 3426.95 | K36: 3374.05 | L36: 3326.15 | M36: 2.2359
A37: 28 | B37: AXISBANK | C37: 855.6 | D37: 850.57 | E37: 843.78 | F37: 831.97 | G37: 825.18 | H37: 862.38 | I37: 869.17 | J37: 880.98 | K37: 857.35 | L37: 838.75 | M37: 114.89951
A38: 29 | B38: BAJAJ-AUTO | C38: 3905.7 | D38: 3874.82 | E38: 3827.63 | F38: 3749.57 | G38: 3702.38 | H38: 3952.88 | I38: 4000.07 | J38: 4078.13 | K38: 3922 | L38: 3796.75 | M38: 8.03886
A39: 30 | B39: BAJFINANCE | C39: 5710.1 | D39: 5670.42 | E39: 5625.83 | F39: 5541.57 | G39: 5496.98 | H39: 5754.68 | I39: 5799.27 | J39: 5883.53 | K39: 5715 | L39: 5586.15 | M39: 11.30114
A40: 31 | B40: BAJAJFINSV | C40: 1268.1 | D40: 1262.73 | E40: 1253.97 | F40: 1239.83 | G40: 1231.07 | H40: 1276.87 | I40: 1285.63 | J40: 1299.77 | K40: 1271.5 | L40: 1248.6 | M40: 23.33183
A41: 32 | B41: BAJAJHLDNG | C41: 6028.75 | D41: 5980.25 | E41: 5888.50 | F41: 5748.25 | G41: 5656.50 | H41: 6120.50 | I41: 6212.25 | J41: 6352.50 | K41: 6072 | L41: 5840 | M41: 0.42622
A42: 33 | B42: BALKRISIND | C42: 1965.55 | D42: 1973.68 | E42: 1952.02 | F42: 1938.48 | G42: 1916.82 | H42: 1987.22 | I42: 2008.88 | J42: 2022.42 | K42: 1995.35 | L42: 1960.15 | M42: 1.11253
A43: 34 | B43: BANDHANBNK | C43: 202.8 | D43: 201.68 | E43: 199.37 | F43: 195.93 | G43: 193.62 | H43: 205.12 | I43: 207.43 | J43: 210.87 | K43: 204 | L43: 198.25 | M43: 82.16894
A44: 35 | B44: BANKBARODA | C44: 163.05 | D44: 161.92 | E44: 160.43 | F44: 157.82 | G44: 156.33 | H44: 164.53 | I44: 166.02 | J44: 168.63 | K44: 163.4 | L44: 159.3 | M44: 257.02421
A45: 36 | B45: BANKINDIA | C45: 73.45 | D45: 73.20 | E45: 72.60 | F45: 71.75 | G45: 71.15 | H45: 74.05 | I45: 74.65 | J45: 75.50 | K45: 73.8 | L45: 72.35 | M45: 82.41954
A46: 37 | B46: BATAINDIA | C46: 1406.25 | D46: 1404.88 | E46: 1399.32 | F46: 1392.38 | G46: 1386.82 | H46: 1411.82 | I46: 1417.38 | J46: 1424.32 | K46: 1410.45 | L46: 1397.95 | M46: 1.55118
A47: 38 | B47: BERGEPAINT | C47: 594.7 | D47: 594.80 | E47: 590.90 | F47: 587.10 | G47: 583.20 | H47: 598.60 | I47: 602.50 | J47: 606.30 | K47: 598.7 | L47: 591 | M47: 5.14862
A48: 39 | B48: BEL | C48: 93.1 | D48: 92.97 | E48: 92.48 | F48: 91.87 | G48: 91.38 | H48: 93.58 | I48: 94.07 | J48: 94.68 | K48: 93.45 | L48: 92.35 | M48: 58.86671
A49: 40 | B49: BHARATFORG | C49: 778.05 | D49: 779.47 | E49: 768.73 | F49: 759.42 | G49: 748.68 | H49: 788.78 | I49: 799.52 | J49: 808.83 | K49: 790.2 | L49: 770.15 | M49: 8.25685
A50: 41 | B50: BHEL | C50: 75.85 | D50: 75.47 | E50: 74.93 | F50: 74.02 | G50: 73.48 | H50: 76.38 | I50: 76.92 | J50: 77.83 | K50: 76 | L50: 74.55 | M50: 65.83494
A51: 42 | B51: BPCL | C51: 358.55 | D51: 358.63 | E51: 355.67 | F51: 352.78 | G51: 349.82 | H51: 361.52 | I51: 364.48 | J51: 367.37 | K51: 361.6 | L51: 355.75 | M51: 51.25281
A52: 43 | B52: BHARTIARTL | C52: 756.95 | D52: 759.37 | E52: 752.73 | F52: 748.52 | G52: 741.88 | H52: 763.58 | I52: 770.22 | J52: 774.43 | K52: 766 | L52: 755.15 | M52: 53.32221
A53: 44 | B53: BIOCON | C53: 201.1 | D53: 198.75 | E53: 193.90 | F53: 186.70 | G53: 181.85 | H53: 205.95 | I53: 210.80 | J53: 218.00 | K53: 203.6 | L53: 191.55 | M53: 121.70982
A54: 45 | B54: BOSCHLTD | C54: 18369.75 | D54: 18320.25 | E54: 18172.10 | F54: 17974.45 | G54: 17826.30 | H54: 18517.90 | I54: 18666.05 | J54: 18863.70 | K54: 18468.4 | L54: 18122.6 | M54: 0.40044
A55: 46 | B55: BRITANNIA | C55: 4264.7 | D55: 4303.57 | E55: 4221.13 | F55: 4177.57 | G55: 4095.13 | H55: 4347.13 | I55: 4429.57 | J55: 4473.13 | K55: 4386 | L55: 4260 | M55: 2.31876
A56: 47 | B56: CANBK | C56: 284 | D56: 282.18 | E56: 278.92 | F56: 273.83 | G56: 270.57 | H56: 287.27 | I56: 290.53 | J56: 295.62 | K56: 285.45 | L56: 277.1 | M56: 73.30105
A57: 48 | B57: CHOLAFIN | C57: 754.6 | D57: 751.65 | E57: 745.15 | F57: 735.70 | G57: 729.20 | H57: 761.10 | I57: 767.60 | J57: 777.05 | K57: 758.15 | L57: 742.2 | M57: 18.96931
A58: 49 | B58: CIPLA | C58: 862.35 | D58: 865.12 | E58: 857.83 | F58: 853.32 | G58: 846.03 | H58: 869.63 | I58: 876.92 | J58: 881.43 | K58: 872.4 | L58: 860.6 | M58: 8.88443
A59: 50 | B59: CLEAN | C59: 1352.75 | D59: 1362.20 | E59: 1340.55 | F59: 1328.35 | G59: 1306.70 | H59: 1374.40 | I59: 1396.05 | J59: 1408.25 | K59: 1383.85 | L59: 1350 | M59: 0.51012
A60: 51 | B60: COALINDIA | C60: 217.05 | D60: 217.32 | E60: 215.68 | F60: 214.32 | G60: 212.68 | H60: 218.68 | I60: 220.32 | J60: 221.68 | K60: 218.95 | L60: 215.95 | M60: 39.98751
A61: 52 | B61: COFORGE | C61: 3712.6 | D61: 3738.50 | E61: 3677.20 | F61: 3641.80 | G61: 3580.50 | H61: 3773.90 | I61: 3835.20 | J61: 3870.60 | K61: 3799.8 | L61: 3703.1 | M61: 2.47105
A62: 53 | B62: COLPAL | C62: 1495.9 | D62: 1496.07 | E62: 1489.23 | F62: 1482.57 | G62: 1475.73 | H62: 1502.73 | I62: 1509.57 | J62: 1516.23 | K62: 1502.9 | L62: 1489.4 | M62: 2.57004
A63: 54 | B63: CONCOR | C63: 595.6 | D63: 594.17 | E63: 590.18 | F63: 584.77 | G63: 580.78 | H63: 599.58 | I63: 603.57 | J63: 608.98 | K63: 598.15 | L63: 588.75 | M63: 9.37449
A64: 55 | B64: COROMANDEL | C64: 862.4 | D64: 856.10 | E64: 847.80 | F64: 833.20 | G64: 824.90 | H64: 870.70 | I64: 879.00 | J64: 893.60 | K64: 864.4 | L64: 841.5 | M64: 2.9207
A65: 56 | B65: CROMPTON | C65: 292.25 | D65: 289.82 | E65: 283.68 | F65: 275.12 | G65: 268.98 | H65: 298.38 | I65: 304.52 | J65: 313.08 | K65: 295.95 | L65: 281.25 | M65: 38.17756
A66: 57 | B66: CUMMINSIND | C66: 1635.25 | D66: 1637.00 | E66: 1611.85 | F66: 1588.45 | G66: 1563.30 | H66: 1660.40 | I66: 1685.55 | J66: 1708.95 | K66: 1662.15 | L66: 1613.6 | M66: 6.88444
A67: 58 | B67: DLF | C67: 367.45 | D67: 368.72 | E67: 365.03 | F67: 362.62 | G67: 358.93 | H67: 371.13 | I67: 374.82 | J67: 377.23 | K67: 372.4 | L67: 366.3 | M67: 29.80424
A68: 59 | B68: DABUR | C68: 532.3 | D68: 534.43 | E68: 529.02 | F68: 525.73 | G68: 520.32 | H68: 537.72 | I68: 543.13 | J68: 546.42 | K68: 539.85 | L68: 531.15 | M68: 16.45563
A69: 60 | B69: DALBHARAT | C69: 1822.7 | D69: 1815.25 | E69: 1802.50 | F69: 1782.30 | G69: 1769.55 | H69: 1835.45 | I69: 1848.20 | J69: 1868.40 | K69: 1828 | L69: 1795.05 | M69: 3.38835
A70: 61 | B70: DEEPAKNTR | C70: 1795.7 | D70: 1804.55 | E70: 1781.15 | F70: 1766.60 | G70: 1743.20 | H70: 1819.10 | I70: 1842.50 | J70: 1857.05 | K70: 1827.95 | L70: 1790 | M70: 2.14379
A71: 62 | B71: DELHIVERY | C71: 328.9 | D71: 329.08 | E71: 324.87 | F71: 320.83 | G71: 316.62 | H71: 333.12 | I71: 337.33 | J71: 341.37 | K71: 333.3 | L71: 325.05 | M71: 5.57394
A72: 63 | B72: DIVISLAB | C72: 2767.9 | D72: 2784.30 | E72: 2745.60 | F72: 2723.30 | G72: 2684.60 | H72: 2806.60 | I72: 2845.30 | J72: 2867.60 | K72: 2823 | L72: 2762 | M72: 4.03214
A73: 64 | B73: DIXON | C73: 2900.05 | D73: 2914.37 | E73: 2880.68 | F73: 2861.32 | G73: 2827.63 | H73: 2933.73 | I73: 2967.42 | J73: 2986.78 | K73: 2948.05 | L73: 2895 | M73: 1.82196
A74: 65 | B74: LALPATHLAB | C74: 1779.85 | D74: 1787.73 | E74: 1765.22 | F74: 1750.58 | G74: 1728.07 | H74: 1802.37 | I74: 1824.88 | J74: 1839.52 | K74: 1810.25 | L74: 1773.1 | M74: 1.56082
A75: 66 | B75: DRREDDY | C75: 4419.35 | D75: 4436.18 | E75: 4392.37 | F75: 4365.38 | G75: 4321.57 | H75: 4463.17 | I75: 4506.98 | J75: 4533.97 | K75: 4480 | L75: 4409.2 | M75: 3.96928
A76: 67 | B76: EICHERMOT | C76: 2934.8 | D76: 2945.60 | E76: 2916.20 | F76: 2897.60 | G76: 2868.20 | H76: 2964.20 | I76: 2993.60 | J76: 3012.20 | K76: 2975 | L76: 2927 | M76: 4.90092
A77: 68 | B77: EMAMILTD | C77: 345 | D77: 344.50 | E77: 342.20 | F77: 339.40 | G77: 337.10 | H77: 347.30 | I77: 349.60 | J77: 352.40 | K77: 346.8 | L77: 341.7 | M77: 3.22142
A78: 69 | B78: ESCORTS | C78: 1898.45 | D78: 1905.95 | E78: 1886.90 | F78: 1875.35 | G78: 1856.30 | H78: 1917.50 | I78: 1936.55 | J78: 1948.10 | K78: 1925 | L78: 1894.4 | M78: 1.81997
A79: 70 | B79: NYKAA | C79: 139.6 | D79: 139.95 | E79: 138.25 | F79: 136.90 | G79: 135.20 | H79: 141.30 | I79: 143.00 | J79: 144.35 | K79: 141.65 | L79: 138.6 | M79: 26.38231
A80: 71 | B80: FEDERALBNK | C80: 128.8 | D80: 128.72 | E80: 127.68 | F80: 126.57 | G80: 125.53 | H80: 129.83 | I80: 130.87 | J80: 131.98 | K80: 129.75 | L80: 127.6 | M80: 77.19172
A81: 72 | B81: FORTIS | C81: 253.8 | D81: 255.62 | E81: 249.43 | F81: 245.07 | G81: 238.88 | H81: 259.98 | I81: 266.17 | J81: 270.53 | K81: 261.8 | L81: 251.25 | M81: 10.4148
A82: 73 | B82: GAIL | C82: 105.1 | D82: 105.70 | E82: 103.80 | F82: 102.50 | G82: 100.60 | H82: 107.00 | I82: 108.90 | J82: 110.20 | K82: 107.6 | L82: 104.4 | M82: 266.05735
A83: 74 | B83: GLAND | C83: 1224.55 | D83: 1221.88 | E83: 1163.77 | F83: 1102.98 | G83: 1044.87 | H83: 1282.67 | I83: 1340.78 | J83: 1401.57 | K83: 1280 | L83: 1161.1 | M83: 6.2973
A84: 75 | B84: GODREJCP | C84: 943.6 | D84: 949.55 | E84: 935.10 | F84: 926.60 | G84: 912.15 | H84: 958.05 | I84: 972.50 | J84: 981.00 | K84: 964 | L84: 941.05 | M84: 12.58265
A85: 76 | B85: GODREJPROP | C85: 1097.45 | D85: 1102.45 | E85: 1090.00 | F85: 1082.55 | G85: 1070.10 | H85: 1109.90 | I85: 1122.35 | J85: 1129.80 | K85: 1114.9 | L85: 1095 | M85: 3.01416
A86: 77 | B86: GRASIM | C86: 1606.2 | D86: 1600.98 | E86: 1592.97 | F86: 1579.73 | G86: 1571.72 | H86: 1614.22 | I86: 1622.23 | J86: 1635.47 | K86: 1609 | L86: 1587.75 | M86: 5.68561
A87: 78 | B87: GUJGASLTD | C87: 501.15 | D87: 502.05 | E87: 494.10 | F87: 487.05 | G87: 479.10 | H87: 509.10 | I87: 517.05 | J87: 524.10 | K87: 510 | L87: 495 | M87: 13.78566
A88: 79 | B88: GSPL | C88: 272.45 | D88: 271.63 | E88: 268.52 | F88: 264.58 | G88: 261.47 | H88: 275.57 | I88: 278.68 | J88: 282.62 | K88: 274.75 | L88: 267.7 | M88: 4.44031
A89: 80 | B89: HCLTECH | C89: 1083.9 | D89: 1087.80 | E89: 1073.20 | F89: 1062.50 | G89: 1047.90 | H89: 1098.50 | I89: 1113.10 | J89: 1123.80 | K89: 1102.4 | L89: 1077.1 | M89: 24.21127
A90: 81 | B90: HDFCAMC | C90: 1764.2 | D90: 1741.08 | E90: 1713.27 | F90: 1662.33 | G90: 1634.52 | H90: 1792.02 | I90: 1819.83 | J90: 1870.77 | K90: 1768.9 | L90: 1690.15 | M90: 18.83143
A91: 82 | B91: HDFCBANK | C91: 1579.45 | D91: 1572.72 | E91: 1562.93 | F91: 1546.42 | G91: 1536.63 | H91: 1589.23 | I91: 1599.02 | J91: 1615.53 | K91: 1582.5 | L91: 1556.2 | M91: 165.25247
A92: 83 | B92: HDFCLIFE | C92: 482.75 | D92: 477.75 | E92: 471.50 | F92: 460.25 | G92: 454.00 | H92: 489.00 | I92: 495.25 | J92: 506.50 | K92: 484 | L92: 466.5 | M92: 43.63583
A93: 84 | B93: HAVELLS | C93: 1202.35 | D93: 1195.28 | E93: 1183.12 | F93: 1163.88 | G93: 1151.72 | H93: 1214.52 | I93: 1226.68 | J93: 1245.92 | K93: 1207.45 | L93: 1176.05 | M93: 5.2454
A94: 85 | B94: HEROMOTOCO | C94: 2349.05 | D94: 2345.47 | E94: 2334.58 | F94: 2320.12 | G94: 2309.23 | H94: 2359.93 | I94: 2370.82 | J94: 2385.28 | K94: 2356.35 | L94: 2331 | M94: 2.91142
A95: 86 | B95: HINDALCO | C95: 388.55 | D95: 388.03 | E95: 385.47 | F95: 382.38 | G95: 379.82 | H95: 391.12 | I95: 393.68 | J95: 396.77 | K95: 390.6 | L95: 384.95 | M95: 60.80002
A96: 87 | B96: HAL | C96: 2655.55 | D96: 2639.85 | E96: 2607.70 | F96: 2559.85 | G96: 2527.70 | H96: 2687.70 | I96: 2719.85 | J96: 2767.70 | K96: 2672 | L96: 2592 | M96: 13.23667
A97: 88 | B97: HINDPETRO | C97: 244.75 | D97: 244.85 | E97: 242.00 | F97: 239.25 | G97: 236.40 | H97: 247.60 | I97: 250.45 | J97: 253.20 | K97: 247.7 | L97: 242.1 | M97: 33.59608
A98: 89 | B98: HINDUNILVR | C98: 2462.6 | D98: 2481.53 | E98: 2439.82 | F98: 2417.03 | G98: 2375.32 | H98: 2504.32 | I98: 2546.03 | J98: 2568.82 | K98: 2523.25 | L98: 2458.75 | M98: 15.95161
A99: 90 | B99: HINDZINC | C99: 310.6 | D99: 311.90 | E99: 307.80 | F99: 305.00 | G99: 300.90 | H99: 314.70 | I99: 318.80 | J99: 321.60 | K99: 316 | L99: 309.1 | M99: 15.6626
A100: 91 | B100: HONAUT | C100: 35390.65 | D100: 35230.22 | E100: 34960.43 | F100: 34530.22 | G100: 34260.43 | H100: 35660.43 | I100: 35930.22 | J100: 36360.43 | K100: 35500 | L100: 34800 | M100: 0.03469
A101: 92 | B101: HDFC | C101: 2580.7 | D101: 2572.28 | E101: 2560.57 | F101: 2540.43 | G101: 2528.72 | H101: 2592.42 | I101: 2604.13 | J101: 2624.27 | K101: 2584 | L101: 2552.15 | M101: 28.62486
A102: 93 | B102: ICICIBANK | C102: 852.4 | D102: 848.65 | E102: 842.80 | F102: 833.20 | G102: 827.35 | H102: 858.25 | I102: 864.10 | J102: 873.70 | K102: 854.5 | L102: 839.05 | M102: 187.55854
A103: 94 | B103: ICICIGI | C103: 1083.15 | D103: 1080.73 | E103: 1067.52 | F103: 1051.88 | G103: 1038.67 | H103: 1096.37 | I103: 1109.58 | J103: 1125.22 | K103: 1093.95 | L103: 1065.1 | M103: 7.07945
A104: 95 | B104: ICICIPRULI | C104: 415.9 | D104: 414.88 | E104: 405.77 | F104: 395.63 | G104: 386.52 | H104: 425.02 | I104: 434.13 | J104: 444.27 | K104: 424 | L104: 404.75 | M104: 43.12571
A105: 96 | B105: ISEC | C105: 434.2 | D105: 435.60 | E105: 430.60 | F105: 427.00 | G105: 422.00 | H105: 439.20 | I105: 444.20 | J105: 447.80 | K105: 440.6 | L105: 432 | M105: 2.35703
A106: 97 | B106: IDFCFIRSTB | C106: 55.7 | D106: 55.38 | E106: 54.87 | F106: 54.03 | G106: 53.52 | H106: 56.22 | I106: 56.73 | J106: 57.57 | K106: 55.9 | L106: 54.55 | M106: 201.86435
A107: 98 | B107: ITC | C107: 376.95 | D107: 376.60 | E107: 374.40 | F107: 371.85 | G107: 369.65 | H107: 379.15 | I107: 381.35 | J107: 383.90 | K107: 378.8 | L107: 374.05 | M107: 116.10832
A108: 99 | B108: INDIAMART | C108: 5102.3 | D108: 5047.58 | E108: 4955.22 | F108: 4808.13 | G108: 4715.77 | H108: 5194.67 | I108: 5287.03 | J108: 5434.12 | K108: 5139.95 | L108: 4900.5 | M108: 3.27455
A109: 100 | B109: INDIANB | C109: 272.8 | D109: 272.05 | E109: 268.75 | F109: 264.70 | G109: 261.40 | H109: 276.10 | I109: 279.40 | J109: 283.45 | K109: 275.35 | L109: 268 | M109: 12.31107
A110: 101 | B110: IEX | C110: 150.15 | D110: 150.52 | E110: 149.08 | F110: 148.02 | G110: 146.58 | H110: 151.58 | I110: 153.02 | J110: 154.08 | K110: 151.95 | L110: 149.45 | M110: 31.61625
A111: 102 | B111: INDHOTEL | C111: 317.85 | D111: 317.90 | E111: 315.90 | F111: 313.95 | G111: 311.95 | H111: 319.85 | I111: 321.85 | J111: 323.80 | K111: 319.9 | L111: 315.95 | M111: 17.93808
A112: 103 | B112: IOC | C112: 79.55 | D112: 80.00 | E112: 78.85 | F112: 78.15 | G112: 77.00 | H112: 80.70 | I112: 81.85 | J112: 82.55 | K112: 81.15 | L112: 79.3 | M112: 99.42587
A113: 104 | B113: IRCTC | C113: 606.75 | D113: 605.90 | E113: 603.00 | F113: 599.25 | G113: 596.35 | H113: 609.65 | I113: 612.55 | J113: 616.30 | K113: 608.8 | L113: 602.15 | M113: 8.2311
A114: 105 | B114: IGL | C114: 440.5 | D114: 439.17 | E114: 435.58 | F114: 430.67 | G114: 427.08 | H114: 444.08 | I114: 447.67 | J114: 452.58 | K114: 442.75 | L114: 434.25 | M114: 31.29978
A115: 106 | B115: INDUSTOWER | C115: 151.85 | D115: 152.43 | E115: 150.67 | F115: 149.48 | G115: 147.72 | H115: 153.62 | I115: 155.38 | J115: 156.57 | K115: 154.2 | L115: 151.25 | M115: 27.08793
A116: 107 | B116: INDUSINDBK | C116: 1022.85 | D116: 1016.27 | E116: 1002.58 | F116: 982.32 | G116: 968.63 | H116: 1036.53 | I116: 1050.22 | J116: 1070.48 | K116: 1029.95 | L116: 996 | M116: 62.00518
A117: 108 | B117: NAUKRI | C117: 3459.55 | D117: 3446.90 | E117: 3413.90 | F117: 3368.25 | G117: 3335.25 | H117: 3492.55 | I117: 3525.55 | J117: 3571.20 | K117: 3479.9 | L117: 3401.25 | M117: 1.85803
A118: 109 | B118: INFY | C118: 1390.7 | D118: 1395.23 | E118: 1385.47 | F118: 1380.23 | G118: 1370.47 | H118: 1400.47 | I118: 1410.23 | J118: 1415.47 | K118: 1405 | L118: 1390 | M118: 85.36755
A119: 110 | B119: INDIGO | C119: 1874.6 | D119: 1886.42 | E119: 1853.83 | F119: 1833.07 | G119: 1800.48 | H119: 1907.18 | I119: 1939.77 | J119: 1960.53 | K119: 1919 | L119: 1865.65 | M119: 4.08947
A120: 111 | B120: IPCALAB | C120: 779.9 | D120: 780.70 | E120: 773.95 | F120: 768.00 | G120: 761.25 | H120: 786.65 | I120: 793.40 | J120: 799.35 | K120: 787.45 | L120: 774.75 | M120: 1.52769
A121: 112 | B121: JSWENERGY | C121: 252.05 | D121: 251.63 | E121: 247.72 | F121: 243.38 | G121: 239.47 | H121: 255.97 | I121: 259.88 | J121: 264.22 | K121: 255.55 | L121: 247.3 | M121: 14.561
A122: 113 | B122: JSWSTEEL | C122: 665.75 | D122: 666.42 | E122: 661.33 | F122: 656.92 | G122: 651.83 | H122: 670.83 | I122: 675.92 | J122: 680.33 | K122: 671.5 | L122: 662 | M122: 11.33592
A123: 114 | B123: JINDALSTEL | C123: 559.25 | D123: 558.73 | E123: 552.77 | F123: 546.28 | G123: 540.32 | H123: 565.22 | I123: 571.18 | J123: 577.67 | K123: 564.7 | L123: 552.25 | M123: 19.48525
A124: 115 | B124: JUBLFOOD | C124: 445.2 | D124: 442.75 | E124: 437.50 | F124: 429.80 | G124: 424.55 | H124: 450.45 | I124: 455.70 | J124: 463.40 | K124: 448 | L124: 435.05 | M124: 27.23429
A125: 116 | B125: KOTAKBANK | C125: 1706.85 | D125: 1703.60 | E125: 1695.25 | F125: 1683.65 | G125: 1675.30 | H125: 1715.20 | I125: 1723.55 | J125: 1735.15 | K125: 1711.95 | L125: 1692 | M125: 18.0518
A126: 117 | B126: L&TFH | C126: 85.35 | D126: 85.07 | E126: 84.38 | F126: 83.42 | G126: 82.73 | H126: 86.03 | I126: 86.72 | J126: 87.68 | K126: 85.75 | L126: 84.1 | M126: 23.67654
A127: 118 | B127: LTTS | C127: 3426.9 | D127: 3455.68 | E127: 3383.22 | F127: 3339.53 | G127: 3267.07 | H127: 3499.37 | I127: 3571.83 | J127: 3615.52 | K127: 3528.15 | L127: 3412 | M127: 4.00505
A128: 119 | B128: LICHSGFIN | C128: 343.5 | D128: 344.10 | E128: 340.40 | F128: 337.30 | G128: 333.60 | H128: 347.20 | I128: 350.90 | J128: 354.00 | K128: 347.8 | L128: 341 | M128: 16.04798
A129: 120 | B129: LTIM | C129: 4674.1 | D129: 4681.75 | E129: 4639.60 | F129: 4605.10 | G129: 4562.95 | H129: 4716.25 | I129: 4758.40 | J129: 4792.90 | K129: 4723.9 | L129: 4647.25 | M129: 3.32833
A130: 121 | B130: LT | C130: 2208.45 | D130: 2205.82 | E130: 2184.63 | F130: 2160.82 | G130: 2139.63 | H130: 2229.63 | I130: 2250.82 | J130: 2274.63 | K130: 2227 | L130: 2182 | M130: 31.7868
A131: 122 | B131: LAURUSLABS | C131: 305.35 | D131: 303.57 | E131: 300.63 | F131: 295.92 | G131: 292.98 | H131: 308.28 | I131: 311.22 | J131: 315.93 | K131: 306.5 | L131: 298.85 | M131: 10.8223
A132: 123 | B132: LICI | C132: 572.55 | D132: 574.28 | E132: 569.82 | F132: 567.08 | G132: 562.62 | H132: 577.02 | I132: 581.48 | J132: 584.22 | K132: 578.75 | L132: 571.55 | M132: 7.79267
A133: 124 | B133: LINDEINDIA | C133: 3822.7 | D133: 3807.27 | E133: 3766.53 | F133: 3710.37 | G133: 3669.63 | H133: 3863.43 | I133: 3904.17 | J133: 3960.33 | K133: 3848 | L133: 3751.1 | M133: 0.38145
A134: 125 | B134: LUPIN | C134: 649.4 | D134: 650.32 | E134: 645.18 | F134: 640.97 | G134: 635.83 | H134: 654.53 | I134: 659.67 | J134: 663.88 | K134: 655.45 | L134: 646.1 | M134: 3.03443
A135: 126 | B135: MRF | C135: 83746 | D135: 84229.40 | E135: 82748.80 | F135: 81751.60 | G135: 80271.00 | H135: 85226.60 | I135: 86707.20 | J135: 87704.40 | K135: 85710 | L135: 83232.2 | M135: 0.0686
A136: 127 | B136: M&MFIN | C136: 229.55 | D136: 227.37 | E136: 224.43 | F136: 219.32 | G136: 216.38 | H136: 232.48 | I136: 235.42 | J136: 240.53 | K136: 230.3 | L136: 222.25 | M136: 61.34655
A137: 128 | B137: M&M | C137: 1160.3 | D137: 1163.90 | E137: 1152.80 | F137: 1145.30 | G137: 1134.20 | H137: 1171.40 | I137: 1182.50 | J137: 1190.00 | K137: 1175 | L137: 1156.4 | M137: 22.09422
A138: 129 | B138: MARICO | C138: 481.85 | D138: 482.03 | E138: 479.57 | F138: 477.28 | G138: 474.82 | H138: 484.32 | I138: 486.78 | J138: 489.07 | K138: 484.5 | L138: 479.75 | M138: 6.99575
A139: 130 | B139: MARUTI | C139: 8228.4 | D139: 8239.47 | E139: 8203.93 | F139: 8179.47 | G139: 8143.93 | H139: 8263.93 | I139: 8299.47 | J139: 8323.93 | K139: 8275 | L139: 8215 | M139: 2.87497
A140: 131 | B140: MFSL | C140: 629.7 | D140: 628.77 | E140: 615.03 | F140: 600.37 | G140: 586.63 | H140: 643.43 | I140: 657.17 | J140: 671.83 | K140: 642.5 | L140: 614.1 | M140: 17.67484
A141: 132 | B141: MAXHEALTH | C141: 464.5 | D141: 465.53 | E141: 460.62 | F141: 456.73 | G141: 451.82 | H141: 469.42 | I141: 474.33 | J141: 478.22 | K141: 470.45 | L141: 461.65 | M141: 50.89755
A142: 133 | B142: MSUMI | C142: 47.05 | D142: 46.80 | E142: 46.10 | F142: 45.15 | G142: 44.45 | H142: 47.75 | I142: 48.45 | J142: 49.40 | K142: 47.5 | L142: 45.85 | M142: 28.83474
A143: 134 | B143: MPHASIS | C143: 1792.3 | D143: 1802.30 | E143: 1775.80 | F143: 1759.30 | G143: 1732.80 | H143: 1818.80 | I143: 1845.30 | J143: 1861.80 | K143: 1828.8 | L143: 1785.8 | M143: 5.96353
A144: 135 | B144: MUTHOOTFIN | C144: 970.75 | D144: 962.08 | E144: 947.67 | F144: 924.58 | G144: 910.17 | H144: 985.17 | I144: 999.58 | J144: 1022.67 | K144: 976.5 | L144: 939 | M144: 9.54338
A145: 136 | B145: NTPC | C145: 177.1 | D145: 176.65 | E145: 175.75 | F145: 174.40 | G145: 173.50 | H145: 178.00 | I145: 178.90 | J145: 180.25 | K145: 177.55 | L145: 175.3 | M145: 128.94327
A146: 137 | B146: NATIONALUM | C146: 78.9 | D146: 78.78 | E146: 77.82 | F146: 76.73 | G146: 75.77 | H146: 79.87 | I146: 80.83 | J146: 81.92 | K146: 79.75 | L146: 77.7 | M146: 141.64118
A147: 138 | B147: NAVINFLUOR | C147: 4222.5 | D147: 4267.87 | E147: 4160.78 | F147: 4099.07 | G147: 3991.98 | H147: 4329.58 | I147: 4436.67 | J147: 4498.38 | K147: 4374.95 | L147: 4206.15 | M147: 3.36799
A148: 139 | B148: NESTLEIND | C148: 18927.4 | D148: 19002.15 | E148: 18745.30 | F148: 18563.20 | G148: 18306.35 | H148: 19184.25 | I148: 19441.10 | J148: 19623.20 | K148: 19259 | L148: 18820.05 | M148: 0.97762
A149: 140 | B149: NAM-INDIA | C149: 213.95 | D149: 215.05 | E149: 212.40 | F149: 210.85 | G149: 208.20 | H149: 216.60 | I149: 219.25 | J149: 220.80 | K149: 217.7 | L149: 213.5 | M149: 4.4946
A150: 141 | B150: OBEROIRLTY | C150: 862 | D150: 860.50 | E150: 855.60 | F150: 849.20 | G150: 844.30 | H150: 866.90 | I150: 871.80 | J150: 878.20 | K150: 865.4 | L150: 854.1 | M150: 1.34744
A151: 142 | B151: ONGC | C151: 151.55 | D151: 152.08 | E151: 150.42 | F151: 149.28 | G151: 147.62 | H151: 153.22 | I151: 154.88 | J151: 156.02 | K151: 153.75 | L151: 150.95 | M151: 61.48489
A152: 143 | B152: OIL | C152: 251.15 | D152: 250.57 | E152: 246.28 | F152: 241.42 | G152: 237.13 | H152: 255.43 | I152: 259.72 | J152: 264.58 | K152: 254.85 | L152: 245.7 | M152: 16.44605
A153: 144 | B153: PAYTM | C153: 583.9 | D153: 578.32 | E153: 570.38 | F153: 556.87 | G153: 548.93 | H153: 591.83 | I153: 599.77 | J153: 613.28 | K153: 586.25 | L153: 564.8 | M153: 43.97948
A154: 145 | B154: OFSS | C154: 3181.9 | D154: 3195.55 | E154: 3162.60 | F154: 3143.30 | G154: 3110.35 | H154: 3214.85 | I154: 3247.80 | J154: 3267.10 | K154: 3228.5 | L154: 3176.25 | M154: 0.69046
A155: 146 | B155: POLICYBZR | C155: 589.1 | D155: 589.03 | E155: 581.07 | F155: 573.03 | G155: 565.07 | H155: 597.07 | I155: 605.03 | J155: 613.07 | K155: 597 | L155: 581 | M155: 10.53555
A156: 147 | B156: PIIND | C156: 2944.3 | D156: 2936.42 | E156: 2918.88 | F156: 2893.47 | G156: 2875.93 | H156: 2961.83 | I156: 2979.37 | J156: 3004.78 | K156: 2953.95 | L156: 2911 | M156: 1.31063
A157: 148 | B157: PAGEIND | C157: 38228.2 | D157: 38095.95 | E157: 37877.00 | F157: 37525.80 | G157: 37306.85 | H157: 38447.15 | I157: 38666.10 | J157: 39017.30 | K157: 38314.9 | L157: 37744.75 | M157: 0.2357
A158: 149 | B158: PATANJALI | C158: 896.4 | D158: 891.48 | E158: 877.92 | F158: 859.43 | G158: 845.87 | H158: 909.97 | I158: 923.53 | J158: 942.02 | K158: 905.05 | L158: 873 | M158: 5.52048
A159: 150 | B159: PERSISTENT | C159: 4476.55 | D159: 4502.95 | E159: 4424.15 | F159: 4371.75 | G159: 4292.95 | H159: 4555.35 | I159: 4634.15 | J159: 4686.55 | K159: 4581.75 | L159: 4450.55 | M159: 2.77319
A160: 151 | B160: PETRONET | C160: 234.65 | D160: 233.70 | E160: 231.00 | F160: 227.35 | G160: 224.65 | H160: 237.35 | I160: 240.05 | J160: 243.70 | K160: 236.4 | L160: 230.05 | M160: 43.39052
A161: 152 | B161: PIDILITIND | C161: 2358.45 | D161: 2366.47 | E161: 2343.08 | F161: 2327.72 | G161: 2304.33 | H161: 2381.83 | I161: 2405.22 | J161: 2420.58 | K161: 2389.85 | L161: 2351.1 | M161: 2.99389
A162: 153 | B162: POLYCAB | C162: 2864 | D162: 2873.65 | E162: 2848.30 | F162: 2832.60 | G162: 2807.25 | H162: 2889.35 | I162: 2914.70 | J162: 2930.40 | K162: 2899 | L162: 2857.95 | M162: 2.28098
A163: 154 | B163: POONAWALLA | C163: 281.1 | D163: 280.23 | E163: 278.07 | F163: 275.03 | G163: 272.87 | H163: 283.27 | I163: 285.43 | J163: 288.47 | K163: 282.4 | L163: 277.2 | M163: 8.83264
A164: 155 | B164: PFC | C164: 154.15 | D164: 152.88 | E164: 151.07 | F164: 147.98 | G164: 146.17 | H164: 155.97 | I164: 157.78 | J164: 160.87 | K164: 154.7 | L164: 149.8 | M164: 70.56148
A165: 156 | B165: POWERGRID | C165: 223.15 | D165: 224.43 | E165: 221.17 | F165: 219.18 | G165: 215.92 | H165: 226.42 | I165: 229.68 | J165: 231.67 | K165: 227.7 | L165: 222.45 | M165: 84.54591
A166: 157 | B166: PRESTIGE | C166: 409.45 | D166: 410.67 | E166: 405.78 | F166: 402.12 | G166: 397.23 | H166: 414.33 | I166: 419.22 | J166: 422.88 | K166: 415.55 | L166: 407 | M166: 13.46455
A167: 158 | B167: PGHH | C167: 13882.2 | D167: 13811.43 | E167: 13526.82 | F167: 13171.43 | G167: 12886.82 | H167: 14166.82 | I167: 14451.43 | J167: 14806.82 | K167: 14096.05 | L167: 13456.05 | M167: 0.04838
A168: 159 | B168: PNB | C168: 47.75 | D168: 47.55 | E168: 47.05 | F168: 46.35 | G168: 45.85 | H168: 48.25 | I168: 48.75 | J168: 49.45 | K168: 48.05 | L168: 46.85 | M168: 407.35601
A169: 160 | B169: RECLTD | C169: 118.65 | D169: 117.90 | E169: 116.95 | F169: 115.25 | G169: 114.30 | H169: 119.60 | I169: 120.55 | J169: 122.25 | K169: 118.85 | L169: 116.2 | M169: 63.21736
A170: 161 | B170: RELIANCE | C170: 2269.7 | D170: 2253.57 | E170: 2233.13 | F170: 2196.57 | G170: 2176.13 | H170: 2290.13 | I170: 2310.57 | J170: 2347.13 | K170: 2274 | L170: 2217 | M170: 98.76263
A171: 162 | B171: SBICARD | C171: 717.45 | D171: 718.50 | E171: 711.05 | F171: 704.65 | G171: 697.20 | H171: 724.90 | I171: 732.35 | J171: 738.75 | K171: 725.95 | L171: 712.1 | M171: 6.966
A172: 163 | B172: SBILIFE | C172: 1097.7 | D172: 1090.82 | E172: 1081.93 | F172: 1066.17 | G172: 1057.28 | H172: 1106.58 | I172: 1115.47 | J172: 1131.23 | K172: 1099.7 | L172: 1075.05 | M172: 8.42669
A173: 164 | B173: SRF | C173: 2349.35 | D173: 2337.60 | E173: 2310.30 | F173: 2271.25 | G173: 2243.95 | H173: 2376.65 | I173: 2403.95 | J173: 2443.00 | K173: 2364.9 | L173: 2298.55 | M173: 6.19952
A174: 165 | B174: MOTHERSON | C174: 65.55 | D174: 65.47 | E174: 64.63 | F174: 63.72 | G174: 62.88 | H174: 66.38 | I174: 67.22 | J174: 68.13 | K174: 66.3 | L174: 64.55 | M174: 224.7082
A175: 166 | B175: SHREECEM | C175: 25142.9 | D175: 25070.32 | E175: 24950.63 | F175: 24758.37 | G175: 24638.68 | H175: 25262.58 | I175: 25382.27 | J175: 25574.53 | K175: 25190 | L175: 24878.05 | M175: 0.29461
A176: 167 | B176: SHRIRAMFIN | C176: 1260.5 | D176: 1255.75 | E176: 1222.85 | F176: 1185.20 | G176: 1152.30 | H176: 1293.40 | I176: 1326.30 | J176: 1363.95 | K176: 1288.65 | L176: 1218.1 | M176: 10.15872
A177: 168 | B177: SIEMENS | C177: 3313.15 | D177: 3309.67 | E177: 3286.48 | F177: 3259.82 | G177: 3236.63 | H177: 3336.33 | I177: 3359.52 | J177: 3386.18 | K177: 3332.85 | L177: 3283 | M177: 2.26226
A178: 169 | B178: SONACOMS | C178: 409.25 | D178: 408.42 | E178: 405.83 | F178: 402.42 | G178: 399.83 | H178: 411.83 | I178: 414.42 | J178: 417.83 | K178: 411 | L178: 405 | M178: 21.79679
A179: 170 | B179: SBIN | C179: 521.85 | D179: 520.58 | E179: 517.72 | F179: 513.58 | G179: 510.72 | H179: 524.72 | I179: 527.58 | J179: 531.72 | K179: 523.45 | L179: 516.45 | M179: 294.8518
A180: 171 | B180: SAIL | C180: 87.05 | D180: 86.95 | E180: 86.35 | F180: 85.65 | G180: 85.05 | H180: 87.65 | I180: 88.25 | J180: 88.95 | K180: 87.55 | L180: 86.25 | M180: 91.70696
A181: 172 | B181: SUNPHARMA | C181: 956.2 | D181: 958.15 | E181: 951.30 | F181: 946.40 | G181: 939.55 | H181: 963.05 | I181: 969.90 | J181: 974.80 | K181: 965 | L181: 953.25 | M181: 16.87239
A182: 173 | B182: SUNTV | C182: 429.55 | D182: 430.62 | E182: 427.23 | F182: 424.92 | G182: 421.53 | H182: 432.93 | I182: 436.32 | J182: 438.63 | K182: 434 | L182: 428.3 | M182: 2.17421
A183: 174 | B183: SYNGENE | C183: 578.6 | D183: 577.80 | E183: 574.90 | F183: 571.20 | G183: 568.30 | H183: 581.50 | I183: 584.40 | J183: 588.10 | K183: 580.7 | L183: 574.1 | M183: 4.25374
A184: 175 | B184: TVSMOTOR | C184: 1054.05 | D184: 1051.65 | E184: 1045.55 | F184: 1037.05 | G184: 1030.95 | H184: 1060.15 | I184: 1066.25 | J184: 1074.75 | K184: 1057.75 | L184: 1043.15 | M184: 9.72168
A185: 176 | B185: TATACHEM | C185: 953.2 | D185: 952.97 | E185: 948.23 | F185: 943.27 | G185: 938.53 | H185: 957.93 | I185: 962.67 | J185: 967.63 | K185: 957.7 | L185: 948 | M185: 3.66923
A186: 177 | B186: TATACOMM | C186: 1213.85 | D186: 1205.55 | E186: 1189.25 | F186: 1164.65 | G186: 1148.35 | H186: 1230.15 | I186: 1246.45 | J186: 1271.05 | K186: 1221.85 | L186: 1180.95 | M186: 3.65958
A187: 178 | B187: TCS | C187: 3106.1 | D187: 3120.10 | E187: 3083.45 | F187: 3060.80 | G187: 3024.15 | H187: 3142.75 | I187: 3179.40 | J187: 3202.05 | K187: 3156.75 | L187: 3097.45 | M187: 18.15297
A188: 179 | B188: TATACONSUM | C188: 700.9 | D188: 702.30 | E188: 698.60 | F188: 696.30 | G188: 692.60 | H188: 704.60 | I188: 708.30 | J188: 710.60 | K188: 706 | L188: 700 | M188: 7.21243
A189: 180 | B189: TATAELXSI | C189: 6089.7 | D189: 6102.90 | E189: 6035.80 | F189: 5981.90 | G189: 5914.80 | H189: 6156.80 | I189: 6223.90 | J189: 6277.80 | K189: 6170 | L189: 6049 | M189: 0.98216
A190: 181 | B190: TATAMOTORS | C190: 412.55 | D190: 411.38 | E190: 408.87 | F190: 405.18 | G190: 402.67 | H190: 415.07 | I190: 417.58 | J190: 421.27 | K190: 413.9 | L190: 407.7 | M190: 73.9195
A191: 182 | B191: TATAPOWER | C191: 202.3 | D191: 202.50 | E191: 201.40 | F191: 200.50 | G191: 199.40 | H191: 203.40 | I191: 204.50 | J191: 205.40 | K191: 203.6 | L191: 201.6 | M191: 44.31418
A192: 183 | B192: TATASTEEL | C192: 104.75 | D192: 104.82 | E192: 104.23 | F192: 103.72 | G192: 103.13 | H192: 105.33 | I192: 105.92 | J192: 106.43 | K192: 105.4 | L192: 104.3 | M192: 264.34897
A193: 184 | B193: TTML | C193: 56.65 | D193: 56.83 | E193: 56.02 | F193: 55.38 | G193: 54.57 | H193: 57.47 | I193: 58.28 | J193: 58.92 | K193: 57.65 | L193: 56.2 | M193: 13.37764
A194: 185 | B194: TECHM | C194: 1095.65 | D194: 1097.32 | E194: 1084.78 | F194: 1073.92 | G194: 1061.38 | H194: 1108.18 | I194: 1120.72 | J194: 1131.58 | K194: 1109.85 | L194: 1086.45 | M194: 33.54949
A195: 186 | B195: RAMCOCEM | C195: 725.55 | D195: 723.85 | E195: 718.75 | F195: 711.95 | G195: 706.85 | H195: 730.65 | I195: 735.75 | J195: 742.55 | K195: 728.95 | L195: 717.05 | M195: 2.51028
A196: 187 | B196: TITAN | C196: 2514.05 | D196: 2501.22 | E196: 2480.88 | F196: 2447.72 | G196: 2427.38 | H196: 2534.38 | I196: 2554.72 | J196: 2587.88 | K196: 2521.55 | L196: 2468.05 | M196: 16.52107
A197: 188 | B197: TORNTPHARM | C197: 1515 | D197: 1517.02 | E197: 1502.03 | F197: 1489.07 | G197: 1474.08 | H197: 1529.98 | I197: 1544.97 | J197: 1557.93 | K197: 1532 | L197: 1504.05 | M197: 2.20893
A198: 189 | B198: TORNTPOWER | C198: 519.15 | D198: 523.60 | E198: 512.50 | F198: 505.85 | G198: 494.75 | H198: 530.25 | I198: 541.35 | J198: 548.00 | K198: 534.7 | L198: 516.95 | M198: 4.11254
A199: 190 | B199: TRENT | C199: 1321.55 | D199: 1331.12 | E199: 1308.48 | F199: 1295.42 | G199: 1272.78 | H199: 1344.18 | I199: 1366.82 | J199: 1379.88 | K199: 1353.75 | L199: 1318.05 | M199: 3.18911
A200: 191 | B200: TRIDENT | C200: 27.15 | D200: 27.45 | E200: 26.60 | F200: 26.05 | G200: 25.20 | H200: 28.00 | I200: 28.85 | J200: 29.40 | K200: 28.3 | L200: 26.9 | M200: 84.40194
A201: 192 | B201: TIINDIA | C201: 2489.1 | D201: 2501.40 | E201: 2460.80 | F201: 2432.50 | G201: 2391.90 | H201: 2529.70 | I201: 2570.30 | J201: 2598.60 | K201: 2542 | L201: 2473.1 | M201: 1.77768
A202: 193 | B202: UPL | C202: 708.15 | D202: 710.93 | E202: 701.87 | F202: 695.58 | G202: 686.52 | H202: 717.22 | I202: 726.28 | J202: 732.57 | K202: 720 | L202: 704.65 | M202: 8.38991
A203: 194 | B203: ULTRACEMCO | C203: 7352.75 | D203: 7316.62 | E203: 7273.23 | F203: 7193.72 | G203: 7150.33 | H203: 7396.13 | I203: 7439.52 | J203: 7519.03 | K203: 7360 | L203: 7237.1 | M203: 3.50524
A204: 195 | B204: UNIONBANK | C204: 64.95 | D204: 64.50 | E204: 63.80 | F204: 62.65 | G204: 61.95 | H204: 65.65 | I204: 66.35 | J204: 67.50 | K204: 65.2 | L204: 63.35 | M204: 81.82952
A205: 196 | B205: UBL | C205: 1437.9 | D205: 1440.97 | E205: 1430.93 | F205: 1423.97 | G205: 1413.93 | H205: 1447.93 | I205: 1457.97 | J205: 1464.93 | K205: 1451 | L205: 1434 | M205: 1.20648
... 29 more rows

Sheet MidCap Intra
L5: Back To Main Page
A6: FOR INTRA DAY TRADING | K6: =Main!B10 -> 2023-03-22
A9: Sr.no | B9: Scrip | C9: CLOSE RATE | D9: Pivot Point | E9: Supports | H9: Resistances
E10: S1 | F10: S2 | G10: S3 | H10: R1 | I10: R2 | J10: R3 | K10: HIGH | L10: LOW | M10: Total Trade Quanity in Lakhs
A11: 1 | B11: 360ONE | C11: 401.45 | D11: 406.73 | E11: 389.82 | F11: 378.18 | G11: 361.27 | H11: 418.37 | I11: 435.28 | J11: 446.92 | K11: 423.65 | L11: 395.1 | M11: 2.79207
A12: 2 | B12: 3MINDIA | C12: 22733 | D12: 22844.63 | E12: 22490.37 | F12: 22247.73 | G12: 21893.47 | H12: 23087.27 | I12: 23441.53 | J12: 23684.17 | K12: 23198.9 | L12: 22602 | M12: 0.02017
A13: 3 | B13: ABB | C13: 3412.35 | D13: 3381.43 | E13: 3329.92 | F13: 3247.48 | G13: 3195.97 | H13: 3463.87 | I13: 3515.38 | J13: 3597.82 | K13: 3432.95 | L13: 3299 | M13: 2.7842
A14: 4 | B14: ACC | C14: 1724.6 | D14: 1720.90 | E14: 1701.95 | F14: 1679.30 | G14: 1660.35 | H14: 1743.55 | I14: 1762.50 | J14: 1785.15 | K14: 1739.85 | L14: 1698.25 | M14: 3.06383
A15: 5 | B15: AIAENG | C15: 2751.15 | D15: 2724.30 | E15: 2669.55 | F15: 2587.95 | G15: 2533.20 | H15: 2805.90 | I15: 2860.65 | J15: 2942.25 | K15: 2779.05 | L15: 2642.7 | M15: 0.57133
A16: 6 | B16: APLAPOLLO | C16: 1198.8 | D16: 1210.55 | E16: 1183.10 | F16: 1167.40 | G16: 1139.95 | H16: 1226.25 | I16: 1253.70 | J16: 1269.40 | K16: 1238 | L16: 1194.85 | M16: 3.21021
A17: 7 | B17: AUBANK | C17: 579.6 | D17: 577.00 | E17: 571.40 | F17: 563.20 | G17: 557.60 | H17: 585.20 | I17: 590.80 | J17: 599.00 | K17: 582.6 | L17: 568.8 | M17: 11.13971
A18: 8 | B18: AARTIDRUGS | C18: 382.8 | D18: 380.93 | E18: 367.37 | F18: 351.93 | G18: 338.37 | H18: 396.37 | I18: 409.93 | J18: 425.37 | K18: 394.5 | L18: 365.5 | M18: 117.40936
A19: 9 | B19: AAVAS | C19: 1690.4 | D19: 1679.32 | E19: 1659.63 | F19: 1628.87 | G19: 1609.18 | H19: 1710.08 | I19: 1729.77 | J19: 1760.53 | K19: 1699 | L19: 1648.55 | M19: 0.83881
A20: 10 | B20: ABBOTINDIA | C20: 21287.85 | D20: 21275.98 | E20: 21131.97 | F20: 20976.08 | G20: 20832.07 | H20: 21431.87 | I20: 21575.88 | J20: 21731.77 | K20: 21420 | L20: 21120.1 | M20: 0.05813
A21: 11 | B21: ADANIENT | C21: 1824.25 | D21: 1830.07 | E21: 1799.13 | F21: 1774.02 | G21: 1743.08 | H21: 1855.18 | I21: 1886.12 | J21: 1911.23 | K21: 1861 | L21: 1804.95 | M21: 40.94018
A22: 12 | B22: ADANIGREEN | C22: 891.05 | D22: 882.58 | E22: 874.12 | F22: 857.18 | G22: 848.72 | H22: 899.52 | I22: 907.98 | J22: 924.92 | K22: 891.05 | L22: 865.65 | M22: 38.19655
A23: 13 | B23: ADANIPORTS | C23: 664.8 | D23: 666.80 | E23: 659.20 | F23: 653.60 | G23: 646.00 | H23: 672.40 | I23: 680.00 | J23: 685.60 | K23: 674.4 | L23: 661.2 | M23: 50.11027
A24: 14 | B24: ATGL | C24: 890.8 | D24: 867.68 | E24: 839.87 | F24: 788.93 | G24: 761.12 | H24: 918.62 | I24: 946.43 | J24: 997.37 | K24: 895.5 | L24: 816.75 | M24: 22.90508
A25: 15 | B25: ADANITRANS | C25: 1006.1 | D25: 1005.37 | E25: 973.03 | F25: 939.97 | G25: 907.63 | H25: 1038.43 | I25: 1070.77 | J25: 1103.83 | K25: 1037.7 | L25: 972.3 | M25: 22.65181
A26: 16 | B26: AWL | C26: 418.75 | D26: 418.27 | E26: 410.73 | F26: 402.72 | G26: 395.18 | H26: 426.28 | I26: 433.82 | J26: 441.83 | K26: 425.8 | L26: 410.25 | M26: 27.87019
A27: 17 | B27: ABCAPITAL | C27: 152.65 | D27: 151.93 | E27: 150.72 | F27: 148.78 | G27: 147.57 | H27: 153.87 | I27: 155.08 | J27: 157.02 | K27: 153.15 | L27: 150 | M27: 22.22698
A28: 18 | B28: ABFRL | C28: 217.65 | D28: 217.30 | E28: 214.90 | F28: 212.15 | G28: 209.75 | H28: 220.05 | I28: 222.45 | J28: 225.20 | K28: 219.7 | L28: 214.55 | M28: 18.1045
A29: 19 | B29: ABSLAMC | C29: 357.75 | D29: 358.10 | E29: 356.15 | F29: 354.55 | G29: 352.60 | H29: 359.70 | I29: 361.65 | J29: 363.25 | K29: 360.05 | L29: 356.5 | M29: 0.54118
A30: 20 | B30: AEGISCHEM | C30: 370.65 | D30: 367.72 | E30: 362.43 | F30: 354.22 | G30: 348.93 | H30: 375.93 | I30: 381.22 | J30: 389.43 | K30: 373 | L30: 359.5 | M30: 3.13557
A31: 21 | B31: AETHER | C31: 871.55 | D31: 873.18 | E31: 862.37 | F31: 853.18 | G31: 842.37 | H31: 882.37 | I31: 893.18 | J31: 902.37 | K31: 884 | L31: 864 | M31: 0.17636
A32: 22 | B32: AFFLE | C32: 976.8 | D32: 982.25 | E32: 966.60 | F32: 956.40 | G32: 940.75 | H32: 992.45 | I32: 1008.10 | J32: 1018.30 | K32: 997.9 | L32: 972.05 | M32: 1.43408
A33: 23 | B33: AJANTPHARM | C33: 1205.75 | D33: 1201.67 | E33: 1193.53 | F33: 1181.32 | G33: 1173.18 | H33: 1213.88 | I33: 1222.02 | J33: 1234.23 | K33: 1209.8 | L33: 1189.45 | M33: 0.38783
A34: 24 | B34: APLLTD | C34: 492.65 | D34: 489.83 | E34: 482.67 | F34: 472.68 | G34: 465.52 | H34: 499.82 | I34: 506.98 | J34: 516.97 | K34: 497 | L34: 479.85 | M34: 1.10829
A35: 25 | B35: ALKEM | C35: 3116.6 | D35: 3124.27 | E35: 3091.48 | F35: 3066.37 | G35: 3033.58 | H35: 3149.38 | I35: 3182.17 | J35: 3207.28 | K35: 3157.05 | L35: 3099.15 | M35: 0.39169
A36: 26 | B36: ALKYLAMINE | C36: 2316.15 | D36: 2327.98 | E36: 2298.17 | F36: 2280.18 | G36: 2250.37 | H36: 2345.97 | I36: 2375.78 | J36: 2393.77 | K36: 2357.8 | L36: 2310 | M36: 0.21263
A37: 27 | B37: ALOKINDS | C37: 12.5 | D37: 12.52 | E37: 12.18 | F37: 11.87 | G37: 11.53 | H37: 12.83 | I37: 13.17 | J37: 13.48 | K37: 12.85 | L37: 12.2 | M37: 39.25653
A38: 28 | B38: AMARAJABAT | C38: 577.3 | D38: 576.58 | E38: 573.27 | F38: 569.23 | G38: 565.92 | H38: 580.62 | I38: 583.93 | J38: 587.97 | K38: 579.9 | L38: 572.55 | M38: 2.48207
A39: 29 | B39: AMBER | C39: 1868.85 | D39: 1881.33 | E39: 1852.52 | F39: 1836.18 | G39: 1807.37 | H39: 1897.67 | I39: 1926.48 | J39: 1942.82 | K39: 1910.15 | L39: 1865 | M39: 0.27389
A40: 30 | B40: AMBUJACEM | C40: 370.9 | D40: 370.60 | E40: 366.50 | F40: 362.10 | G40: 358.00 | H40: 375.00 | I40: 379.10 | J40: 383.50 | K40: 374.7 | L40: 366.2 | M40: 71.59231
A41: 31 | B41: ANGELONE | C41: 1091.8 | D41: 1088.88 | E41: 1074.92 | F41: 1058.03 | G41: 1044.07 | H41: 1105.77 | I41: 1119.73 | J41: 1136.62 | K41: 1102.85 | L41: 1072 | M41: 1.97883
A42: 32 | B42: ANURAS | C42: 807.4 | D42: 789.95 | E42: 763.55 | F42: 719.70 | G42: 693.30 | H42: 833.80 | I42: 860.20 | J42: 904.05 | K42: 816.35 | L42: 746.1 | M42: 9.37081
A43: 33 | B43: APOLLOHOSP | C43: 4274 | D43: 4297.97 | E43: 4242.03 | F43: 4210.07 | G43: 4154.13 | H43: 4329.93 | I43: 4385.87 | J43: 4417.83 | K43: 4353.9 | L43: 4266 | M43: 2.39304
A44: 34 | B44: APOLLOTYRE | C44: 317 | D44: 313.85 | E44: 309.10 | F44: 301.20 | G44: 296.45 | H44: 321.75 | I44: 326.50 | J44: 334.40 | K44: 318.6 | L44: 305.95 | M44: 18.22097
A45: 35 | B45: APTUS | C45: 248.6 | D45: 247.67 | E45: 244.13 | F45: 239.67 | G45: 236.13 | H45: 252.13 | I45: 255.67 | J45: 260.13 | K45: 251.2 | L45: 243.2 | M45: 1.83954
A46: 36 | B46: ASAHIINDIA | C46: 462.15 | D46: 463.55 | E46: 457.65 | F46: 453.15 | G46: 447.25 | H46: 468.05 | I46: 473.95 | J46: 478.45 | K46: 469.45 | L46: 459.05 | M46: 0.61373
A47: 37 | B47: ASHOKLEY | C47: 135.4 | D47: 135.95 | E47: 134.60 | F47: 133.80 | G47: 132.45 | H47: 136.75 | I47: 138.10 | J47: 138.90 | K47: 137.3 | L47: 135.15 | M47: 69.47802
A48: 38 | B48: ASIANPAINT | C48: 2839.1 | D48: 2853.70 | E48: 2820.40 | F48: 2801.70 | G48: 2768.40 | H48: 2872.40 | I48: 2905.70 | J48: 2924.40 | K48: 2887 | L48: 2835 | M48: 6.91891
A49: 39 | B49: ASTERDM | C49: 236.25 | D49: 238.25 | E49: 231.70 | F49: 227.15 | G49: 220.60 | H49: 242.80 | I49: 249.35 | J49: 253.90 | K49: 244.8 | L49: 233.7 | M49: 3.16654
A50: 40 | B50: ASTRAZEN | C50: 3368.1 | D50: 3356.17 | E50: 3334.38 | F50: 3300.67 | G50: 3278.88 | H50: 3389.88 | I50: 3411.67 | J50: 3445.38 | K50: 3377.95 | L50: 3322.45 | M50: 0.04931
A51: 41 | B51: ASTRAL | C51: 1334.5 | D51: 1331.28 | E51: 1322.57 | F51: 1310.63 | G51: 1301.92 | H51: 1343.22 | I51: 1351.93 | J51: 1363.87 | K51: 1340 | L51: 1319.35 | M51: 1.85674
A52: 42 | B52: ATUL | C52: 7042.7 | D52: 7050.90 | E52: 6981.80 | F52: 6920.90 | G52: 6851.80 | H52: 7111.80 | I52: 7180.90 | J52: 7241.80 | K52: 7120 | L52: 6990 | M52: 0.21486
A53: 43 | B53: AUROPHARMA | C53: 467.95 | D53: 471.25 | E53: 462.90 | F53: 457.85 | G53: 449.50 | H53: 476.30 | I53: 484.65 | J53: 489.70 | K53: 479.6 | L53: 466.2 | M53: 10.5709
A54: 44 | B54: AVANTIFEED | C54: 334.3 | D54: 337.33 | E54: 330.67 | F54: 327.03 | G54: 320.37 | H54: 340.97 | I54: 347.63 | J54: 351.27 | K54: 344 | L54: 333.7 | M54: 8.16603
A55: 45 | B55: DMART | C55: 3357.6 | D55: 3352.60 | E55: 3331.15 | F55: 3304.70 | G55: 3283.25 | H55: 3379.05 | I55: 3400.50 | J55: 3426.95 | K55: 3374.05 | L55: 3326.15 | M55: 2.2359
A56: 46 | B56: AXISBANK | C56: 855.6 | D56: 850.57 | E56: 843.78 | F56: 831.97 | G56: 825.18 | H56: 862.38 | I56: 869.17 | J56: 880.98 | K56: 857.35 | L56: 838.75 | M56: 114.89951
A57: 47 | B57: BASF | C57: 2369.95 | D57: 2339.18 | E57: 2279.97 | F57: 2189.98 | G57: 2130.77 | H57: 2429.17 | I57: 2488.38 | J57: 2578.37 | K57: 2398.4 | L57: 2249.2 | M57: 0.28275
A58: 48 | B58: BEML | C58: 1203.05 | D58: 1201.72 | E58: 1191.43 | F58: 1179.82 | G58: 1169.53 | H58: 1213.33 | I58: 1223.62 | J58: 1235.23 | K58: 1212 | L58: 1190.1 | M58: 0.74076
A59: 49 | B59: BSE | C59: 435.35 | D59: 436.30 | E59: 433.10 | F59: 430.85 | G59: 427.65 | H59: 438.55 | I59: 441.75 | J59: 444.00 | K59: 439.5 | L59: 434.05 | M59: 3.2737
A60: 50 | B60: BAJAJ-AUTO | C60: 3905.7 | D60: 3874.82 | E60: 3827.63 | F60: 3749.57 | G60: 3702.38 | H60: 3952.88 | I60: 4000.07 | J60: 4078.13 | K60: 3922 | L60: 3796.75 | M60: 8.03886
A61: 51 | B61: BAJAJELEC | C61: 1094.8 | D61: 1088.28 | E61: 1078.57 | F61: 1062.33 | G61: 1052.62 | H61: 1104.52 | I61: 1114.23 | J61: 1130.47 | K61: 1098 | L61: 1072.05 | M61: 0.62107
A62: 52 | B62: BAJFINANCE | C62: 5710.1 | D62: 5670.42 | E62: 5625.83 | F62: 5541.57 | G62: 5496.98 | H62: 5754.68 | I62: 5799.27 | J62: 5883.53 | K62: 5715 | L62: 5586.15 | M62: 11.30114
A63: 53 | B63: BAJAJFINSV | C63: 1268.1 | D63: 1262.73 | E63: 1253.97 | F63: 1239.83 | G63: 1231.07 | H63: 1276.87 | I63: 1285.63 | J63: 1299.77 | K63: 1271.5 | L63: 1248.6 | M63: 23.33183
A64: 54 | B64: BAJAJHLDNG | C64: 6028.75 | D64: 5980.25 | E64: 5888.50 | F64: 5748.25 | G64: 5656.50 | H64: 6120.50 | I64: 6212.25 | J64: 6352.50 | K64: 6072 | L64: 5840 | M64: 0.42622
A65: 55 | B65: BALAMINES | C65: 2004.35 | D65: 2006.50 | E65: 1974.00 | F65: 1943.65 | G65: 1911.15 | H65: 2036.85 | I65: 2069.35 | J65: 2099.70 | K65: 2039 | L65: 1976.15 | M65: 0.52064
A66: 56 | B66: BALKRISIND | C66: 1965.55 | D66: 1973.68 | E66: 1952.02 | F66: 1938.48 | G66: 1916.82 | H66: 1987.22 | I66: 2008.88 | J66: 2022.42 | K66: 1995.35 | L66: 1960.15 | M66: 1.11253
A67: 57 | B67: BALRAMCHIN | C67: 365.3 | D67: 364.15 | E67: 361.40 | F67: 357.50 | G67: 354.75 | H67: 368.05 | I67: 370.80 | J67: 374.70 | K67: 366.9 | L67: 360.25 | M67: 11.98843
A68: 58 | B68: BANDHANBNK | C68: 202.8 | D68: 201.68 | E68: 199.37 | F68: 195.93 | G68: 193.62 | H68: 205.12 | I68: 207.43 | J68: 210.87 | K68: 204 | L68: 198.25 | M68: 82.16894
A69: 59 | B69: BANKBARODA | C69: 163.05 | D69: 161.92 | E69: 160.43 | F69: 157.82 | G69: 156.33 | H69: 164.53 | I69: 166.02 | J69: 168.63 | K69: 163.4 | L69: 159.3 | M69: 257.02421
A70: 60 | B70: BANKINDIA | C70: 73.45 | D70: 73.20 | E70: 72.60 | F70: 71.75 | G70: 71.15 | H70: 74.05 | I70: 74.65 | J70: 75.50 | K70: 73.8 | L70: 72.35 | M70: 82.41954
A71: 61 | B71: MAHABANK | C71: 24.9 | D71: 24.90 | E71: 24.60 | F71: 24.30 | G71: 24.00 | H71: 25.20 | I71: 25.50 | J71: 25.80 | K71: 25.2 | L71: 24.6 | M71: 92.64981
A72: 62 | B72: BATAINDIA | C72: 1406.25 | D72: 1404.88 | E72: 1399.32 | F72: 1392.38 | G72: 1386.82 | H72: 1411.82 | I72: 1417.38 | J72: 1424.32 | K72: 1410.45 | L72: 1397.95 | M72: 1.55118
A73: 63 | B73: BAYERCROP | C73: 4010.95 | D73: 4002.67 | E73: 3963.33 | F73: 3915.72 | G73: 3876.38 | H73: 4050.28 | I73: 4089.62 | J73: 4137.23 | K73: 4042 | L73: 3955.05 | M73: 0.09207
A74: 64 | B74: BERGEPAINT | C74: 594.7 | D74: 594.80 | E74: 590.90 | F74: 587.10 | G74: 583.20 | H74: 598.60 | I74: 602.50 | J74: 606.30 | K74: 598.7 | L74: 591 | M74: 5.14862
A75: 65 | B75: BDL | C75: 907.4 | D75: 910.50 | E75: 900.90 | F75: 894.40 | G75: 884.80 | H75: 917.00 | I75: 926.60 | J75: 933.10 | K75: 920.1 | L75: 904 | M75: 2.07436
A76: 66 | B76: BEL | C76: 93.1 | D76: 92.97 | E76: 92.48 | F76: 91.87 | G76: 91.38 | H76: 93.58 | I76: 94.07 | J76: 94.68 | K76: 93.45 | L76: 92.35 | M76: 58.86671
A77: 67 | B77: BHARATFORG | C77: 778.05 | D77: 779.47 | E77: 768.73 | F77: 759.42 | G77: 748.68 | H77: 788.78 | I77: 799.52 | J77: 808.83 | K77: 790.2 | L77: 770.15 | M77: 8.25685
A78: 68 | B78: BHEL | C78: 75.85 | D78: 75.47 | E78: 74.93 | F78: 74.02 | G78: 73.48 | H78: 76.38 | I78: 76.92 | J78: 77.83 | K78: 76 | L78: 74.55 | M78: 65.83494
A79: 69 | B79: BPCL | C79: 358.55 | D79: 358.63 | E79: 355.67 | F79: 352.78 | G79: 349.82 | H79: 361.52 | I79: 364.48 | J79: 367.37 | K79: 361.6 | L79: 355.75 | M79: 51.25281
A80: 70 | B80: BHARATRAS | C80: 9090.55 | D80: 8988.23 | E80: 8864.47 | F80: 8638.38 | G80: 8514.62 | H80: 9214.32 | I80: 9338.08 | J80: 9564.17 | K80: 9112 | L80: 8762.15 | M80: 0.01955
A81: 71 | B81: BHARTIARTL | C81: 756.95 | D81: 759.37 | E81: 752.73 | F81: 748.52 | G81: 741.88 | H81: 763.58 | I81: 770.22 | J81: 774.43 | K81: 766 | L81: 755.15 | M81: 53.32221
A82: 72 | B82: BIOCON | C82: 201.1 | D82: 198.75 | E82: 193.90 | F82: 186.70 | G82: 181.85 | H82: 205.95 | I82: 210.80 | J82: 218.00 | K82: 203.6 | L82: 191.55 | M82: 121.70982
A83: 73 | B83: BIRLACORPN | C83: 900.7 | D83: 893.53 | E83: 882.17 | F83: 863.63 | G83: 852.27 | H83: 912.07 | I83: 923.43 | J83: 941.97 | K83: 904.9 | L83: 875 | M83: 0.75161
A84: 74 | B84: BSOFT | C84: 267.65 | D84: 269.65 | E84: 264.60 | F84: 261.55 | G84: 256.50 | H84: 272.70 | I84: 277.75 | J84: 280.80 | K84: 274.7 | L84: 266.6 | M84: 13.30396
A85: 75 | B85: BLUEDART | C85: 6055.3 | D85: 6059.73 | E85: 6000.57 | F85: 5945.83 | G85: 5886.67 | H85: 6114.47 | I85: 6173.63 | J85: 6228.37 | K85: 6118.9 | L85: 6005 | M85: 0.11102
A86: 76 | B86: BLUESTARCO | C86: 1455.65 | D86: 1458.32 | E86: 1432.63 | F86: 1409.62 | G86: 1383.93 | H86: 1481.33 | I86: 1507.02 | J86: 1530.03 | K86: 1484 | L86: 1435.3 | M86: 1.74347
A87: 77 | B87: BBTC | C87: 843.8 | D87: 847.48 | E87: 837.42 | F87: 831.03 | G87: 820.97 | H87: 853.87 | I87: 863.93 | J87: 870.32 | K87: 857.55 | L87: 841.1 | M87: 0.2791
A88: 78 | B88: BORORENEW | C88: 443.85 | D88: 448.37 | E88: 437.03 | F88: 430.22 | G88: 418.88 | H88: 455.18 | I88: 466.52 | J88: 473.33 | K88: 459.7 | L88: 441.55 | M88: 1.23336
A89: 79 | B89: BOSCHLTD | C89: 18369.75 | D89: 18320.25 | E89: 18172.10 | F89: 17974.45 | G89: 17826.30 | H89: 18517.90 | I89: 18666.05 | J89: 18863.70 | K89: 18468.4 | L89: 18122.6 | M89: 0.40044
A90: 80 | B90: BRIGADE | C90: 468.15 | D90: 467.95 | E90: 464.30 | F90: 460.45 | G90: 456.80 | H90: 471.80 | I90: 475.45 | J90: 479.30 | K90: 471.6 | L90: 464.1 | M90: 0.2181
A91: 81 | B91: BCG | C91: 19.05 | D91: 18.95 | E91: 18.70 | F91: 18.35 | G91: 18.10 | H91: 19.30 | I91: 19.55 | J91: 19.90 | K91: 19.2 | L91: 18.6 | M91: 175.98316
A92: 82 | B92: BRITANNIA | C92: 4264.7 | D92: 4303.57 | E92: 4221.13 | F92: 4177.57 | G92: 4095.13 | H92: 4347.13 | I92: 4429.57 | J92: 4473.13 | K92: 4386 | L92: 4260 | M92: 2.31876
A93: 83 | B93: MAPMYINDIA | C93: 1071.3 | D93: 1070.15 | E93: 1058.30 | F93: 1045.30 | G93: 1033.45 | H93: 1083.15 | I93: 1095.00 | J93: 1108.00 | K93: 1082 | L93: 1057.15 | M93: 1.65752
A94: 84 | B94: CCL | C94: 563.35 | D94: 561.95 | E94: 554.90 | F94: 546.45 | G94: 539.40 | H94: 570.40 | I94: 577.45 | J94: 585.90 | K94: 569 | L94: 553.5 | M94: 0.7176
A95: 85 | B95: CESC | C95: 68.4 | D95: 68.40 | E95: 68.00 | F95: 67.60 | G95: 67.20 | H95: 68.80 | I95: 69.20 | J95: 69.60 | K95: 68.8 | L95: 68 | M95: 10.63616
A96: 86 | B96: CGPOWER | C96: 296.3 | D96: 294.53 | E96: 290.12 | F96: 283.93 | G96: 279.52 | H96: 300.72 | I96: 305.13 | J96: 311.32 | K96: 298.95 | L96: 288.35 | M96: 22.62931
A97: 87 | B97: CRISIL | C97: 3093.05 | D97: 3085.25 | E97: 3040.65 | F97: 2988.25 | G97: 2943.65 | H97: 3137.65 | I97: 3182.25 | J97: 3234.65 | K97: 3129.85 | L97: 3032.85 | M97: 0.30024
A98: 88 | B98: CSBBANK | C98: 245.55 | D98: 241.42 | E98: 228.58 | F98: 211.62 | G98: 198.78 | H98: 258.38 | I98: 271.22 | J98: 288.18 | K98: 254.25 | L98: 224.45 | M98: 36.70633
A99: 89 | B99: CAMPUS | C99: 375.4 | D99: 376.03 | E99: 372.42 | F99: 369.43 | G99: 365.82 | H99: 379.02 | I99: 382.63 | J99: 385.62 | K99: 379.65 | L99: 373.05 | M99: 2.26336
A100: 90 | B100: CANFINHOME | C100: 531.7 | D100: 530.72 | E100: 525.28 | F100: 518.87 | G100: 513.43 | H100: 537.13 | I100: 542.57 | J100: 548.98 | K100: 536.15 | L100: 524.3 | M100: 3.70906
A101: 91 | B101: CANBK | C101: 284 | D101: 282.18 | E101: 278.92 | F101: 273.83 | G101: 270.57 | H101: 287.27 | I101: 290.53 | J101: 295.62 | K101: 285.45 | L101: 277.1 | M101: 73.30105
A102: 92 | B102: CAPLIPOINT | C102: 614.45 | D102: 620.85 | E102: 604.85 | F102: 595.25 | G102: 579.25 | H102: 630.45 | I102: 646.45 | J102: 656.05 | K102: 636.85 | L102: 611.25 | M102: 1.0809
A103: 93 | B103: CGCL | C103: 580.15 | D103: 586.20 | E103: 568.95 | F103: 557.75 | G103: 540.50 | H103: 597.40 | I103: 614.65 | J103: 625.85 | K103: 603.45 | L103: 575 | M103: 2.83806
A104: 94 | B104: CARBORUNIV | C104: 957.7 | D104: 962.03 | E104: 948.67 | F104: 939.63 | G104: 926.27 | H104: 971.07 | I104: 984.43 | J104: 993.47 | K104: 975.4 | L104: 953 | M104: 0.37267
A105: 95 | B105: CASTROLIND | C105: 110.05 | D105: 109.68 | E105: 108.82 | F105: 107.58 | G105: 106.72 | H105: 110.92 | I105: 111.78 | J105: 113.02 | K105: 110.55 | L105: 108.45 | M105: 5.58558
A106: 96 | B106: CEATLTD | C106: 1398.85 | D106: 1394.28 | E106: 1380.57 | F106: 1362.28 | G106: 1348.57 | H106: 1412.57 | I106: 1426.28 | J106: 1444.57 | K106: 1408 | L106: 1376 | M106: 0.68426
A107: 97 | B107: CENTRALBK | C107: 23.95 | D107: 23.95 | E107: 23.70 | F107: 23.45 | G107: 23.20 | H107: 24.20 | I107: 24.45 | J107: 24.70 | K107: 24.2 | L107: 23.7 | M107: 40.61258
A108: 98 | B108: CDSL | C108: 964.7 | D108: 963.03 | E108: 954.37 | F108: 944.03 | G108: 935.37 | H108: 973.37 | I108: 982.03 | J108: 992.37 | K108: 971.7 | L108: 952.7 | M108: 2.84834
A109: 99 | B109: CENTURYPLY | C109: 468.6 | D109: 471.63 | E109: 463.27 | F109: 457.93 | G109: 449.57 | H109: 476.97 | I109: 485.33 | J109: 490.67 | K109: 480 | L109: 466.3 | M109: 3.25464
A110: 100 | B110: CENTURYTEX | C110: 660.15 | D110: 664.37 | E110: 652.88 | F110: 645.62 | G110: 634.13 | H110: 671.63 | I110: 683.12 | J110: 690.38 | K110: 675.85 | L110: 657.1 | M110: 0.91516
A111: 101 | B111: CERA | C111: 6186 | D111: 6188.65 | E111: 6157.35 | F111: 6128.70 | G111: 6097.40 | H111: 6217.30 | I111: 6248.60 | J111: 6277.25 | K111: 6219.95 | L111: 6160 | M111: 0.07056
A112: 102 | B112: CHALET | C112: 362.5 | D112: 365.43 | E112: 358.62 | F112: 354.73 | G112: 347.92 | H112: 369.32 | I112: 376.13 | J112: 380.02 | K112: 372.25 | L112: 361.55 | M112: 0.93591
A113: 103 | B113: CHAMBLFERT | C113: 269.8 | D113: 269.47 | E113: 267.93 | F113: 266.07 | G113: 264.53 | H113: 271.33 | I113: 272.87 | J113: 274.73 | K113: 271 | L113: 267.6 | M113: 6.16945
A114: 104 | B114: CHEMPLASTS | C114: 355.1 | D114: 356.93 | E114: 350.17 | F114: 345.23 | G114: 338.47 | H114: 361.87 | I114: 368.63 | J114: 373.57 | K114: 363.7 | L114: 352 | M114: 1.82793
A115: 105 | B115: CHOLAHLDNG | C115: 559.85 | D115: 560.47 | E115: 553.08 | F115: 546.32 | G115: 538.93 | H115: 567.23 | I115: 574.62 | J115: 581.38 | K115: 567.85 | L115: 553.7 | M115: 0.22024
A116: 106 | B116: CHOLAFIN | C116: 754.6 | D116: 751.65 | E116: 745.15 | F116: 735.70 | G116: 729.20 | H116: 761.10 | I116: 767.60 | J116: 777.05 | K116: 758.15 | L116: 742.2 | M116: 18.96931
A117: 107 | B117: CIPLA | C117: 862.35 | D117: 865.12 | E117: 857.83 | F117: 853.32 | G117: 846.03 | H117: 869.63 | I117: 876.92 | J117: 881.43 | K117: 872.4 | L117: 860.6 | M117: 8.88443
A118: 108 | B118: CUB | C118: 128.35 | D118: 128.15 | E118: 127.20 | F118: 126.05 | G118: 125.10 | H118: 129.30 | I118: 130.25 | J118: 131.40 | K118: 129.1 | L118: 127 | M118: 25.46307
A119: 109 | B119: CLEAN | C119: 1352.75 | D119: 1362.20 | E119: 1340.55 | F119: 1328.35 | G119: 1306.70 | H119: 1374.40 | I119: 1396.05 | J119: 1408.25 | K119: 1383.85 | L119: 1350 | M119: 0.51012
A120: 110 | B120: COALINDIA | C120: 217.05 | D120: 217.32 | E120: 215.68 | F120: 214.32 | G120: 212.68 | H120: 218.68 | I120: 220.32 | J120: 221.68 | K120: 218.95 | L120: 215.95 | M120: 39.98751
A121: 111 | B121: COCHINSHIP | C121: 452.35 | D121: 454.90 | E121: 445.80 | F121: 439.25 | G121: 430.15 | H121: 461.45 | I121: 470.55 | J121: 477.10 | K121: 464 | L121: 448.35 | M121: 4.11395
A122: 112 | B122: COFORGE | C122: 3712.6 | D122: 3738.50 | E122: 3677.20 | F122: 3641.80 | G122: 3580.50 | H122: 3773.90 | I122: 3835.20 | J122: 3870.60 | K122: 3799.8 | L122: 3703.1 | M122: 2.47105
A123: 113 | B123: COLPAL | C123: 1495.9 | D123: 1496.07 | E123: 1489.23 | F123: 1482.57 | G123: 1475.73 | H123: 1502.73 | I123: 1509.57 | J123: 1516.23 | K123: 1502.9 | L123: 1489.4 | M123: 2.57004
A124: 114 | B124: CAMS | C124: 2167.6 | D124: 2174.17 | E124: 2158.43 | F124: 2149.27 | G124: 2133.53 | H124: 2183.33 | I124: 2199.07 | J124: 2208.23 | K124: 2189.9 | L124: 2165 | M124: 0.3185
A125: 115 | B125: CONCOR | C125: 595.6 | D125: 594.17 | E125: 590.18 | F125: 584.77 | G125: 580.78 | H125: 599.58 | I125: 603.57 | J125: 608.98 | K125: 598.15 | L125: 588.75 | M125: 9.37449
A126: 116 | B126: COROMANDEL | C126: 862.4 | D126: 856.10 | E126: 847.80 | F126: 833.20 | G126: 824.90 | H126: 870.70 | I126: 879.00 | J126: 893.60 | K126: 864.4 | L126: 841.5 | M126: 2.9207
A127: 117 | B127: CREDITACC | C127: 950.25 | D127: 942.32 | E127: 919.63 | F127: 889.02 | G127: 866.33 | H127: 972.93 | I127: 995.62 | J127: 1026.23 | K127: 965 | L127: 911.7 | M127: 3.08825
A128: 118 | B128: CROMPTON | C128: 292.25 | D128: 289.82 | E128: 283.68 | F128: 275.12 | G128: 268.98 | H128: 298.38 | I128: 304.52 | J128: 313.08 | K128: 295.95 | L128: 281.25 | M128: 38.17756
A129: 119 | B129: CUMMINSIND | C129: 1635.25 | D129: 1637.00 | E129: 1611.85 | F129: 1588.45 | G129: 1563.30 | H129: 1660.40 | I129: 1685.55 | J129: 1708.95 | K129: 1662.15 | L129: 1613.6 | M129: 6.88444
A130: 120 | B130: CYIENT | C130: 946.8 | D130: 952.32 | E130: 935.68 | F130: 924.57 | G130: 907.93 | H130: 963.43 | I130: 980.07 | J130: 991.18 | K130: 968.95 | L130: 941.2 | M130: 1.78717
A131: 121 | B131: DCMSHRIRAM | C131: 812.4 | D131: 814.90 | E131: 802.80 | F131: 793.20 | G131: 781.10 | H131: 824.50 | I131: 836.60 | J131: 846.20 | K131: 827 | L131: 805.3 | M131: 0.17603
A132: 122 | B132: DLF | C132: 367.45 | D132: 368.72 | E132: 365.03 | F132: 362.62 | G132: 358.93 | H132: 371.13 | I132: 374.82 | J132: 377.23 | K132: 372.4 | L132: 366.3 | M132: 29.80424
A133: 123 | B133: DABUR | C133: 532.3 | D133: 534.43 | E133: 529.02 | F133: 525.73 | G133: 520.32 | H133: 537.72 | I133: 543.13 | J133: 546.42 | K133: 539.85 | L133: 531.15 | M133: 16.45563
A134: 124 | B134: DALBHARAT | C134: 1822.7 | D134: 1815.25 | E134: 1802.50 | F134: 1782.30 | G134: 1769.55 | H134: 1835.45 | I134: 1848.20 | J134: 1868.40 | K134: 1828 | L134: 1795.05 | M134: 3.38835
A135: 125 | B135: DEEPAKFERT | C135: 559 | D135: 562.68 | E135: 551.42 | F135: 543.83 | G135: 532.57 | H135: 570.27 | I135: 581.53 | J135: 589.12 | K135: 573.95 | L135: 555.1 | M135: 4.62085
A136: 126 | B136: DEEPAKNTR | C136: 1795.7 | D136: 1804.55 | E136: 1781.15 | F136: 1766.60 | G136: 1743.20 | H136: 1819.10 | I136: 1842.50 | J136: 1857.05 | K136: 1827.95 | L136: 1790 | M136: 2.14379
A137: 127 | B137: DELHIVERY | C137: 328.9 | D137: 329.08 | E137: 324.87 | F137: 320.83 | G137: 316.62 | H137: 333.12 | I137: 337.33 | J137: 341.37 | K137: 333.3 | L137: 325.05 | M137: 5.57394
A138: 128 | B138: DELTACORP | C138: 195.95 | D138: 195.03 | E138: 193.27 | F138: 190.58 | G138: 188.82 | H138: 197.72 | I138: 199.48 | J138: 202.17 | K138: 196.8 | L138: 192.35 | M138: 15.86948
A139: 129 | B139: DEVYANI | C139: 141.85 | D139: 142.95 | E139: 137.65 | F139: 133.45 | G139: 128.15 | H139: 147.15 | I139: 152.45 | J139: 156.65 | K139: 148.25 | L139: 138.75 | M139: 462.01709
A140: 130 | B140: DHANI | C140: 28.9 | D140: 28.98 | E140: 28.47 | F140: 28.03 | G140: 27.52 | H140: 29.42 | I140: 29.93 | J140: 30.37 | K140: 29.5 | L140: 28.55 | M140: 9.16228
A141: 131 | B141: DBL | C141: 181.75 | D141: 182.08 | E141: 180.27 | F141: 178.78 | G141: 176.97 | H141: 183.57 | I141: 185.38 | J141: 186.87 | K141: 183.9 | L141: 180.6 | M141: 1.49877
A142: 132 | B142: DIVISLAB | C142: 2767.9 | D142: 2784.30 | E142: 2745.60 | F142: 2723.30 | G142: 2684.60 | H142: 2806.60 | I142: 2845.30 | J142: 2867.60 | K142: 2823 | L142: 2762 | M142: 4.03214
A143: 133 | B143: DIXON | C143: 2900.05 | D143: 2914.37 | E143: 2880.68 | F143: 2861.32 | G143: 2827.63 | H143: 2933.73 | I143: 2967.42 | J143: 2986.78 | K143: 2948.05 | L143: 2895 | M143: 1.82196
A144: 134 | B144: LALPATHLAB | C144: 1779.85 | D144: 1787.73 | E144: 1765.22 | F144: 1750.58 | G144: 1728.07 | H144: 1802.37 | I144: 1824.88 | J144: 1839.52 | K144: 1810.25 | L144: 1773.1 | M144: 1.56082
A145: 135 | B145: DRREDDY | C145: 4419.35 | D145: 4436.18 | E145: 4392.37 | F145: 4365.38 | G145: 4321.57 | H145: 4463.17 | I145: 4506.98 | J145: 4533.97 | K145: 4480 | L145: 4409.2 | M145: 3.96928
A146: 136 | B146: EIDPARRY | C146: 488.2 | D146: 490.40 | E146: 482.80 | F146: 477.40 | G146: 469.80 | H146: 495.80 | I146: 503.40 | J146: 508.80 | K146: 498 | L146: 485 | M146: 0.90056
A147: 137 | B147: EIHOTEL | C147: 160.5 | D147: 161.07 | E147: 159.08 | F147: 157.67 | G147: 155.68 | H147: 162.48 | I147: 164.47 | J147: 165.88 | K147: 163.05 | L147: 159.65 | M147: 1.92919
A148: 138 | B148: EPL | C148: 154.95 | D148: 154.87 | E148: 153.68 | F148: 152.42 | G148: 151.23 | H148: 156.13 | I148: 157.32 | J148: 158.58 | K148: 156.05 | L148: 153.6 | M148: 0.97652
A149: 139 | B149: EASEMYTRIP | C149: 44.15 | D149: 44.47 | E149: 43.73 | F149: 43.32 | G149: 42.58 | H149: 44.88 | I149: 45.62 | J149: 46.03 | K149: 45.2 | L149: 44.05 | M149: 40.55903
A150: 140 | B150: EDELWEISS | C150: 53.8 | D150: 53.88 | E150: 53.22 | F150: 52.63 | G150: 51.97 | H150: 54.47 | I150: 55.13 | J150: 55.72 | K150: 54.55 | L150: 53.3 | M150: 9.96171
A151: 141 | B151: EICHERMOT | C151: 2934.8 | D151: 2945.60 | E151: 2916.20 | F151: 2897.60 | G151: 2868.20 | H151: 2964.20 | I151: 2993.60 | J151: 3012.20 | K151: 2975 | L151: 2927 | M151: 4.90092
A152: 142 | B152: ELGIEQUIP | C152: 471.85 | D152: 474.38 | E152: 466.47 | F152: 461.08 | G152: 453.17 | H152: 479.77 | I152: 487.68 | J152: 493.07 | K152: 482.3 | L152: 469 | M152: 2.93263
A153: 143 | B153: EMAMILTD | C153: 345 | D153: 344.50 | E153: 342.20 | F153: 339.40 | G153: 337.10 | H153: 347.30 | I153: 349.60 | J153: 352.40 | K153: 346.8 | L153: 341.7 | M153: 3.22142
A154: 144 | B154: ENDURANCE | C154: 1258.25 | D154: 1257.48 | E154: 1248.82 | F154: 1239.38 | G154: 1230.72 | H154: 1266.92 | I154: 1275.58 | J154: 1285.02 | K154: 1266.15 | L154: 1248.05 | M154: 0.19112
A155: 145 | B155: ENGINERSIN | C155: 75.7 | D155: 75.42 | E155: 74.83 | F155: 73.97 | G155: 73.38 | H155: 76.28 | I155: 76.87 | J155: 77.73 | K155: 76 | L155: 74.55 | M155: 8.37493
A156: 146 | B156: EQUITASBNK | C156: 64.75 | D156: 65.67 | E156: 63.58 | F156: 62.42 | G156: 60.33 | H156: 66.83 | I156: 68.92 | J156: 70.08 | K156: 67.75 | L156: 64.5 | M156: 82.77618
A157: 147 | B157: ESCORTS | C157: 1898.45 | D157: 1905.95 | E157: 1886.90 | F157: 1875.35 | G157: 1856.30 | H157: 1917.50 | I157: 1936.55 | J157: 1948.10 | K157: 1925 | L157: 1894.4 | M157: 1.81997
A158: 148 | B158: EXIDEIND | C158: 177.7 | D158: 177.58 | E158: 176.87 | F158: 176.03 | G158: 175.32 | H158: 178.42 | I158: 179.13 | J158: 179.97 | K158: 178.3 | L158: 176.75 | M158: 6.62527
A159: 149 | B159: FDC | C159: 249.4 | D159: 250.58 | E159: 246.62 | F159: 243.83 | G159: 239.87 | H159: 253.37 | I159: 257.33 | J159: 260.12 | K159: 254.55 | L159: 247.8 | M159: 0.33968
A160: 150 | B160: NYKAA | C160: 139.6 | D160: 139.95 | E160: 138.25 | F160: 136.90 | G160: 135.20 | H160: 141.30 | I160: 143.00 | J160: 144.35 | K160: 141.65 | L160: 138.6 | M160: 26.38231
A161: 151 | B161: FEDERALBNK | C161: 128.8 | D161: 128.72 | E161: 127.68 | F161: 126.57 | G161: 125.53 | H161: 129.83 | I161: 130.87 | J161: 131.98 | K161: 129.75 | L161: 127.6 | M161: 77.19172
A162: 152 | B162: FACT | C162: 215.4 | D162: 215.57 | E162: 211.53 | F162: 207.67 | G162: 203.63 | H162: 219.43 | I162: 223.47 | J162: 227.33 | K162: 219.6 | L162: 211.7 | M162: 2.0468
A163: 153 | B163: FINEORG | C163: 4070.15 | D163: 4100.03 | E163: 4010.12 | F163: 3950.08 | G163: 3860.17 | H163: 4160.07 | I163: 4249.98 | J163: 4310.02 | K163: 4189.95 | L163: 4040 | M163: 0.61989
A164: 154 | B164: FINCABLES | C164: 779.65 | D164: 786.00 | E164: 765.00 | F164: 750.35 | G164: 729.35 | H164: 800.65 | I164: 821.65 | J164: 836.30 | K164: 807 | L164: 771.35 | M164: 5.87012
A165: 155 | B165: FINPIPE | C165: 165.7 | D165: 164.82 | E165: 161.48 | F165: 157.27 | G165: 153.93 | H165: 169.03 | I165: 172.37 | J165: 176.58 | K165: 168.15 | L165: 160.6 | M165: 11.37527
A166: 156 | B166: FSL | C166: 110.7 | D166: 110.53 | E166: 109.47 | F166: 108.23 | G166: 107.17 | H166: 111.77 | I166: 112.83 | J166: 114.07 | K166: 111.6 | L166: 109.3 | M166: 12.90562
A167: 157 | B167: FORTIS | C167: 253.8 | D167: 255.62 | E167: 249.43 | F167: 245.07 | G167: 238.88 | H167: 259.98 | I167: 266.17 | J167: 270.53 | K167: 261.8 | L167: 251.25 | M167: 10.4148
A168: 158 | B168: GRINFRA | C168: 978.1 | D168: 986.82 | E168: 966.28 | F168: 954.47 | G168: 933.93 | H168: 998.63 | I168: 1019.17 | J168: 1030.98 | K168: 1007.35 | L168: 975 | M168: 0.30304
A169: 159 | B169: GAIL | C169: 105.1 | D169: 105.70 | E169: 103.80 | F169: 102.50 | G169: 100.60 | H169: 107.00 | I169: 108.90 | J169: 110.20 | K169: 107.6 | L169: 104.4 | M169: 266.05735
A170: 160 | B170: GMMPFAUDLR | C170: 1543.75 | D170: 1540.25 | E170: 1528.50 | F170: 1513.25 | G170: 1501.50 | H170: 1555.50 | I170: 1567.25 | J170: 1582.50 | K170: 1552 | L170: 1525 | M170: 0.36797
A171: 161 | B171: GMRINFRA | C171: 39.85 | D171: 40.35 | E171: 39.25 | F171: 38.65 | G171: 37.55 | H171: 40.95 | I171: 42.05 | J171: 42.65 | K171: 41.45 | L171: 39.75 | M171: 72.13732
A172: 162 | B172: GALAXYSURF | C172: 2391.05 | D172: 2395.38 | E172: 2365.77 | F172: 2340.48 | G172: 2310.87 | H172: 2420.67 | I172: 2450.28 | J172: 2475.57 | K172: 2425 | L172: 2370.1 | M172: 0.07959
A173: 163 | B173: GARFIBRES | C173: 2802.45 | D173: 2796.85 | E173: 2766.60 | F173: 2730.75 | G173: 2700.50 | H173: 2832.70 | I173: 2862.95 | J173: 2898.80 | K173: 2827.1 | L173: 2761 | M173: 0.05531
A174: 164 | B174: GICRE | C174: 135.7 | D174: 134.77 | E174: 133.08 | F174: 130.47 | G174: 128.78 | H174: 137.38 | I174: 139.07 | J174: 141.68 | K174: 136.45 | L174: 132.15 | M174: 7.64878
A175: 165 | B175: GLAND | C175: 1224.55 | D175: 1221.88 | E175: 1163.77 | F175: 1102.98 | G175: 1044.87 | H175: 1282.67 | I175: 1340.78 | J175: 1401.57 | K175: 1280 | L175: 1161.1 | M175: 6.2973
A176: 166 | B176: GLAXO | C176: 1300.8 | D176: 1294.62 | E176: 1286.23 | F176: 1271.67 | G176: 1263.28 | H176: 1309.18 | I176: 1317.57 | J176: 1332.13 | K176: 1303 | L176: 1280.05 | M176: 0.22464
A177: 167 | B177: GLENMARK | C177: 436.4 | D177: 439.22 | E177: 432.18 | F177: 427.97 | G177: 420.93 | H177: 443.43 | I177: 450.47 | J177: 454.68 | K177: 446.25 | L177: 435 | M177: 10.49426
A178: 168 | B178: GOCOLORS | C178: 934.7 | D178: 937.92 | E178: 928.38 | F178: 922.07 | G178: 912.53 | H178: 944.23 | I178: 953.77 | J178: 960.08 | K178: 947.45 | L178: 931.6 | M178: 0.5505
A179: 169 | B179: GODFRYPHLP | C179: 1862.35 | D179: 1870.30 | E179: 1843.10 | F179: 1823.85 | G179: 1796.65 | H179: 1889.55 | I179: 1916.75 | J179: 1936.00 | K179: 1897.5 | L179: 1851.05 | M179: 0.3771
A180: 170 | B180: GODREJAGRO | C180: 416.4 | D180: 417.78 | E180: 414.57 | F180: 412.73 | G180: 409.52 | H180: 419.62 | I180: 422.83 | J180: 424.67 | K180: 421 | L180: 415.95 | M180: 0.5058
A181: 171 | B181: GODREJCP | C181: 943.6 | D181: 949.55 | E181: 935.10 | F181: 926.60 | G181: 912.15 | H181: 958.05 | I181: 972.50 | J181: 981.00 | K181: 964 | L181: 941.05 | M181: 12.58265
A182: 172 | B182: GODREJIND | C182: 412.25 | D182: 410.60 | E182: 407.20 | F182: 402.15 | G182: 398.75 | H182: 415.65 | I182: 419.05 | J182: 424.10 | K182: 414 | L182: 405.55 | M182: 1.38622
A183: 173 | B183: GODREJPROP | C183: 1097.45 | D183: 1102.45 | E183: 1090.00 | F183: 1082.55 | G183: 1070.10 | H183: 1109.90 | I183: 1122.35 | J183: 1129.80 | K183: 1114.9 | L183: 1095 | M183: 3.01416
A184: 174 | B184: GRANULES | C184: 288.3 | D184: 287.05 | E184: 283.30 | F184: 278.30 | G184: 274.55 | H184: 292.05 | I184: 295.80 | J184: 300.80 | K184: 290.8 | L184: 282.05 | M184: 8.72354
A185: 175 | B185: GRAPHITE | C185: 278.25 | D185: 277.65 | E185: 275.65 | F185: 273.05 | G185: 271.05 | H185: 280.25 | I185: 282.25 | J185: 284.85 | K185: 279.65 | L185: 275.05 | M185: 2.43607
A186: 176 | B186: GRASIM | C186: 1606.2 | D186: 1600.98 | E186: 1592.97 | F186: 1579.73 | G186: 1571.72 | H186: 1614.22 | I186: 1622.23 | J186: 1635.47 | K186: 1609 | L186: 1587.75 | M186: 5.68561
A187: 177 | B187: GESHIP | C187: 604.7 | D187: 601.43 | E187: 593.27 | F187: 581.83 | G187: 573.67 | H187: 612.87 | I187: 621.03 | J187: 632.47 | K187: 609.6 | L187: 590 | M187: 2.75816
A188: 178 | B188: GREENPANEL | C188: 270.1 | D188: 270.23 | E188: 267.52 | F188: 264.93 | G188: 262.22 | H188: 272.82 | I188: 275.53 | J188: 278.12 | K188: 272.95 | L188: 267.65 | M188: 1.70961
A189: 179 | B189: GRINDWELL | C189: 1784.45 | D189: 1790.97 | E189: 1764.98 | F189: 1745.52 | G189: 1719.53 | H189: 1810.43 | I189: 1836.42 | J189: 1855.88 | K189: 1816.95 | L189: 1771.5 | M189: 0.23706
A190: 180 | B190: GUJALKALI | C190: 592.45 | D190: 597.65 | E190: 586.50 | F190: 580.55 | G190: 569.40 | H190: 603.60 | I190: 614.75 | J190: 620.70 | K190: 608.8 | L190: 591.7 | M190: 1.19428
A191: 181 | B191: GAEL | C191: 252.05 | D191: 249.45 | E191: 245.70 | F191: 239.35 | G191: 235.60 | H191: 255.80 | I191: 259.55 | J191: 265.90 | K191: 253.2 | L191: 243.1 | M191: 2.6826
A192: 182 | B192: FLUOROCHEM | C192: 3096.95 | D192: 3075.82 | E192: 3003.38 | F192: 2909.82 | G192: 2837.38 | H192: 3169.38 | I192: 3241.82 | J192: 3335.38 | K192: 3148.25 | L192: 2982.25 | M192: 2.59863
A193: 183 | B193: GUJGASLTD | C193: 501.15 | D193: 502.05 | E193: 494.10 | F193: 487.05 | G193: 479.10 | H193: 509.10 | I193: 517.05 | J193: 524.10 | K193: 510 | L193: 495 | M193: 13.78566
A194: 184 | B194: GNFC | C194: 534.95 | D194: 532.50 | E194: 525.15 | F194: 515.35 | G194: 508.00 | H194: 542.30 | I194: 549.65 | J194: 559.45 | K194: 539.85 | L194: 522.7 | M194: 9.49358
A195: 185 | B195: GPPL | C195: 112 | D195: 112.43 | E195: 110.72 | F195: 109.43 | G195: 107.72 | H195: 113.72 | I195: 115.43 | J195: 116.72 | K195: 114.15 | L195: 111.15 | M195: 17.67371
A196: 186 | B196: GSFC | C196: 125 | D196: 124.62 | E196: 123.13 | F196: 121.27 | G196: 119.78 | H196: 126.48 | I196: 127.97 | J196: 129.83 | K196: 126.1 | L196: 122.75 | M196: 7.40684
A197: 187 | B197: GSPL | C197: 272.45 | D197: 271.63 | E197: 268.52 | F197: 264.58 | G197: 261.47 | H197: 275.57 | I197: 278.68 | J197: 282.62 | K197: 274.75 | L197: 267.7 | M197: 4.44031
A198: 188 | B198: HEG | C198: 951.25 | D198: 953.70 | E198: 947.55 | F198: 943.85 | G198: 937.70 | H198: 957.40 | I198: 963.55 | J198: 967.25 | K198: 959.85 | L198: 950 | M198: 0.50153
A199: 189 | B199: HCLTECH | C199: 1083.9 | D199: 1087.80 | E199: 1073.20 | F199: 1062.50 | G199: 1047.90 | H199: 1098.50 | I199: 1113.10 | J199: 1123.80 | K199: 1102.4 | L199: 1077.1 | M199: 24.21127
A200: 190 | B200: HDFCAMC | C200: 1764.2 | D200: 1741.08 | E200: 1713.27 | F200: 1662.33 | G200: 1634.52 | H200: 1792.02 | I200: 1819.83 | J200: 1870.77 | K200: 1768.9 | L200: 1690.15 | M200: 18.83143
A201: 191 | B201: HDFCBANK | C201: 1579.45 | D201: 1572.72 | E201: 1562.93 | F201: 1546.42 | G201: 1536.63 | H201: 1589.23 | I201: 1599.02 | J201: 1615.53 | K201: 1582.5 | L201: 1556.2 | M201: 165.25247
A202: 192 | B202: HDFCLIFE | C202: 482.75 | D202: 477.75 | E202: 471.50 | F202: 460.25 | G202: 454.00 | H202: 489.00 | I202: 495.25 | J202: 506.50 | K202: 484 | L202: 466.5 | M202: 43.63583
A203: 193 | B203: HFCL | C203: 62.4 | D203: 62.65 | E203: 61.65 | F203: 60.90 | G203: 59.90 | H203: 63.40 | I203: 64.40 | J203: 65.15 | K203: 63.65 | L203: 61.9 | M203: 39.3377
A204: 194 | B204: HLEGLAS | C204: 510.65 | D204: 514.57 | E204: 501.08 | F204: 491.52 | G204: 478.03 | H204: 524.13 | I204: 537.62 | J204: 547.18 | K204: 528.05 | L204: 505 | M204: 0.44694
A205: 195 | B205: HAPPSTMNDS | C205: 806.2 | D205: 807.87 | E205: 802.73 | F205: 799.27 | G205: 794.13 | H205: 811.33 | I205: 816.47 | J205: 819.93 | K205: 813 | L205: 804.4 | M205: 1.04908
A206: 196 | B206: HATSUN | C206: 834.7 | D206: 834.80 | E206: 831.25 | F206: 827.80 | G206: 824.25 | H206: 838.25 | I206: 841.80 | J206: 845.25 | K206: 838.35 | L206: 831.35 | M206: 0.03485
... 320 more rows

Sheet Bulk Deals
E6: Back To Main Page
A7: Subject : | B7: BULK DEAL | D7: =Main!B10 -> 2023-03-22
A9: Date | B9: Scrip code | C9: Scrip Name | D9: Client Name | E9: Buy / Sell | F9: Quantity Traded | G9: Trade Price / Wt.Avg.trade price | H9: Exchange
A10: 2023-03-21 | B10: 539773 | C10: ADVIKCA | D10: VRINDAA ADVANCED MATERIALS LIMITED | E10: BUY | F10: 1,250,000 | G10: 4.62 | H10: BSE
A11: 2023-03-21 | B11: 543804 | C11: AMANAYA | D11: VINEETA GOYAL | E11: BUY | F11: 36,000 | G11: 14.33 | H11: BSE
A12: 2023-03-21 | B12: 543804 | C12: AMANAYA | D12: NIKUNJ STOCK BROKERS LIMITED | E12: SELL | F12: 54,000 | G12: 14.29 | H12: BSE
A13: 2023-03-21 | B13: 531112 | C13: BALUFORGE | D13: TANO INVESTMENT OPPORTUNITIES FUND | E13: SELL | F13: 600,000 | G13: 90 | H13: BSE
A14: 2023-03-21 | B14: 531112 | C14: BALUFORGE | D14: DREAM ACHIEVER CONSULTANCY SERVICES PRIVATE LIMITED | E14: BUY | F14: 572,761 | G14: 90 | H14: BSE
A15: 2023-03-21 | B15: 539799 | C15: BHARATWIRE | D15: M/S. PRARTHANA ENTERPRISES | E15: BUY | F15: 176,883 | G15: 114.87 | H15: BSE
A16: 2023-03-21 | B16: 539799 | C16: BHARATWIRE | D16: M/S. PRARTHANA ENTERPRISES | E16: SELL | F16: 450,000 | G16: 113.15 | H16: BSE
A17: 2023-03-21 | B17: 539546 | C17: BNL | D17: KARANSINGH SURJITSINGH WILKHOO | E17: BUY | F17: 56,148 | G17: 60.78 | H17: BSE
A18: 2023-03-21 | B18: 539596 | C18: DELTA | D18: BP EQUITIES PVT. LTD. | E18: BUY | F18: 36,510 | G18: 19.63 | H18: BSE
A19: 2023-03-21 | B19: 539596 | C19: DELTA | D19: BP EQUITIES PVT. LTD. | E19: SELL | F19: 54,510 | G19: 19.63 | H19: BSE
A20: 2023-03-21 | B20: 539596 | C20: DELTA | D20: MANIKARAN MERCANTILE PRIVATE LIMITED . | E20: SELL | F20: 125,000 | G20: 19.63 | H20: BSE
A21: 2023-03-21 | B21: 539596 | C21: DELTA | D21: SURA TRADE LINKS PRIVATE LIMITED | E21: BUY | F21: 100,000 | G21: 19.63 | H21: BSE
A22: 2023-03-21 | B22: 539596 | C22: DELTA | D22: VIJAY NAGPAL | E22: SELL | F22: 59,990 | G22: 19.63 | H22: BSE
A23: 2023-03-21 | B23: 539596 | C23: DELTA | D23: MANSI NAGPAL | E23: SELL | F23: 40,000 | G23: 19.63 | H23: BSE
A24: 2023-03-21 | B24: 543713 | C24: DRONACHRYA | D24: MAVEN INDIA FUND | E24: SELL | F24: 186,000 | G24: 111.38 | H24: BSE
A25: 2023-03-21 | B25: 543746 | C25: ELIL | D25: PADMAWATI REALCON PRIVATE LIMITED | E25: BUY | F25: 5,400 | G25: 224 | H25: BSE
A26: 2023-03-21 | B26: 543746 | C26: ELIL | D26: PADMAWATI REALCON PRIVATE LIMITED | E26: SELL | F26: 18,000 | G26: 215 | H26: BSE
A27: 2023-03-21 | B27: 543746 | C27: ELIL | D27: VISHAL BHANDARI | E27: SELL | F27: 24,000 | G27: 224 | H27: BSE
A28: 2023-03-21 | B28: 531137 | C28: GEMSI | D28: CHEVVUSREENIVASULAREDDY | E28: SELL | F28: 906,573 | G28: 0.71 | H28: BSE
A29: 2023-03-21 | B29: 531137 | C29: GEMSI | D29: CHEVVUSREENIVASULAREDDY | E29: BUY | F29: 170,845 | G29: 0.71 | H29: BSE
A30: 2023-03-21 | B30: 531137 | C30: GEMSI | D30: KARTIK SUKHIJA | E30: BUY | F30: 601,780 | G30: 0.73 | H30: BSE
A31: 2023-03-21 | B31: 531137 | C31: GEMSI | D31: KARTIK SUKHIJA | E31: SELL | F31: 719 | G31: 0.71 | H31: BSE
A32: 2023-03-21 | B32: 530663 | C32: GOYALASS | D32: MISTERKAPOORKESHRI | E32: SELL | F32: 201,451 | G32: 2.01 | H32: BSE
A33: 2023-03-21 | B33: 530663 | C33: GOYALASS | D33: MISTERKAPOORKESHRI | E33: BUY | F33: 241,093 | G33: 2.05 | H33: BSE
A34: 2023-03-21 | B34: 538979 | C34: GRNLAMIND | D34: ASIANA FUND I | E34: BUY | F34: 3,342,914 | G34: 306 | H34: BSE
A35: 2023-03-21 | B35: 538979 | C35: GRNLAMIND | D35: SMITI HOLDING AND TRADING COMPANY PRIVATE LIMITED | E35: SELL | F35: 3,342,000 | G35: 306 | H35: BSE
A36: 2023-03-21 | B36: 532467 | C36: HAZOOR | D36: DREAM ACHIEVER CONSULTANCY SERVICES PRIVATE LIMITED | E36: BUY | F36: 241,500 | G36: 82 | H36: BSE
A37: 2023-03-21 | B37: 532467 | C37: HAZOOR | D37: SILVERTOSS SHOPPERS PRIVATE LIMITED | E37: SELL | F37: 241,059 | G37: 82 | H37: BSE
A38: 2023-03-21 | B38: 536709 | C38: INDRENEW | D38: NANDA RAM BIJARNIA | E38: SELL | F38: 15,137 | G38: 11.9 | H38: BSE
A39: 2023-03-21 | B39: 536709 | C39: INDRENEW | D39: KINJAL DINESHCHANDRA SHAH | E39: BUY | F39: 18,015 | G39: 11.87 | H39: BSE
A40: 2023-03-21 | B40: 543806 | C40: ITCONS | D40: NIKUNJ STOCK BROKERS LIMITED | E40: SELL | F40: 26,000 | G40: 40.18 | H40: BSE
A41: 2023-03-21 | B41: 543806 | C41: ITCONS | D41: SANTA GHOSH | E41: BUY | F41: 26,000 | G41: 40.18 | H41: BSE
A42: 2023-03-21 | B42: 538794 | C42: JETINFRA | D42: RAJUL SHAH | E42: SELL | F42: 40,000 | G42: 25.9 | H42: BSE
A43: 2023-03-21 | B43: 538794 | C43: JETINFRA | D43: HARSHA BANGALORE MALLIKARJUNA | E43: BUY | F43: 12,000 | G43: 25.86 | H43: BSE
A44: 2023-03-21 | B44: 543286 | C44: JETMALL | D44: PADMAWATI REALCON PRIVATE LIMITED | E44: SELL | F44: 48,000 | G44: 26.06 | H44: BSE
A45: 2023-03-21 | B45: 512329 | C45: KRL | D45: SANJAY GARG | E45: BUY | F45: 35,141 | G45: 342.95 | H45: BSE
A46: 2023-03-21 | B46: 512329 | C46: KRL | D46: SURA TRADE LINKS PRIVATE LIMITED | E46: SELL | F46: 20,000 | G46: 342.95 | H46: BSE
A47: 2023-03-21 | B47: 543282 | C47: NIKSTECH | D47: KVT ENTERPRISE | E47: BUY | F47: 21,600 | G47: 225.5 | H47: BSE
A48: 2023-03-21 | B48: 543282 | C48: NIKSTECH | D48: AMRUTLAL GORDHANDAS THOBHANI | E48: SELL | F48: 7,800 | G48: 233.15 | H48: BSE
A49: 2023-03-21 | B49: 543282 | C49: NIKSTECH | D49: JIGNESH AMRUTLAL THOBHANI | E49: SELL | F49: 15,000 | G49: 225.5 | H49: BSE
A50: 2023-03-21 | B50: 543798 | C50: PATRON | D50: GHANSHYAMBHAI MANSUKHBHAI KHAMBHAYATA | E50: BUY | F50: 320,000 | G50: 15.1 | H50: BSE
A51: 2023-03-21 | B51: 543798 | C51: PATRON | D51: KEVAL JAYANTI KHUDAI | E51: BUY | F51: 160,000 | G51: 15.1 | H51: BSE
A52: 2023-03-21 | B52: 543798 | C52: PATRON | D52: MULTIPLIER SHARE & STOCK ADVISORS PRIVATE LIMITED | E52: BUY | F52: 100,000 | G52: 15.1 | H52: BSE
A53: 2023-03-21 | B53: 543798 | C53: PATRON | D53: MULTIPLIER SHARE & STOCK ADVISORS PRIVATE LIMITED | E53: SELL | F53: 116,000 | G53: 15.1 | H53: BSE
A54: 2023-03-21 | B54: 543171 | C54: ROJL | D54: COLOURSHINE HOSIERY PRIVATE LIMITED | E54: SELL | F54: 500,000 | G54: 7.29 | H54: BSE
A55: 2023-03-21 | B55: 543171 | C55: ROJL | D55: ZENAB AIYUB YACOOBALI | E55: SELL | F55: 283,442 | G55: 7.29 | H55: BSE
A56: 2023-03-21 | B56: 543171 | C56: ROJL | D56: ZENAB AIYUB YACOOBALI | E56: BUY | F56: 283,317 | G56: 7.28 | H56: BSE
A57: 2023-03-21 | B57: 543366 | C57: SBLI | D57: DHANVARSHA ADVISORY SERVICES PRIVATE LIMITED | E57: SELL | F57: 6,000 | G57: 81.01 | H57: BSE
A58: 2023-03-21 | B58: 538923 | C58: SOFCOM | D58: PANNABEN BHANUBHAI SHAH | E58: SELL | F58: 25,329 | G58: 63.22 | H58: BSE
A59: 2023-03-21 | B59: 538923 | C59: SOFCOM | D59: AMI NAMAN SHAH | E59: SELL | F59: 25,000 | G59: 63.25 | H59: BSE
A60: 2023-03-21 | B60: 538923 | C60: SOFCOM | D60: NAMAN BHANUBHAI SHAH | E60: SELL | F60: 27,754 | G60: 63 | H60: BSE
A61: 2023-03-21 | B61: 538923 | C61: SOFCOM | D61: NITESH JAGMOHAN VASHISTHA | E61: SELL | F61: 49,506 | G61: 62.22 | H61: BSE
A62: 2023-03-21 | B62: 538923 | C62: SOFCOM | D62: SOUTH GUJARAT SHARES AND SHAREBROKERS LIMITED | E62: BUY | F62: 141,500 | G62: 62.72 | H62: BSE
A63: 2023-03-21 | B63: 538923 | C63: SOFCOM | D63: VISAGAR FINANCIAL SERVICES LIMITED | E63: BUY | F63: 50,000 | G63: 60.93 | H63: BSE
A64: 2023-03-21 | B64: 538923 | C64: SOFCOM | D64: SETHIA GEMS PRIVATE LIMITED | E64: SELL | F64: 50,000 | G64: 60.93 | H64: BSE
A65: 2023-03-21 | B65: 540914 | C65: SRUSTEELS | D65: APOORV AGARWAL | E65: SELL | F65: 62,800 | G65: 21 | H65: BSE
A66: 2023-03-21 | B66: 540914 | C66: SRUSTEELS | D66: GANESH YADAV | E66: SELL | F66: 102,200 | G66: 21.01 | H66: BSE
A67: 2023-03-21 | B67: 539017 | C67: STARHFL | D67: GHANSHYAM GARG | E67: SELL | F67: 500,000 | G67: 46.62 | H67: BSE
A68: 2023-03-21 | B68: 532070 | C68: SUMUKA | D68: UJIBEN VALLABHBHAI CHAUHAN | E68: SELL | F68: 44,188 | G68: 89 | H68: BSE
A69: 2023-03-21 | B69: 538496 | C69: TARINI | D69: ANKUR GOENKA | E69: SELL | F69: 114,000 | G69: 5.19 | H69: BSE
A70: 2023-03-21 | B70: 538496 | C70: TARINI | D70: GLOBE STOCKS & SECURITIES LTD | E70: BUY | F70: 114,000 | G70: 5.19 | H70: BSE
A71: 2023-03-21 | B71: 537582 | C71: UNISHIRE | D71: GREEN GOLD PLANTATION AND NURSERY LTD | E71: SELL | F71: 140,000 | G71: 1.42 | H71: BSE
A72: 2023-03-21 | B72: 537582 | C72: UNISHIRE | D72: GROWTH VINIMAY PRIVATE LIMITED | E72: BUY | F72: 140,000 | G72: 1.42 | H72: BSE
A73: 2023-03-21 | B73: 542910 | C73: VALENCIA | D73: VENKATESHWARA INDUSTRIAL PROMOTION CO LIMITED | E73: BUY | F73: 81,000 | G73: 21.91 | H73: BSE
A74: 2023-03-21 | B74: 542910 | C74: VALENCIA | D74: NNM SECURITIES PVT LTD | E74: SELL | F74: 81,000 | G74: 21.75 | H74: BSE
A75: 2023-03-21 | B75: 542910 | C75: VALENCIA | D75: ARYAMAN BROKING LIMITED | E75: BUY | F75: 63,000 | G75: 21.75 | H75: BSE
A76: 2023-03-21 | B76: 542910 | C76: VALENCIA | D76: ARYAMAN BROKING LIMITED | E76: SELL | F76: 63,000 | G76: 21.95 | H76: BSE
A77: 2023-03-21 | B77: 541735 | C77: VIVANTA | D77: TARLA AMRISHBHAI PARIKH | E77: SELL | F77: 671,623 | G77: 3.06 | H77: BSE
A78: 2023-03-21 | B78: 539761 | C78: VKAL | D78: MANISH SATISH SHAH | E78: SELL | F78: 26,802 | G78: 37.05 | H78: BSE
A79: 2023-03-21 | B79: 511018 | C79: ZMILGFIN | D79: VIRAJ PANKAJ GANDHI | E79: SELL | F79: 31,000 | G79: 24.32 | H79: BSE
A80: 2023-03-21 | B80: 511018 | C80: ZMILGFIN | D80: RUPAL SHRIKANT SHAH | E80: BUY | F80: 15,000 | G80: 24.32 | H80: BSE
A81: 2023-03-21 | B81: 511018 | C81: ZMILGFIN | D81: HARSHIT SHAH | E81: BUY | F81: 16,000 | G81: 24.32 | H81: BSE
A82: 2023-03-21 | B82: AARTIDRUGS | C82: Aarti Drugs Ltd. | D82: QE SECURITIES | E82: BUY | F82: 528,794 | G82: 382.17 | H82: NSE
A83: 2023-03-21 | B83: AARTIDRUGS | C83: Aarti Drugs Ltd. | D83: GRAVITON RESEARCH CAPITAL LLP | E83: BUY | F83: 1,074,896 | G83: 380.84 | H83: NSE
A84: 2023-03-21 | B84: CEREBRAINT | C84: Cerebra Int Tech Ltd | D84: RAJESH KUMAR BHATT | E84: BUY | F84: 1,100,000 | G84: 9.3 | H84: NSE
A85: 2023-03-21 | B85: CEREBRAINT | C85: Cerebra Int Tech Ltd | D85: MULTIPLIER SHARE & STOCK ADVISORS PRIVATE LIMITED | E85: BUY | F85: 800,000 | G85: 9.3 | H85: NSE
A86: 2023-03-21 | B86: CEREBRAINT | C86: Cerebra Int Tech Ltd | D86: NIKITABEN DEVALBHAI PATEL | E86: BUY | F86: 1,024,500 | G86: 9.3 | H86: NSE
A87: 2023-03-21 | B87: DBSTOCKBRO | C87: DB (Int) Stock Brokers | D87: SHEETAL PERIWAL | E87: BUY | F87: 215,394 | G87: 24.7 | H87: NSE
A88: 2023-03-21 | B88: DEVYANI | C88: Devyani International Ltd | D88: FRANKLIN TEMPLETON MUTUAL FUND A/C - FRANKLIN INDIA FLEXI CAP FUND | E88: BUY | F88: 6,200,000 | G88: 145 | H88: NSE
A89: 2023-03-21 | B89: FCONSUMER | C89: Future Consumer Ltd | D89: SAHASTRAA ADVISORS PRIVATE LIMITED | E89: BUY | F89: 18,900,000 | G89: 0.5 | H89: NSE
A90: 2023-03-21 | B90: FCONSUMER | C90: Future Consumer Ltd | D90: TOPGAIN FINANCE PRIVATE LIMITED | E90: BUY | F90: 33,855,520 | G90: 0.51 | H90: NSE
A91: 2023-03-21 | B91: GEEKAYWIRE | C91: Geekay Wires Limited | D91: CHETAN RASIKLAL SHAH | E91: BUY | F91: 73,496 | G91: 170.91 | H91: NSE
A92: 2023-03-21 | B92: JETFREIGHT | C92: Jet Freight Logistics Ltd | D92: JILESH NAVIN CHHEDA | E92: BUY | F92: 239,600 | G92: 12.35 | H92: NSE
A93: 2023-03-21 | B93: JISLDVREQS | C93: Jain DVR Equity Shares | D93: SUJATA GUPTA | E93: BUY | F93: 590,500 | G93: 18.05 | H93: NSE
A94: 2023-03-21 | B94: JISLDVREQS | C94: Jain DVR Equity Shares | D94: SHARE INDIA SECURITIES LIMITED | E94: BUY | F94: 143,637 | G94: 17.39 | H94: NSE
A95: 2023-03-21 | B95: JISLDVREQS | C95: Jain DVR Equity Shares | D95: HENSEX SECURITIES PRIVATE LIMITED | E95: BUY | F95: 126,333 | G95: 17.64 | H95: NSE
A96: 2023-03-21 | B96: KAMOPAINTS | C96: Kamdhenu Ventures Limited | D96: SW CAPITAL PRIVATE LIMITED | E96: BUY | F96: 156,511 | G96: 199.18 | H96: NSE
A97: 2023-03-21 | B97: KHADIM | C97: Khadim India Limited | D97: BHARADHWAJAN JAGANATHAN VELAMUR | E97: BUY | F97: 149,968 | G97: 181.5 | H97: NSE
A98: 2023-03-21 | B98: MCON | C98: Mcon Rasayan India Ltd | D98: JAYSUKHBHAI THATHAGAR | E98: BUY | F98: 42,000 | G98: 51.06 | H98: NSE
A99: 2023-03-21 | B99: MEDICO | C99: Medico Remedies Limited | D99: AKSHAYKUMAR RAJENDRABHAI OSWAL | E99: BUY | F99: 484,634 | G99: 85.59 | H99: NSE
A100: 2023-03-21 | B100: PHANTOMFX | C100: Phantom Digital Eff Ltd | D100: SUMICKSHA BANSAL | E100: BUY | F100: 68,400 | G100: 157.97 | H100: NSE
A101: 2023-03-21 | B101: PHANTOMFX | C101: Phantom Digital Eff Ltd | D101: RAJESH KUMAR SINGLA | E101: BUY | F101: 72,000 | G101: 158.9 | H101: NSE
A102: 2023-03-21 | B102: SMSLIFE | C102: SMS Lifesciences (I) Ltd | D102: BHARADHWAJAN JAGANATHAN VELAMUR | E102: BUY | F102: 15,895 | G102: 532 | H102: NSE
A103: 2023-03-21 | B103: STOVEKRAFT | C103: Stove Kraft Limited | D103: GRAVITON RESEARCH CAPITAL LLP | E103: BUY | F103: 239,964 | G103: 394.34 | H103: NSE
A104: 2023-03-21 | B104: SVPGLOB | C104: SVP GLOBAL TEXTILES LTD | D104: SHUBHANKAR PRAFULLA GATTANI | E104: BUY | F104: 1,300,000 | G104: 14.6 | H104: NSE
A105: 2023-03-21 | B105: TEMBO | C105: Tembo Global Ind Ltd | D105: KOMAL VAGHAJI CHAUHAN | E105: BUY | F105: 60,000 | G105: 161.59 | H105: NSE
A106: 2023-03-21 | B106: TEMBO | C106: Tembo Global Ind Ltd | D106: RAJESHBHAI PATEL | E106: BUY | F106: 60,000 | G106: 161.57 | H106: NSE
A107: 2023-03-21 | B107: TEMBO | C107: Tembo Global Ind Ltd | D107: RAMAN TALWAR | E107: BUY | F107: 192,791 | G107: 160.85 | H107: NSE
A108: 2023-03-21 | B108: VALIANTORG | C108: Valiant Organics Limited | D108: GRAVITON RESEARCH CAPITAL LLP | E108: BUY | F108: 175,802 | G108: 427.56 | H108: NSE
A109: 2023-03-21 | B109: VISHAL | C109: Vishal Fabrics Limited | D109: DHOLI SPINTEX PRIVATE LIMITED | E109: BUY | F109: 1,500,000 | G109: 18.4 | H109: NSE
A110: 2023-03-21 | B110: AARTIDRUGS | C110: Aarti Drugs Ltd. | D110: QE SECURITIES | E110: SELL | F110: 529,570 | G110: 382.64 | H110: NSE
A111: 2023-03-21 | B111: AARTIDRUGS | C111: Aarti Drugs Ltd. | D111: GRAVITON RESEARCH CAPITAL LLP | E111: SELL | F111: 1,074,896 | G111: 381 | H111: NSE
A112: 2023-03-21 | B112: AGARWALFT | C112: Agarwal Float Glass I Ltd | D112: SMC GLOBAL SECURITIES LIMITED | E112: SELL | F112: 45,000 | G112: 35.25 | H112: NSE
A113: 2023-03-21 | B113: ATALREAL | C113: Atal Realtech Limited | D113: BHAVESH KIRTI MATHURIA | E113: SELL | F113: 196,800 | G113: 74.3 | H113: NSE
A114: 2023-03-21 | B114: CEREBRAINT | C114: Cerebra Int Tech Ltd | D114: MULTIPLIER SHARE & STOCK ADVISORS PRIVATE LIMITED | E114: SELL | F114: 231,391 | G114: 9.32 | H114: NSE
A115: 2023-03-21 | B115: CEREBRAINT | C115: Cerebra Int Tech Ltd | D115: VENKATRAMAN RANGANATHAN | E115: SELL | F115: 3,100,000 | G115: 9.3 | H115: NSE
A116: 2023-03-21 | B116: DEVYANI | C116: Devyani International Ltd | D116: DUNEARN INVESTMENTS MAURITIUS PTE LIMITED | E116: SELL | F116: 34,430,150 | G116: 145.04 | H116: NSE
A117: 2023-03-21 | B117: FCONSUMER | C117: Future Consumer Ltd | D117: VISTRA ITCL INDIA LIMITED | E117: SELL | F117: 58,000,000 | G117: 0.51 | H117: NSE
A118: 2023-03-21 | B118: FCONSUMER | C118: Future Consumer Ltd | D118: TOPGAIN FINANCE PRIVATE LIMITED | E118: SELL | F118: 17,405,520 | G118: 0.51 | H118: NSE
A119: 2023-03-21 | B119: FCONSUMER | C119: Future Consumer Ltd | D119: SAHASTRAA ADVISORS PRIVATE LIMITED | E119: SELL | F119: 12,526,230 | G119: 0.51 | H119: NSE
A120: 2023-03-21 | B120: GEEKAYWIRE | C120: Geekay Wires Limited | D120: CHETAN RASIKLAL SHAH | E120: SELL | F120: 73,496 | G120: 170.79 | H120: NSE
A121: 2023-03-21 | B121: JETFREIGHT | C121: Jet Freight Logistics Ltd | D121: JILESH NAVIN CHHEDA | E121: SELL | F121: 239,600 | G121: 12.14 | H121: NSE
A122: 2023-03-21 | B122: JISLDVREQS | C122: Jain DVR Equity Shares | D122: SHARE INDIA SECURITIES LIMITED | E122: SELL | F122: 137,848 | G122: 17.66 | H122: NSE
A123: 2023-03-21 | B123: JISLDVREQS | C123: Jain DVR Equity Shares | D123: SUJATA GUPTA | E123: SELL | F123: 590,794 | G123: 17.45 | H123: NSE
A124: 2023-03-21 | B124: JISLDVREQS | C124: Jain DVR Equity Shares | D124: HENSEX SECURITIES PRIVATE LIMITED | E124: SELL | F124: 132,233 | G124: 18.13 | H124: NSE
A125: 2023-03-21 | B125: KAMOPAINTS | C125: Kamdhenu Ventures Limited | D125: SW CAPITAL PRIVATE LIMITED | E125: SELL | F125: 163,737 | G125: 201.06 | H125: NSE
A126: 2023-03-21 | B126: KHADIM | C126: Khadim India Limited | D126: VELAMUR GOPALAN JAGANATHAN | E126: SELL | F126: 149,968 | G126: 181.5 | H126: NSE
A127: 2023-03-21 | B127: MCON | C127: Mcon Rasayan India Ltd | D127: PARTH INFIN BROKERS PVT LTD | E127: SELL | F127: 39,000 | G127: 50.37 | H127: NSE
A128: 2023-03-21 | B128: MEDICO | C128: Medico Remedies Limited | D128: AKSHAYKUMAR RAJENDRABHAI OSWAL | E128: SELL | F128: 486,496 | G128: 85.58 | H128: NSE
A129: 2023-03-21 | B129: PHANTOMFX | C129: Phantom Digital Eff Ltd | D129: SUMICKSHA BANSAL | E129: SELL | F129: 68,400 | G129: 158.88 | H129: NSE
A130: 2023-03-21 | B130: PHANTOMFX | C130: Phantom Digital Eff Ltd | D130: RAJESH KUMAR SINGLA | E130: SELL | F130: 66,000 | G130: 157.8 | H130: NSE
A131: 2023-03-21 | B131: SMSLIFE | C131: SMS Lifesciences (I) Ltd | D131: VELAMUR GOPALAN JAGANATHAN | E131: SELL | F131: 16,000 | G131: 532 | H131: NSE
A132: 2023-03-21 | B132: STOVEKRAFT | C132: Stove Kraft Limited | D132: GRAVITON RESEARCH CAPITAL LLP | E132: SELL | F132: 239,964 | G132: 394.71 | H132: NSE
A133: 2023-03-21 | B133: SVPGLOB | C133: SVP GLOBAL TEXTILES LTD | D133: SHRIVALLABH PITTIE VENTURES LIMITED | E133: SELL | F133: 1,434,327 | G133: 14.6 | H133: NSE
A134: 2023-03-21 | B134: TEMBO | C134: Tembo Global Ind Ltd | D134: SMITA SANJAY PATEL | E134: SELL | F134: 249,999 | G134: 160.41 | H134: NSE
A135: 2023-03-21 | B135: TEMBO | C135: Tembo Global Ind Ltd | D135: RAJESHBHAI PATEL | E135: SELL | F135: 60,000 | G135: 161.61 | H135: NSE
A136: 2023-03-21 | B136: TEMBO | C136: Tembo Global Ind Ltd | D136: KOMAL VAGHAJI CHAUHAN | E136: SELL | F136: 60,000 | G136: 161.58 | H136: NSE
A137: 2023-03-21 | B137: VALIANTORG | C137: Valiant Organics Limited | D137: GRAVITON RESEARCH CAPITAL LLP | E137: SELL | F137: 175,802 | G137: 427.63 | H137: NSE
A138: 2023-03-21 | B138: VISHAL | C138: Vishal Fabrics Limited | D138: SHANTI EXPORTS PVT LTD | E138: SELL | F138: 1,500,000 | G138: 18.4 | H138: NSE

Sheet Call Tracker (Equity & F&O)
M5: Back To Main Page
A6: Retail Research Technical Calls & Fundamental Performance Report for the month of Mar-2023
M7: =Main!B10 -> 2023-03-22
B8: Positional Call
A9: Sr.no | B9: Date | D9: Company | E9: Rec | F9: Rec Price | G9: Stop Loss*** | H9: Call Closed At | I9: Target | J9: Remark | K9: Profit / Loss per Share | L9: All charges | M9: Net Gain / Loss % | N9: Status | O9: Closed Date | P9: Market Closing Price
A10: 1 | B10: 2022-12-01 | D10: TCS | E10: Buy<> | F10: 3380 | G10: 3140 | H10: =(3565+3140)/2 -> 3352.5 | I10: 3800-4000 | J10: Loss of Rs.27.5/- | K10: =H10-F10 -> -27.5 | L10: =(F10*-0.7)/100 -> -23.66 | M10: =(K10+L10)/F10 -> -1.51% | N10: Unsuccessful | O10: 2023-03-20 | R10: H
A11: 2 | B11: 2023-01-10 | D11: BHARTIARTL | E11: Buy | F11: 780-800 | G11: 735 | I11: 870-900 | J11: Open | R11: H
A12: 3 | B12: 2023-01-24 | D12: KIMS | E12: Buy | F12: 1435 | G12: 1340 | H12: 1512.5 | I12: 1580-1650 | J12: Part Profit of Rs.77.5/- | K12: =H12-F12 -> 77.5 | L12: =(F12*-0.7)/100 -> -10.05 | M12: =(K12+L12)/F12 -> 4.70% | N12: Successful | O12: 2023-01-31 | R12: N
A13: 4 | B13: 2023-02-01 | D13: AXISBANK | E13: Accu | F13: 825-850 | G13: 790 | I13: 900-950 | J13: Open | R13: H
A14: 5 | B14: 2023-02-06 | D14: JSWSTEEL | E14: Accu | F14: 695-717.5 | G14: 660 | I14: 770-800 | J14: Open | R14: H
A15: 6 | B15: 2023-02-16 | D15: PIDILITIND | E15: Accu | F15: 2280 | G15: 2170 | H15: 2390 | I15: 2450-2500 | J15: Open | R15: H
A16: 7 | B16: 2023-02-20 | D16: SHARDACROP | E16: Accu | F16: 462.5 | G16: 425 | H16: 490 | I16: 520-550 | J16: Open | R16: H
A17: 8 | B17: 2023-02-21 | D17: CANBK | E17: Accu | F17: 284.5 | G17: 268 | H17: 303.5 | I17: 315-335 | J17: Profit of Rs.19/- | K17: =H17-F17 -> 19 | L17: =(F17*-0.7)/100 -> -1.99 | M17: =(K17+L17)/F17 -> 5.98% | N17: Successful | O17: 2023-03-03 | R17: N
A18: 9 | B18: 2023-02-21 | D18: HAPPIESTMNDS | E18: Accu | F18: =(865+899)/2 -> 882 | G18: 830 | H18: 830 | I18: 960-1000 | J18: Loss of Rs.52/- | K18: =H18-F18 -> -52 | L18: =(F18*-0.7)/100 -> -6.17 | M18: =(K18+L18)/F18 -> -6.60% | N18: Unsuccessful | O18: 2023-03-15 | R18: H
A19: 10 | B19: 2023-02-24 | D19: PIIND | E19: Accu | F19: 3110-3010 | G19: 2890 | I19: 3300-3400 | J19: Open | R19: H
A20: 11 | B20: 2023-02-27 | D20: SBIN | E20: Accu | F20: 522.5 | G20: 478 | H20: 554 | I20: 570-600 | J20: Profit of Rs.31.50/- | K20: =H20-F20 -> 31.5 | L20: =(F20*-0.7)/100 -> -3.66 | M20: =(K20+L20)/F20 -> 5.33% | N20: Successful | O20: 2023-03-03 | R20: H
A21: 12 | B21: 2023-03-01 | D21: REDINGTON | E21: Accu | F21: 169.5-165 | G21: 158 | I21: 180-185 | J21: Open | R21: H
A22: 13 | B22: 2023-03-14 | D22: SANOFI | E22: Accu | F22: 5625-5725 | G22: 5340 | I22: 6000-6300 | J22: Open | R22: H
A23: 14 | B23: 2023-03-14 | D23: COFORGE | E23: Accu | F23: 3810-3905 | G23: 3680 | I23: 4200-4300 | J23: Open | R23: H
A24: 15 | B24: 2023-03-16 | D24: CANBK | E24: Accu | F24: 270-280.5 | G24: 255 | I24: 310-320 | J24: Open | R24: N
A29: CLBS = Closing Basis ***
A30: Dividend adjusted <> | F30: Reinitiated $
A31: Part book {} | D31: s | F31: Revised stoploss #
B33: Momentum Call
A34: Sr.no | B34: Date | D34: Company | E34: Rec | F34: Rec Price | G34: Stop Loss | H34: Call Closed At | I34: Target | J34: Remark | K34: Profit / Loss per Share/Lot | L34: All charges | M34: Net Gain / Loss % | N34: Status | O34: Closed Date
A35: 1 | B35: 2023-02-28 | D35: RELIANCE | E35: Buy | F35: 2357 | G35: 2270 | H35: 2270 | I35: 2450-2500 | J35: Loss of Rs.87/- | K35: =H35-F35 -> -87 | L35: =(F35*-0.7)/100 -> -16.50 | M35: =(K35+L35)/F35 -> -4.39% | N35: Unsuccessful | O35: 2023-03-15 | R35: H
A36: 2 | B36: 2023-03-01 | D36: AMARAJABAT | E36: Buy | F36: 561 | G36: 545 | H36: 576.5 | I36: 585-595 | J36: Profit of Rs.15.5/- | K36: =H36-F36 -> 15.5 | L36: =(F36*-0.7)/100 -> -3.93 | M36: =(K36+L36)/F36 -> 2.06% | N36: Successful | O36: 2023-03-02 | R36: H
A37: 3 | B37: 2023-03-01 | D37: VTL | E37: Buy | F37: 310 | G37: 300 | H37: 318.5 | I37: 325-330 | J37: Profit of Rs.8.5/- | K37: =H37-F37 -> 8.5 | L37: =(F37*-0.7)/100 -> -2.17 | M37: =(K37+L37)/F37 -> 2.04% | N37: Successful | O37: 2023-03-06 | R37: N
A38: 4 | B38: 2023-03-01 | D38: TECHM | E38: Buy | F38: 1110 | G38: 1078 | H38: 1063.5 | I38: 1150-1170 | J38: Loss of Rs.46.5/- | K38: =H38-F38 -> -46.5 | L38: =(F38*-0.7)/100 -> -7.77 | M38: =(K38+L38)/F38 -> -4.89% | N38: Unsuccessful | O38: 2023-03-09 | R38: H
A39: 5 | B39: 2023-03-03 | D39: M&M | E39: Buy | F39: 1266 | G39: 1230 | H39: 1230 | I39: 1320-1350 | J39: Loss of Rs.36/- | K39: =H39-F39 -> -36 | L39: =(F39*-0.7)/100 -> -8.86 | M39: =(K39+L39)/F39 -> -3.54% | N39: Unsuccessful | O39: 2023-03-10 | R39: H
A40: 6 | B40: 2023-03-03 | D40: TATACONSUM | E40: Buy | F40: 710 | G40: 689 | I40: 740-750 | J40: Open | R40: H
A41: 7 | B41: 2023-03-06 | D41: STARHEALTH | E41: Buy | F41: 582 | G41: 566 | H41: 560 | I41: 600-615 | J41: Loss of Rs.22/- | K41: =H41-F41 -> -22 | L41: =(F41*-0.7)/100 -> -4.07 | M41: =(K41+L41)/F41 -> -4.48% | N41: Unsuccessful | O41: 2023-03-13 | R41: N
A42: 8 | B42: 2023-03-15 | D42: M&M | E42: Buy | F42: 1160-1170 | G42: 1137 | I42: 1200-1220 | J42: Open | R42: H
A43: 9 | B43: 2023-03-16 | D43: VTL | E43: Buy | F43: 298-300 | G43: 290 | I43: 315-320 | J43: Open | R43: N
A44: 10 | B44: 2023-03-17 | D44: SBIN | E44: Buy | F44: 523.5 | G44: 509 | H44: 531.5 | I44: 540-550 | J44: Profit of Rs.8/- | K44: =H44-F44 -> 8 | L44: =(F44*-0.07)/100 -> -0.37 | M44: =(K44+L44)/F44 -> 1.46% | N44: Successful | O44: 2023-03-17 | R44: H
A45: 11 | B45: 2023-03-21 | D45: SBIN | E45: Buy | F45: 517-520 | G45: 505 | I45: 540-550 | J45: Open
A46: 12
A47: CLBS = Closing Basis *** | H47: *
A48: Dividend adjusted <> | F48: Reinitiated $
F49: Revised stoploss #
A51: Master Trade High Risk
A52: Sr.no | B52: Date | D52: Company | E52: Rec | F52: Rec Price | G52: Stop Loss | H52: Call Closed At | I52: Target | J52: Remark | K52: Profit / Loss per share | L52: All charges | M52: Gain / Loss per Lot | N52: Lot | O52: Status | P52: Closed Date
A53: 1 | B53: 2023-02-21 | D53: IGL MAR FUT | E53: Buy | F53: 442.5 | G53: 432 | H53: 432 | I53: 455-463 | J53: Loss of Rs.10.50/- | K53: =H53-F53 -> -10.5 | L53: 100.00 | M53: =(K53*N53)-100 -> -14275.0 | N53: 1350 | O53: Unsuccessful | P53: 2023-03-03 | R53: N
A54: 2 | B54: 2023-02-22 | D54: BATAINDIA MAR FUT | E54: Buy | F54: 1420-1425 | G54: 1380 | I54: 1470-1480 | J54: Open | R54: H
A55: 3 | B55: 2023-03-01 | D55: LT MAR FUT | E55: Buy | F55: 2130 | G55: 2090 | H55: 2162 | I55: 2170-2200 | J55: Profit of Rs.32/- | K55: =H55-F55 -> 32 | L55: 100.00 | M55: =(K55*N55)-100 -> 9500.0 | N55: 300 | O55: Successful | P55: 2023-03-03 | R55: H
A56: 4 | B56: 2023-03-01 | D56: BHARTIARTL MAR FUT | E56: Buy | F56: 753 | G56: 739 | H56: 762.5 | I56: 770-780 | J56: Profit of Rs.9.50/- | K56: =H56-F56 -> 9.5 | L56: 100.00 | M56: =(K56*N56)-100 -> 8925.0 | N56: 950 | O56: Successful | P56: 2023-03-03 | R56: H
A57: 5 | B57: 2023-03-02 | D57: SIEMENS MAR FUT | E57: Buy | F57: 3202.5 | G57: 3155 | H57: 3155 | I57: 3260-3290 | J57: Loss of Rs.47.5/- | K57: =H57-F57 -> -47.5 | L57: 100.00 | M57: =(K57*N57)-100 -> -13162.5 | N57: 275 | O57: Unsuccessful | P57: 2023-03-02 | R57: N
A58: 6 | B58: 2023-03-10 | D58: RELIANCE MAR FUT | E58: Buy | F58: 2340 | G58: 2290 | H58: 2290 | I58: 2390-2420 | J58: Loss of Rs.50/- | K58: =H58-F58 -> -50 | L58: 100.00 | M58: =(K58*N58)-100 -> -12600.0 | N58: 250 | O58: Unsuccessful | P58: 2023-03-13 | R58: H
A59: 7 | B59: 2023-03-14 | D59: LUPIN MAR FUT | E59: Buy | F59: 659 | G59: 645 | H59: 669.5 | I59: 680-690 | J59: Profit of Rs.10.50/- | K59: 10.5 | L59: 100.00 | M59: 8825.0 | N59: 850 | O59: Successful | P59: 2023-03-16 | R59: N
A60: 8 | B60: 2023-03-14 | D60: NIFTY MAR FUT | E60: Buy | F60: 17150 | G60: 16880 | H60: 16880 | I60: 17400-17500 | J60: Loss of Rs.194/- | K60: =H60-F60 -> -270 | L60: 400.00 | M60: -13600.0 | N60: 50 | O60: Unsuccessful | P60: 2023-03-20 | R60: H
D61: NIFTY 17400 CE 29 MAR | E61: Sell | F61: 105 | H61: 29 | K61: =F61-H61 -> 76 | L61: 100.00 | M61: =76*50 -> 3800.0
A62: 9 | B62: 2023-03-14 | D62: ONGC MAR FUT | E62: Buy | F62: 156 | G62: 152.75 | H62: 152.75 | I62: 160-162 | J62: Loss of Rs.3.25/- | K62: =H62-F62 -> -3.25 | L62: 100.00 | M62: =(K62*N62)-100 -> -12612.5 | N62: 3850 | O62: Unsuccessful | P62: 2023-03-15 | R62: N
A63: 10 | B63: 2023-03-15 | D63: MCDOWELL-N MAR FUT | E63: Buy | F63: 771-773 | G63: 752 | I63: 795-805 | J63: Open | R63: H
A64: 11 | B64: 2023-03-15 | D64: MPHASIS MAR FUT | E64: Buy | F64: 1905 | G64: 1845 | H64: 1845 | I64: 1980-2020 | J64: Loss of Rs.60/- | K64: =H64-F64 -> -60 | L64: 100.00 | M64: =(K64*N64)-100 -> -16600.0 | N64: 275 | O64: Unsuccessful | P64: 2023-03-20 | R64: H
A65: 12 | B65: 2023-03-17 | D65: ICICIBANK MAR FUT | E65: Buy | F65: 832 | G65: 814 | H65: 845 | I65: 850-860 | J65: Profit of Rs.13/- | K65: 13 | L65: 100.00 | M65: 9000.0 | N65: 700 | O65: Successful | P65: 2023-03-21 | R65: H
A66: 13 | B66: 2023-03-20 | D66: LUPIN MAR FUT | E66: Buy | F66: 647-649 | G66: 633 | I66: 670-680 | J66: Open
A71: Master Trade Medium Risk
A72: Sr.no | B72: Date | D72: Company | E72: Rec | F72: Rec Price | G72: Stop Loss | H72: Call Closed At | I72: Target | J72: Remark | K72: Profit/ Loss per lot | L72: All charges | M72: Gain / Loss per Lot | N72: Lot | O72: Status | P72: Closed Date
A73: 1 | B73: 2023-02-28 | D73: LT 2160 CE MAR | E73: Buy | F73: 38 | G73: 21 | H73: 45.5 | I73: 60-70 | J73: Profit of Rs.7.5/- | K73: =H73-F73 -> 7.5 | L73: 100.00 | M73: =(K73*N73)-100 -> 2150.0 | N73: 300 | O73: Successful | P73: 2023-03-02 | R73: N
A74: 2 | B74: 2023-02-28 | D74: RELIANCE 2400 CE MAR | E74: Buy | F74: 38-40 | J74: Open | R74: H
D75: RELIANCE 2460 CE MAR | E75: Sell | F75: 19-21
A76: 3 | B76: 2023-02-28 | D76: ACC 1900 CE MAR | E76: Buy | F76: 22 | H76: 28.5 | I76: 50-60 | J76: Profit of Rs.6.5/- | K76: =H76-F76 -> 6.5 | L76: 100.00 | M76: =(K76*N76)-100 -> 1525.0 | N76: 250 | O76: Successful | P76: 2023-03-01 | R76: H
A77: 4 | B77: 2023-03-01 | D77: ACC 1900 CE MAR | E77: Buy | F77: 20.5 | H77: 27.5 | I77: 50-60 | J77: Profit of Rs.7/- | K77: =H77-F77 -> 7 | L77: 100.00 | M77: =(K77*N77)-100 -> 1650.0 | N77: 250 | O77: Successful | P77: 2023-03-02 | R77: H
A78: 5 | B78: 2023-03-01 | D78: NIFTY 17400 CE 2-MAR | E78: Buy | F78: 71 | G78: 40 | H78: 91 | I78: 110-140 | J78: Profit of Rs.20/- | K78: =H78-F78 -> 20 | L78: 100.00 | M78: =(K78*N78)-100 -> 900.0 | N78: 50 | O78: Successful | P78: 2023-03-01 | R78: H
A79: 6 | B79: 2023-03-02 | D79: NIFTY 17400 CE 2-MAR | E79: Buy | F79: 19 | G79: 0 | H79: 0 | I79: 50-60 | J79: Loss of Rs.19/- | K79: =H79-F79 -> -19 | L79: 100.00 | M79: =(K79*N79)-100 -> -1050.0 | N79: 50 | O79: Unsuccessful | P79: 2023-03-02 | R79: N
A80: 7 | B80: 2023-03-02 | D80: BANKNIFTY 40400 CE 2-MAR | E80: Buy | F80: 65 | G80: 0 | H80: 95 | I80: 150-200 | J80: Profit of Rs.30/- | K80: 30 | L80: 100.00 | M80: 650.0 | N80: 25 | O80: Successful | P80: 2023-03-02 | R80: H
A81: 8 | B81: 2023-03-03 | D81: POLYCAB 3200 CE MAR | E81: Sell | F81: 43 | G81: 64 | H81: 27 | I81: 20.0-5 | J81: Profit of Rs.16/- | K81: =F81-H81 -> 16 | L81: 100.00 | M81: 4700.0 | N81: 300 | O81: Successful | P81: 2023-03-10 | R81: H
A82: 9 | B82: 2023-03-06 | D82: NIFTY 18000 CE 29-MAR | E82: Sell | F82: 97.5 | G82: 140 | H82: 67.5 | I82: 40-5 | J82: Profit of Rs.30/- | K82: =F82-H82 -> 30 | L82: 100.00 | M82: =(K82*N82)-100 -> 1400.0 | N82: 50 | O82: Successful | P82: 2023-03-08 | R82: H
A83: 10 | B83: 2023-03-06 | D83: NIFTY 17750 PE 9-MAR | E83: Buy | F83: 57 | G83: 18 | H83: 80 | I83: 100-130 | J83: Profit of Rs.23/- | K83: =H83-F83 -> 23 | L83: 100.00 | M83: =(K83*N83)-100 -> 1050.0 | N83: 50 | O83: Successful | P83: 2023-03-06 | R83: N
A84: 11 | B84: 2023-03-08 | D84: IGL 460 CE MAR | E84: Buy | F84: 10.5 | G84: 7 | H84: 6 | I84: 16-18 | J84: Profit of Rs.4.50/- | K84: =H84-F84 -> -4.5 | L84: 100.00 | M84: =(K84*N84)-100 -> -6287.5 | N84: 1375 | O84: Unsuccessful | P84: 2023-03-10 | R84: H
A85: 12 | B85: 2023-03-08 | D85: BATAINDIA 1420 CE MAR | E85: Buy | F85: 29 | G85: 13 | H85: 37.5 | I85: 45-50 | J85: Profit of Rs.8.5/- | K85: =H85-F85 -> 8.5 | L85: 100.00 | M85: =(K85*N85)-100 -> 2237.5 | N85: 275 | O85: Successful | P85: 2023-03-08 | R85: H
A86: 13 | B86: 2023-03-08 | D86: NIFTY 18000 CE 29-MAR | E86: Sell | F86: 94 | G86: 140 | H86: 73 | I86: 1.00 | J86: Profit of Rs.21/- | K86: =F86-H86 -> 21 | L86: 100.00 | M86: 950.0 | N86: 50 | O86: Successful | P86: 2023-03-09 | R86: H
A87: 14 | B87: 2023-03-09 | D87: BANKNIFTY 41500 CE 9-MAR | E87: Buy | F87: 65 | H87: 125 | I87: 150-200 | J87: Profit of Rs.60/- | K87: =H87-F87 -> 60 | L87: 100.00 | M87: 1400.0 | N87: 25 | O87: Successful | P87: 2023-03-09 | R87: N
A88: 15 | B88: 2023-03-09 | D88: RELIANCE 2380 CE MAR | E88: Buy | F88: 50 | G88: 30 | H88: 30 | I88: 80-90 | J88: Loss of Rs.20/- | K88: -20 | L88: 100.00 | M88: -5100.0 | N88: 250 | O88: Unsuccessful | P88: 2023-03-10 | R88: H
A89: 16 | B89: 2023-03-09 | D89: NIFTY 17650 CE 9-MAR | E89: Buy | F89: 45 | G89: 9 | H89: 67 | I89: 90-110 | J89: Profit of Rs.22/- | K89: =H89-F89 -> 22 | L89: 100.00 | M89: =(K89*N89)-100 -> 1000.0 | N89: 50 | O89: Successful | P89: 2023-03-09 | R89: H
A90: 17 | B90: 2023-03-09 | D90: BATAINDIA 1440 CE MAR | E90: Buy | F90: 27.5 | G90: 13 | H90: 13 | I90: 45-60 | J90: Loss of Rs.14/- | K90: -14.5 | L90: 100.00 | M90: -4087.5 | N90: 275 | O90: Unsuccessful | P90: 2023-03-20 | R90: H
A91: 18 | B91: 2023-03-09 | D91: BANKNIFTY 41400 CE 9-MAR | E91: Buy | F91: 45 | G91: 0 | H91: 0 | I91: 80-100 | J91: Loss of Rs.45/- | K91: =H91-F91 -> -45 | L91: 100.00 | M91: =(K91*N91)-100 -> -1225.0 | N91: 25 | O91: Unsuccessful | P91: 2023-03-09 | R91: N
A92: 19 | B92: 2023-03-10 | D92: NIFTY 17500 CE 16-MAR | E92: Buy | F92: 62.5 | G92: 28 | H92: 64 | I92: 90-110 | J92: Profit of Rs.1.5/- | K92: 1.5 | L92: 100.00 | M92: -25.0 | N92: 50 | O92: Neutral | P92: 2023-03-10 | R92: H
A93: 20 | B93: 2023-03-10 | D93: LT 2160 CE MAR | E93: Buy | F93: 39 | G93: 21 | H93: 48.5 | I93: 60-75 | J93: Profit of Rs.9.5/- | K93: =H93-F93 -> 9.5 | L93: 100.00 | M93: =(K93*N93)-100 -> 2750.0 | N93: 300 | O93: Successful | P93: 2023-03-13 | R93: H
A94: 21 | B94: 2023-03-10 | D94: MARUTI 8600 CE MAR | E94: Buy | F94: 138 | G94: 90 | H94: 163.5 | I94: 180-220 | J94: Profit of Rs.25.5/- | K94: =H94-F94 -> 25.5 | L94: 100.00 | M94: =(K94*N94)-100 -> 2450.0 | N94: 100 | O94: Successful | P94: 2023-03-10 | R94: N
A95: 22 | B95: 2023-03-10 | D95: MARUTI 8600 CE MAR | E95: Buy | F95: 131 | G95: 80 | H95: 154 | I95: 170-200 | J95: Profit of Rs.23/- | K95: =H95-F95 -> 23 | L95: 100.00 | M95: =(K95*N95)-100 -> 2200.0 | N95: 100 | O95: Successful | P95: 2023-03-10 | R95: N
A96: 23 | B96: 2023-03-13 | D96: LALPATHLAB 1800 PE MAR | E96: Buy | F96: 32 | G96: 14 | H96: 52 | I96: 50-65 | J96: Profit of Rs.23/- | K96: =H96-F96 -> 20 | L96: 100.00 | M96: =(K96*N96)-100 -> 4900.0 | N96: 250 | O96: Successful | P96: 2023-03-13 | R96: N
A97: 24 | B97: 2023-03-13 | D97: TECHM 1180 CE 29-MAR | E97: Sell | F97: 16 | G97: 25 | H97: 10 | I97: 1.00 | J97: Profit of Rs.6/- | K97: =F97-H97 -> 6 | L97: 100.00 | M97: 3500.0 | N97: 600 | O97: Successful | P97: 2023-03-13 | R97: H
A98: 25 | B98: 2023-03-13 | D98: LT 2160 CE MAR | E98: Buy | F98: 41 | G98: 23 | H98: 48.5 | I98: 60-75 | J98: Profit of Rs.7.5/- | K98: =H98-F98 -> 7.5 | L98: 100.00 | M98: 2150.0 | N98: 300 | O98: Successful | P98: 2023-03-14 | R98: N
A99: 26 | B99: 2023-03-13 | D99: NIFTY 17500 CE 16-MAR | E99: Buy | F99: 38 | G99: 8 | H99: 9.5 | I99: 80-100 | J99: Loss of Rs.28.5/- | K99: -28.5 | L99: 100.00 | M99: -2950.0 | N99: 100 | O99: Unsuccessful | P99: 2023-03-14 | R99: H
A100: 27 | B100: 2023-03-13 | D100: ULTRACEMCO 7200 CE MAR | E100: Buy | F100: 128 | G100: 90 | H100: 90 | I100: 170-200 | J100: Loss of Rs.38/- | K100: =H100-F100 -> -38 | L100: 100.00 | M100: =(K100*N100)-100 -> -3900.0 | N100: 100 | O100: Unsuccessful | P100: 2023-03-14 | R100: N
A101: 28 | B101: 2023-03-13 | D101: BANKNIFTY 40100 CE 16-MAR | E101: Buy | F101: 250 | G101: 130 | H101: 130 | I101: 400-500 | J101: Loss of Rs.120/- | K101: =H101-F101 -> -120 | L101: 100.00 | M101: =(K101*N101)-100 -> -3100.0 | N101: 25 | O101: Unsuccessful | P101: 2023-03-13 | R101: N
A102: 29 | B102: 2023-03-14 | D102: LT 2160 CE MAR | E102: Buy | F102: 39 | G102: 21 | H102: 49 | I102: 60-75 | J102: Profit of Rs.10/- | K102: 10 | L102: 100.00 | M102: 2900.0 | N102: 300 | O102: Successful | P102: 2023-03-15 | R102: N
A103: 30 | B103: 2023-03-14 | D103: MARUTI 8500 CE MAR | E103: Buy | F103: 145 | G103: 95 | H103: 165 | I103: 200-240 | J103: Profit of Rs.20/- | K103: =H103-F103 -> 20 | L103: 100.00 | M103: =(K103*N103)-100 -> 1900.0 | N103: 100 | O103: Successful | P103: 2023-03-14 | R103: H
A104: 31 | B104: 2023-03-14 | D104: MARUTI 8500 CE MAR | E104: Buy | F104: 145 | G104: 95 | H104: 163 | I104: 200-240 | J104: Profit of Rs.18/- | K104: 18 | L104: 100.00 | M104: 1700.0 | N104: 100 | O104: Successful | P104: 2023-03-14 | R104: H
A105: 32 | B105: 2023-03-14 | D105: BANKNIFTY 39600 CE 16 MAR | E105: Buy | F105: 285 | G105: 150 | H105: 425 | I105: 500.00 | J105: Profit of Rs.140/- | K105: 140 | L105: 100.00 | M105: 3400.0 | N105: 25 | O105: Successful | P105: 2023-03-15 | R105: N
A106: 33 | B106: 2023-03-15 | D106: BANKNIFTY 39500 CE 16 MAR | E106: Buy | F106: 260 | G106: 130 | H106: 315 | I106: 400-500 | J106: Profit of Rs.55/- | K106: =H106-F106 -> 55 | L106: 100.00 | M106: =(K106*N106)-100 -> 1275.0 | N106: 25 | O106: Successful | P106: 2023-03-15 | R106: N
A107: 34 | B107: 2023-03-15 | D107: M&M 1180 CE MAR | E107: Buy | F107: 19.5 | G107: 13 | H107: 23.5 | I107: 30-35 | J107: Profit of Rs.4/- | K107: 4 | L107: 100.00 | M107: 2700.0 | N107: 700 | O107: Successful | P107: 2023-03-15 | R107: H
A108: 35 | B108: 2023-03-15 | D108: BANKNIFTY 39500 CE 16 MAR | E108: Buy | F108: 235 | G108: 120 | H108: 120 | I108: 400-500 | J108: Loss of Rs.115/- | K108: =H108-F108 -> -115 | L108: 100.00 | M108: =(K108*N108)-100 -> -2975.0 | N108: 25 | O108: Unsuccessful | P108: 2023-03-15 | R108: N
A109: 36 | B109: 2023-03-16 | D109: LT 2160 CE MAR | E109: Buy | F109: 30 | G109: 13 | H109: 37.5 | I109: 55-70 | J109: Profit of Rs.7.5/- | K109: =H109-F109 -> 7.5 | L109: 100.00 | M109: 2150.0 | N109: 300 | O109: Successful | P109: 2023-03-16 | R109: N
A110: 37 | B110: 2023-03-16 | D110: NIFTY 16950 CE 16-MAR | E110: Buy | F110: 26 | G110: 0 | H110: 46 | I110: 50-70 | J110: Profit of Rs.20/- | K110: 20 | L110: 100.00 | M110: =(K110*N110)-100 -> 900.0 | N110: 50 | O110: Successful | P110: 2023-03-16 | R110: N
A111: 38 | B111: 2023-03-17 | D111: BANKNIFTY 39500 CE 23-MAR | E111: Buy | F111: 350 | G111: 240 | H111: 240 | I111: 500-600 | J111: Loss of Rs.110/- | K111: =H111-F111 -> -110 | L111: 100.00 | M111: -2850.0 | N111: 25 | O111: Unsuccessful | P111: 2023-03-17 | R111: H
A112: 39 | B112: 2023-03-17 | D112: M&M 1180 CE MAR | E112: Buy | F112: 18 | G112: 12 | H112: 21.5 | I112: 25-30 | J112: Profit of Rs.3.5/- | K112: 3.5 | L112: 100.00 | M112: 2350.0 | N112: 700 | O112: Successful | P112: 2023-03-17 | R112: H
A113: 40 | B113: 2023-03-17 | D113: BHARTIARTL 750 CE MAR | E113: Buy | F113: 8.75 | G113: 3.5 | H113: 11.1 | I113: 15-18 | J113: Profit of Rs.2.35/- | K113: =H113-F113 -> 2.35 | L113: 100.00 | M113: =(K113*N113)-100 -> 2132.5 | N113: 950 | O113: Successful | P113: 2023-03-17 | R113: H
A114: 41 | B114: 2023-03-20 | D114: M&M 1180 CE MAR | E114: Buy | F114: 12.5 | G114: 5 | H114: 16.5 | I114: 20-25 | J114: Profit of Rs.4/- | K114: 4 | L114: 100.00 | M114: 2700.0 | N114: 700 | O114: Successful | P114: 2023-03-21
A115: 42 | B115: 2023-03-20 | D115: MCDOWELL-N 780 CE MAR | E115: Buy | F115: 7.0-8.0 | I115: 15-20 | J115: Open
A116: 43 | B116: 2023-03-20 | D116: LT 2160 CE MAR | E116: Buy | F116: 35 | G116: 19 | H116: 43 | I116: 50-60 | J116: Profit of Rs.8/- | K116: =H116-F116 -> 8 | L116: 100.00 | M116: =(K116*N116)-100 -> 2300.0 | N116: 300 | O116: Successful | P116: 2023-03-20
A117: 44 | B117: 2023-03-20 | D117: NIFTY 16950 CE 23-MAR | E117: Buy | F117: 87 | G117: 40 | H117: 109 | I117: 140-160 | J117: Profit of Rs.22/- | K117: 22 | L117: 100.00 | M117: 1000.0 | N117: 50 | O117: Successful | P117: 2023-03-20
A118: 45 | B118: 2023-03-21 | D118: MARUTI 8300 CE MAR | E118: Buy | F118: 100-102 | G118: 55 | I118: 160-190 | J118: Open
A119: 46 | B119: 2023-03-21 | D119: HINDUNILVR 2500 CE MAR | E119: Buy | F119: 23-25 | G119: 9 | I119: 40-50 | J119: Open
A123: Techno -Funda (positional)
A124: Sr.no | B124: Date | D124: Company | E124: Rec | F124: Rec Price | G124: Stop Loss*** | H124: Call Closed At | I124: Target | J124: Remark | K124: Profit / Loss per Share/Lot | L124: All charges | M124: Net Gain / Loss % | N124: Status | O124: Closed Date | P124: Market Closing Price
A125: 1 | B125: 2022-10-06 | D125: AMBIKCO | E125: Buy | F125: 1420-1620 | G125: 1220 | I125: 2000-2300 | J125: Open | R125: H
A127: CLBS = Closing Basis *** | F127: Reinitiated $
A128: Dividend adjusted <> | F128: Revised stoploss # | H128: .................
B132: Investment Idea
A133: Sr.no | B133: Date | D133: Company | E133: Rec | F133: Rec Price | G133: Point of Review | H133: Close Rate | I133: Target | J133: Remark | K133: Profit / Loss per Share | L133: Gain / Loss % | M133: Status | N133: Closed Date
A134: 1 | B134: 2013-11-01 | D134: L&T Finance Holding | E134: Accu | F134: 82.00 | G134: - | H134: 100 | I134: 100.00 | J134: Target Achieved | K134: =H134-F134 -> 18.00 | L134: =K134/F134 -> 21.95% | M134: Successful | N134: 2016-10-14
A135: 2 | B135: 2014-06-04 | D135: Finolex Inds | E135: Buy | F135: 257.00 | G135: - | H135: 300 | I135: 300.00 | J135: Target Achieved | K135: 43.00 | L135: 16.73% | M135: Successful | N135: 2014-07-02
A136: 3 | B136: 2014-07-08 | D136: JK Cement | E136: Buy | F136: 393.00 | G136: - | H136: 468 | I136: 468.00 | J136: Target Achieved | K136: 75.00 | L136: 19.08% | M136: Successful | N136: 2014-08-12
A137: 4 | B137: 2014-08-06 | D137: Finolex Cables | E137: Buy | F137: 205.00 | G137: - | H137: 275 | I137: 250.00 | J137: Target Achieved | K137: 70.00 | L137: 34.15% | M137: Successful | N137: 2014-11-19
A138: 5 | B138: 2014-09-04 | D138: Exide Inds | E138: Buy | F138: 162.00 | G138: - | H138: 190 | I138: 190.00 | J138: Target Achieved | K138: 28.00 | L138: 17.28% | M138: Successful | N138: 2015-01-02
A139: 6 | B139: 2014-09-04 | D139: Deepak Nitrite | E139: Buy | F139: 75.00 | G139: - | H139: 91.5 | I139: 95-100 | J139: Profit of Rs.16.50/- | K139: 16.50 | L139: 22.00% | M139: Successful | N139: 2014-11-11
A140: 7 | B140: 2014-10-01 | D140: Mercks | E140: Buy | F140: 850.00 | G140: - | H140: 982.5 | I140: 1050.00 | J140: Profit of Rs.132.50/- | K140: 132.50 | L140: 15.59% | M140: Successful | N140: 2015-02-04
A141: 8 | B141: 2014-10-01 | D141: Grindwell Norton | E141: Buy | F141: 475.00 | G141: - | H141: 515 | I141: 600.00 | J141: Profit of Rs.40/- | K141: 40.00 | L141: 8.42% | M141: Successful | N141: 2014-10-27
A142: 9 | B142: 2014-10-01 | D142: Snowman Logistics | E142: Buy | F142: 86.00 | G142: - | H142: 99 | I142: 140.00 | J142: Profit of Rs.13.00/- | K142: 13.00 | L142: 15.12% | M142: Successful | N142: 2014-10-27
A143: 10 | B143: 2014-10-14 | D143: Birla Corp | E143: Buy | F143: 496.60 | G143: - | H143: 621 | I143: 580.00 | J143: Target Achieved | K143: 124.40 | L143: 25.05% | M143: Successful | N143: 2016-08-23
A144: 11 | B144: 2014-10-14 | D144: Ultratech Cem | E144: Buy | F144: 2481.90 | G144: - | H144: 2840 | I144: 2870.00 | J144: Profit of Rs.358.10/- | K144: 358.10 | L144: 14.43% | M144: Successful | N144: 2015-01-13
A145: 12 | B145: 2014-10-16 | D145: Sintex Inds | E145: Buy | F145: 84.50 | G145: - | H145: 93 | I145: 110.00 | J145: Profit of Rs.8.50/- | K145: 8.50 | L145: 10.06% | M145: Successful | N145: 2014-10-27
A146: 13 | B146: 2014-10-16 | D146: HSIL | E146: Buy | F146: 401.00 | G146: - | H146: 428 | I146: 450.00 | J146: Profit of Rs.27.00/- | K146: 27.00 | L146: 6.73% | M146: Successful | N146: 2015-01-16
A147: 14 | B147: 2014-10-16 | D147: Eveready Inds | E147: Buy | F147: 101.00 | G147: - | H147: 112 | I147: 120.00 | J147: Profit of Rs.11.00/- | K147: 11.00 | L147: 10.89% | M147: Successful | N147: 2014-10-27
A148: 15 | B148: 2014-11-11 | D148: Pennar Inds | E148: Buy | F148: 59.00 | G148: - | H148: 76 | I148: 76.00 | J148: Target Achieved | K148: 17.00 | L148: 28.81% | M148: Successful | N148: 2017-10-24
A149: 16 | B149: 2014-11-11 | D149: Snowman Logistics | E149: Buy | F149: 99.00 | G149: - | H149: 120 | I149: 120.00 | J149: Profit of Rs.21/- | K149: 21.00 | L149: 21.21% | M149: Successful | N149: 2014-11-17
A150: 17 | B150: 2014-11-13 | D150: Dharamsi Morarji Chem | E150: Buy | F150: 22.00 | G150: - | H150: 33.55 | I150: 32.00 | J150: Profit of Rs 11.55/- | K150: 11.55 | L150: 52.50% | M150: Successful | N150: 2015-07-03
A151: 18 | B151: 2014-12-03 | D151: Tatachem | E151: Buy | F151: 440.00 | G151: - | H151: 520 | I151: 520.00 | J151: Profit of Rs 80.00/- | K151: 80.00 | L151: 18.18% | M151: Successful | N151: 2015-07-23
A152: 19 | B152: 2014-12-03 | D152: Advanta | E152: Buy | F152: 360.00 | G152: - | H152: 427 | I152: 425.00 | J152: Profit of Rs.67.00/- | K152: 67.00 | L152: 18.61% | M152: Successful | N152: 2015-02-23
A153: 20 | B153: 2015-01-08 | D153: GDL | E153: Buy | F153: 360.00 | G153: - | H153: 455 | I153: 420.00 | J153: Profit of Rs.95.00/- | K153: 95.00 | L153: 26.39% | M153: Successful | N153: 2015-01-20
A154: 21 | B154: 2015-01-08 | D154: NRB Bearing | E154: Buy | F154: 130.00 | H154: 175.5 | I154: 165.00 | J154: Profit of Rs 45.50/- | K154: 45.50 | L154: 35.00% | M154: Successful | N154: 2017-12-19
A155: 22 | B155: 2015-02-05 | D155: GSFC | E155: Accu | F155: 98.00 | H155: 120 | I155: 120.00 | J155: Target Achieved | K155: 22.00 | L155: 22.45% | M155: Successful | N155: 2017-01-18
A156: 23 | B156: 2015-02-05 | D156: Sundrmfast | E156: Accu | F156: 196.00 | H156: 262 | I156: 255.00 | J156: Target Achieved | K156: 66.00 | L156: 33.67% | M156: Successful | N156: 2016-08-17
A157: 24 | B157: 2015-03-04 | D157: GPPL | E157: Accu | F157: 235 | H157: 77.00 | I157: 280-285 | J157: Loss of Rs.158/- | K157: -158.00 | L157: -67.23% | M157: Unsuccessful | N157: 2019-02-26
A158: 25 | B158: 2015-03-04 | D158: ORIENTCEM | E158: Accu | F158: 185.00 | H158: 224 | I158: 220-225 | J158: Target Achieved | K158: 39.00 | L158: 21.08% | M158: Successful | N158: 2016-10-04
A159: 26 | B159: 2015-03-27 | D159: PFS | E159: Accu | F159: 49.5 | H159: 15.85 | I159: 67.00 | J159: Loss of Rs.33.65/- | K159: -33.65 | L159: -68% | M159: Unsuccessful | N159: 2019-06-11
A160: 27 | B160: 2015-03-30 | D160: Walchandnagar Ind Ltd | E160: Accu | F160: 183.50 | H160: 219 | I160: 218.00 | J160: Profit of Rs.35.50/- | K160: 35.50 | L160: 19.35% | M160: Successful | N160: 2015-04-09
A161: 28 | B161: 2015-04-20 | D161: Kalpataru Power Transmission Ltd | E161: Accu | F161: =(227+237)/2 -> 232.00 | H161: 298 | I161: 298.00 | J161: Target Achieved | K161: 66.00 | L161: 28.45% | M161: Successful | N161: 2017-03-29
A162: 29 | B162: 2015-05-04 | D162: Mastek Ltd | E162: Buy | F162: 385.00 | H162: =212.5+331 -> 543.5 | I162: 510.00 | J162: Profit of Rs 158.50/- | K162: 158.50 | L162: 41.17% | M162: Successful | N162: 2015-08-19
A163: 30 | B163: 2015-05-04 | D163: Suprajit Eng | E163: Buy | F163: 115.50 | H163: 146 | I163: 142.00 | J163: Profit of Rs 30.50/- | K163: 30.50 | L163: 26.41% | M163: Successful | N163: 2015-07-17
A164: 31 | B164: 2015-05-27 | D164: TCI | E164: Buy | F164: 237.50 | H164: 279.5 | I164: 278.00 | J164: Target Achieved | K164: 42.00 | L164: 17.68% | M164: Successful | N164: 2015-08-06
A165: 32 | B165: 2015-06-19 | D165: HSIL | E165: Accu | F165: 340.00 | H165: 448 | I165: 448.00 | J165: Target Achieved | K165: 108.00 | L165: 31.76% | M165: Successful | N165: 2017-10-10
A166: 33 | B166: 2015-07-06 | D166: Capital First | E166: Accu | F166: 390.00 | H166: 460 | I166: 460.00 | J166: Target Achieved | K166: 70.00 | L166: 17.95% | M166: Successful | N166: 2016-04-18
A167: 34 | B167: 2015-07-10 | D167: Dolphin OffShore | E167: Accu | F167: 122.5 | H167: 61.00 | I167: 172.00 | J167: Loss of Rs.61.50/- | K167: -61.50 | L167: -50.20% | M167: Unsuccessful | N167: 2018-08-21
A168: 35 | B168: 2015-08-03 | D168: Allcargo logistics | E168: Accu | F168: 297.50 | H168: 350 | I168: 360.00 | J168: Profit of Rs 52.50/- | K168: 52.50 | L168: 17.65% | M168: Successful | N168: 2015-08-16
A169: 36 | B169: 2015-08-03 | D169: Camline Fine | E169: Accu | F169: 115.50 | H169: 149 | I169: 140.00 | J169: Profit of Rs 33.50/- | K169: 33.50 | L169: 29.00% | M169: Successful | N169: 2017-01-05
A170: 37 | B170: 2015-09-04 | D170: TCI | E170: Accu | F170: 226.00 | H170: 292 | I170: 292.00 | J170: Target Achieved | K170: 66.00 | L170: 29.20% | M170: Successful | N170: 2015-10-09
A171: 38 | B171: 2015-09-07 | D171: Kalpataru Power Transmission Ltd | E171: Accu | F171: 232.50 | H171: 312.5 | I171: 310.00 | J171: Target Achieved | K171: 80.00 | L171: 34.41% | M171: Successful | N171: 2017-03-29
A172: 39 | B172: 2015-09-21 | D172: LLOYD ELECTRIC & ENG LTD | E172: Accu | F172: 196.50 | H172: 238 | I172: 238.00 | J172: Target Achieved | K172: 41.50 | L172: 21.12% | M172: Successful | N172: 2015-10-14
A173: 40 | B173: 2015-09-24 | D173: L&T Finance Holding | E173: Accu | F173: 65.00 | H173: 82 | I173: 82.00 | J173: Target Achieved | K173: 17.00 | L173: 26.15% | M173: Successful | N173: 2016-07-27
A174: 41 | B174: 2015-10-14 | D174: KEC International ltd | E174: Accu | F174: 144.00 | H174: 182.5 | I174: 181.00 | J174: Target Achieved | K174: 38.50 | L174: 26.74% | M174: Successful | N174: 2017-03-23
A175: 42 | B175: 2015-10-14 | D175: Gruh Finance | E175: Accu | F175: 264.00 | H175: 311 | I175: 311.00 | J175: Target Achieved | K175: 47.00 | L175: 17.80% | M175: Successful | N175: 2016-08-22
A176: 43 | B176: 2015-11-10 | D176: Pidilitind | E176: Buy | F176: 549.50 | H176: 630 | I176: 630.00 | J176: Target Achieved | K176: 80.50 | L176: 14.65% | M176: Successful | N176: 2016-02-19
A177: 44 | B177: 2015-12-04 | D177: Zensar Technology | E177: Accu | F177: 1027.50 | H177: 1315 | I177: 1250.00 | J177: Target Achieved | K177: 287.50 | L177: 27.98% | M177: Successful | N177: 2018-05-24
A178: 45 | B178: 2015-12-29 | D178: Vinati Organics Ltd | E178: Accu | F178: 465.00 | H178: 540 | I178: 540.00 | J178: Target Achieved | K178: 75.00 | L178: 16.13% | M178: Successful | N178: 2016-06-09
A179: 46 | B179: 2016-01-11 | D179: GSFC | E179: Buy | F179: 81.00 | H179: 110 | I179: 110.00 | J179: Target Achieved | K179: 29.00 | L179: 35.80% | M179: Successful | N179: 2017-01-10
A180: 47 | B180: 2016-01-13 | D180: SSWL | E180: Buy | F180: 417.50 | H180: 547 | I180: 535.00 | J180: Target Achieved | K180: 129.50 | L180: 31.02% | M180: Successful | N180: 2016-07-27
A181: 48 | B181: 2016-02-08 | D181: Persistent System Ltd | E181: Accu | F181: 650.00 | H181: 800 | I181: 800.00 | J181: Target Achieved | K181: 150.00 | L181: 23.08% | M181: Successful | N181: 2018-02-23
A182: 49 | B182: 2016-03-04 | D182: UPL | E182: Accu | F182: 437.50 | H182: 504.5 | I182: 522.00 | J182: Profit of Rs.67/- | K182: 67.00 | L182: 15.31% | M182: Successful | N182: 2016-04-20
A183: 50 | B183: 2016-03-09 | D183: Ashoka Buildcon Ltd | E183: Accu | F183: 189.50 | H183: 218 | I183: 218.00 | J183: Target Achieved | K183: 28.50 | L183: 15.04% | M183: Successful | N183: 2017-10-26
A184: 51 | B184: 2016-04-11 | D184: PTC INDIA FIN SERV LTD | E184: Accu | F184: 36.5 | H184: 15.85 | I184: 60.00 | J184: Loss of Rs.20.65/- | K184: -20.65 | L184: -56.58% | M184: Unsuccessful | N184: 2019-06-11
A185: 52 | B185: 2016-04-12 | D185: CAMLINFINE $ | E185: Accu | F185: 93.00 | H185: 149 | I185: 140.00 | J185: Profit of Rs 56/- | K185: 56.00 | L185: 60.22% | M185: Successful | N185: 2017-01-05
A186: 53 | B186: 2016-04-12 | D186: Greaves Cotton Ltd. | E186: Accu | F186: 130.00 | H186: 150 | I186: 150-155 | J186: Target Achieved | K186: 20.00 | L186: 15.38% | M186: Successful | N186: 2016-07-13
A187: 54 | B187: 2016-04-13 | D187: DHFL | E187: Accu | F187: 196.00 | H187: 299 | I187: 299.00 | J187: Target Achieved | K187: 103.00 | L187: 52.55% | M187: Successful | N187: 2016-09-07
A188: 55 | B188: 2016-04-13 | D188: Magma | E188: Accu | F188: 88.00 | H188: 103 | I188: 103.00 | J188: Target Achieved | K188: 15.00 | L188: 17.05% | M188: Successful | N188: 2016-06-09
A189: 56 | B189: 2016-05-02 | D189: KEC International ltd $ | E189: Accu | F189: 127.50 | H189: 148 | I189: 148-150 | J189: Target Achieved | K189: =H189-F189 -> 20.50 | L189: =K189/F189 -> 16.08% | M189: Successful | N189: 2016-07-13
A190: 57 | B190: 2016-05-03 | D190: Mindtree | E190: Accu | F190: 675.00 | H190: 815 | I190: 790-800 | J190: Target Achieved | K190: =H190-F190 -> 140.00 | L190: =K190/F190 -> 20.74% | M190: Successful | N190: 2018-02-23
A191: 58 | B191: 2016-06-01 | D191: Atulauto | E191: Accu | F191: 500 | H191: 232.50 | I191: 565-570 | J191: Loss of Rs.267.50 /- | K191: =H191-F191 -> -267.50 | L191: =K191/F191 -> -53.50% | M191: Unsuccessful | N191: 2019-09-27
A192: 59 | B192: 2016-06-06 | D192: TRITURBINE | E192: Accu | F192: 110.00 | H192: 126.5 | I192: 125.00 | J192: Profit of Rs.16.50/- | K192: =H192-F192 -> 16.50 | L192: =K192/F192 -> 15.00% | M192: Successful | N192: 2016-07-01
A193: 60 | B193: 2016-06-17 | D193: Pennar Industries Ltd | E193: Accu | F193: 44.00 | H193: 69.5 | I193: 69.50 | J193: Profit of Rs.25.50/- | K193: =H193-F193 -> 25.50 | L193: =K193/F193 -> 57.95% | M193: Successful | N193: 2017-08-30
A194: 61 | B194: 2016-06-28 | D194: EVEREADY | E194: Accu | F194: 262.50 | H194: 340 | I194: 333.00 | J194: Profit of Rs.77.50/- | K194: 77.50 | L194: 29.52% | M194: Successful | N194: 2017-10-09
A195: 62 | B195: 2016-06-28 | D195: FIEMIND | E195: Accu | F195: 840.00 | H195: 1230 | I195: 1230.00 | J195: Target Achieved | K195: 390.00 | L195: 46.43% | M195: Successful | N195: 2016-10-06
A196: 63 | B196: 2016-07-05 | D196: Bajaj Corp Ltd | E196: Accu | F196: 395 | H196: =(468.5+342.5)/2 -> 405.50 | I196: 510.00 | J196: Profit of Rs.10.50/- | K196: =H196-F196 -> 10.50 | L196: =K196/F196 -> 3% | M196: Neutral | N196: 2019-05-21
A197: 64 | B197: 2016-08-02 | D197: GPPL $ | E197: Buy | F197: =169.5-12.8 -> 156.7 | H197: 77.00 | I197: 198-200 | J197: Loss of Rs.79.7/- | K197: -79.70 | L197: -50.86% | M197: Unsuccessful | N197: 2019-02-26
A198: 65 | B198: 2016-08-04 | D198: WONDERLA HOLIDAYS LTD | E198: Accu | F198: 400 | H198: 305.00 | I198: 475.00 | J198: Loss of Rs.95/- | K198: -95.00 | L198: -23.75% | M198: Unsuccessful | N198: 2019-05-21
A199: 66 | B199: 2016-08-11 | D199: CAMLINFINE | E199: Accu | F199: 86.50 | H199: 130 | I199: 130.00 | J199: Profit of Rs.43.50/- | K199: 43.50 | L199: 50.29% | M199: Successful | N199: 2017-12-22
A200: 67 | B200: 2016-08-18 | D200: GRANULES | E200: Accu | F200: 133.5 | H200: 126.50 | I200: 178.00 | J200: Exit | K200: -7.00 | L200: -5.24% | M200: Unsuccessful | N200: 2016-09-02
A201: 68 | B201: 2016-08-31 | D201: VA TECH WABAG | E201: Accu | F201: 560.00 | H201: 725 | I201: 725.00 | J201: Target Achieved | K201: 165.00 | L201: 29.46% | M201: Successful | N201: 2016-03-27
A202: 69 | B202: 2016-09-01 | D202: SKIPPER LIMITED | E202: Accu | F202: 160.50 | H202: 210 | I202: 210.00 | J202: Target Achieved | K202: 49.50 | L202: 30.84% | M202: Successful | N202: 2017-05-16
A203: 70 | B203: 2016-10-03 | D203: IFBIND | E203: Accu | F203: 430.00 | H203: 596 | I203: 575.00 | J203: Profit of Rs.166/- | K203: 166.00 | L203: 38.60% | M203: Successful | N203: 2017-02-03
A204: 71 | B204: 2016-10-14 | D204: ASIANTILES | E204: Accu | F204: 280.00 | H204: 345 | I204: 345.00 | J204: Target Achieved | K204: =H204-F204 -> 65.00 | L204: =K204/F204 -> 23.21% | M204: Successful | N204: 2017-03-20
A205: 72 | B205: 2016-10-14 | D205: DEEPIND | E205: Accu | F205: 245.00 | H205: 325.5 | I205: 330.00 | J205: Profit of Rs.80.5/- | K205: 80.50 | L205: =K205/F205 -> 32.86% | M205: Successful | N205: 2017-02-03
A206: 73 | B206: 2016-10-17 | D206: DCBBANK | E206: Accu | F206: 125.00 | H206: 160 | I206: 160.00 | J206: Target Achieved | K206: 35.00 | L206: 28.00% | M206: Successful | N206: 2017-03-09
A207: 74 | B207: 2016-10-17 | D207: ORIENTREF | E207: Accu | F207: 114.00 | H207: 145 | I207: 145.00 | J207: Target Achieved | K207: 31.00 | L207: =K207/F207 -> 27.19% | M207: Successful | N207: 2017-05-04
A208: 75 | B208: 2016-10-17 | D208: GANECOS | E208: Accu | F208: 212.00 | H208: 280 | I208: 276.00 | J208: Profit of Rs.68/- | K208: 68.00 | L208: =K208/F208 -> 32.08% | M208: Successful | N208: 2017-05-03
A209: 76 | B209: 2016-11-04 | D209: NBCC | E209: Accu | F209: 155.00 | H209: 210 | I209: 210.00 | J209: Profit of Rs.55/- | K209: 55.00 | L209: =K209/F209 -> 35.48% | M209: Successful | N209: 2017-07-28
A210: 77 | B210: 2016-12-06 | D210: PRECAM | E210: Accu | F210: 150.5 | H210: 72.50 | I210: 174.00 | J210: Loss of Rs.78/- | K210: -78.00 | L210: -51.83% | M210: Unsuccessful | N210: 2018-08-21
A211: 78 | B211: 2016-12-08 | D211: INFRATEL | E211: Accu | F211: 380.00 | H211: 478 | I211: 468.00 | J211: Target Achieved | K211: =H211-F211 -> 98.00 | L211: =K211/F211 -> 25.79% | M211: Successful | N211: 2017-10-17
A212: 79 | B212: 2016-12-30 | D212: GODREJPROP | E212: Accu | F212: 305.00 | H212: 375 | I212: 375.00 | J212: Target Achieved | K212: =H212-F212 -> 70.00 | L212: =K212/F212 -> 22.95% | M212: Successful | N212: 2017-02-02
A213: 80 | B213: 2017-01-04 | D213: DEEPAKNTR | E213: Accu | F213: 99.50 | H213: 158 | I213: 158.00 | J213: Target Achieved | K213: =H213-F213 -> 58.50 | L213: =K213/F213 -> 58.79% | M213: Successful | N213: 2017-06-12
A214: 81 | B214: 2017-01-04 | D214: DEEPAKNTR | E214: Accu | F214: 99.50 | H214: 158 | I214: 158.00 | J214: Target Achieved | K214: 58.50 | L214: 58.79% | M214: Successful | N214: 2017-06-12
A215: 82 | B215: 2017-02-20 | D215: RECLTD | E215: Accu | F215: 140.50 | H215: 220 | I215: 220.00 | J215: Target Achieved | K215: =H215-F215 -> 79.50 | L215: =K215/F215 -> 56.58% | M215: Successful | N215: 2017-05-09
A216: 83 | B216: 2017-02-20 | D216: SUBROS | E216: Accu | F216: 202.50 | H216: 234 | I216: 234.00 | J216: Target Achieved | K216: 31.50 | L216: 15.56% | M216: Successful | N216: 2017-04-11
A217: 84 | B217: 2017-03-24 | D217: VRLLOG | E217: Accu | F217: 300.50 | H217: 417.5 | I217: 420.00 | J217: Profit of Rs.117/- | K217: =H217-F217 -> 117.00 | L217: =K217/F217 -> 38.94% | M217: Successful | N217: 2017-12-01
A218: 85 | B218: 2017-03-24 | D218: FIEMIND | E218: Accu | F218: 850.00 | H218: 1042.5 | I218: 1023.00 | J218: Profit of Rs 192.50/- | K218: 192.50 | L218: 22.65% | M218: Successful | N218: 2017-04-05
A219: 86 | B219: 2017-04-05 | D219: RATNAMANI | E219: Accu | F219: 785.00 | H219: 930 | I219: 920.00 | J219: Profit of Rs.145/- | K219: =H219-F219 -> 145.00 | L219: =K219/F219 -> 18.47% | M219: Successful | N219: 2017-08-29
A220: 87 | B220: 2017-04-06 | D220: ZEEMEDIA | E220: Accu | F220: 40 | H220: 13.10 | I220: 60.00 | J220: Loss of Rs.26.9/- | K220: -26.90 | L220: -67.25% | M220: Unsuccessful | N220: 2018-02-07
A221: 88 | B221: 2017-04-12 | D221: DABUR | E221: Accu | F221: 289.50 | H221: 354 | I221: 360.00 | J221: Profit of Rs.64.5/- | K221: =H221-F221 -> 64.50 | L221: =K221/F221 -> 22.28% | M221: Successful | N221: 2017-11-01
... 95 more rows
